Workbook

Sheet Cover
A1: Standard cap and floor financial model
B2: Regime design model
C3: =MID(CELL("filename"),SEARCH("[",CELL("filename"))+1,SEARCH("]",CELL("filename"))-SEARCH("[",CELL("filename"))-1) -> Copy of CFFM NSL 201516 cost base 20161014.xlsm
C4: DISCLAIMER: The inputs used in this model are purely illustrative. No inference should be made about the regulatory settlement for any interconnector's costs, e.g. capital expenditure or operating expenditure, and hence the level of the cap and floor. This illustrative nature extends to the cost of capital inputs, since under our proposed methodology these will be only known at financial close.
B6: Model key
E8: Sample | G8: Calculated value
E9: Sample | G9: Import
E10: Sample | G10: Export
E11: Sample | G11: Formula change in cells to the right
E12: Sample | G12: Initial inputs
E13: Sample | G13: Updated inputs
E14: Sample | G14: Notes and instructions
E15: Sample | G15: Cell intentionally blank
B17: Contents
E19: INTERFACE >
E20: Cover | G20: Model key and content directory
E21: Input | G21: Inputs
E22: CALCULATION >
E23: RAV | G23: Pre-operational and Operational RAV balances and depreciation
E24: Finance | G24: RAV return, IDC and transaction costs
E25: AllowancesCap | G25: Cap allowances and annuitisation
E26: AllowancesFloor | G26: Floor allowances and annuitisation
E27: Deductions | G27: Tax depreciation and interest calculations
E28: TaxCap | G28: Tax allowance calculation with cap returns
E29: TaxFloor | G29: Tax allowance calculation with floor returns
E30: Availability | G30: Availability incentive calculations
E31: Assessment | G31: Assessment of the cap and the floor
E32: OUTPUTS >
E33: Output | G33: Cap and floor values and adjustments
E34: DATA >
E35: Download from BoE
E36: Download from iBoxx
E37: Market data
E38: RPI
E39: Change log
B42: End of sheet

Sheet Input
A1: Input | H1: Licence
E2: Parameter | G2: Units | H2: Terminology | I2: Constant | K2: Annual values
E3: Project year | K3: =- I88 + 1 -> -11 | L3: =K3 + 1 -> -10 | M3: =L3 + 1 -> -9 | N3: =M3 + 1 -> -8 | O3: =N3 + 1 -> -7 | P3: =O3 + 1 -> -6 | Q3: =P3 + 1 -> -5 | R3: =Q3 + 1 -> -4 | S3: =R3 + 1 -> -3 | T3: =S3 + 1 -> -2 | U3: =T3 + 1 -> -1 | V3: =U3 + 1 -> 0 | W3: =V3 + 1 -> 1 | X3: =W3 + 1 -> 2 | Y3: =X3 + 1 -> 3 | Z3: =Y3 + 1 -> 4 | AA3: =Z3 + 1 -> 5 | AB3: =AA3 + 1 -> 6 | AC3: =AB3 + 1 -> 7 | AD3: =AC3 + 1 -> 8 | AE3: =AD3 + 1 -> 9 | AF3: =AE3 + 1 -> 10 | AG3: =AF3 + 1 -> 11 | AH3: =AG3 + 1 -> 12 | AI3: =AH3 + 1 -> 13 | AJ3: =AI3 + 1 -> 14 | AK3: =AJ3 + 1 -> 15 | AL3: =AK3 + 1 -> 16 | AM3: =AL3 + 1 -> 17 | AN3: =AM3 + 1 -> 18 | AO3: =AN3 + 1 -> 19 | AP3: =AO3 + 1 -> 20 | AQ3: =AP3 + 1 -> 21 | AR3: =AQ3 + 1 -> 22 | AS3: =AR3 + 1 -> 23 | AT3: =AS3 + 1 -> 24 | AU3: =AT3 + 1 -> 25 | AV3: =AU3 + 1 -> 26 | AW3: =AV3 + 1 -> 27 | AX3: =AW3 + 1 -> 28
E4: Year ending | K4: =DATE(YEAR(I87) -I88 + 1, MONTH(I87), DAY(I87) -1) -> 2010-12-31 | L4: =DATE(YEAR(K4) + 1, MONTH(K4), DAY(K4)) -> 2011-12-31 | M4: 2012-12-31 | N4: 2013-12-31 | O4: =DATE(YEAR(N4) + 1, MONTH(N4), DAY(N4)) -> 2014-12-31 | P4: =DATE(YEAR(O4) + 1, MONTH(O4), DAY(O4)) -> 2015-12-31 | Q4: =DATE(YEAR(P4) + 1, MONTH(P4), DAY(P4)) -> 2016-12-31 | R4: =DATE(YEAR(Q4) + 1, MONTH(Q4), DAY(Q4)) -> 2017-12-31 | S4: =DATE(YEAR(R4) + 1, MONTH(R4), DAY(R4)) -> 2018-12-31 | T4: =DATE(YEAR(S4) + 1, MONTH(S4), DAY(S4)) -> 2019-12-31 | U4: =DATE(YEAR(T4) + 1, MONTH(T4), DAY(T4)) -> 2020-12-31 | V4: =DATE(YEAR(U4) + 1, MONTH(U4), DAY(U4)) -> 2021-12-31 | W4: =DATE(YEAR(V4) + 1, MONTH(V4), DAY(V4)) -> 2022-12-31 | X4: =DATE(YEAR(W4) + 1, MONTH(W4), DAY(W4)) -> 2023-12-31 | Y4: =DATE(YEAR(X4) + 1, MONTH(X4), DAY(X4)) -> 2024-12-31 | Z4: =DATE(YEAR(Y4) + 1, MONTH(Y4), DAY(Y4)) -> 2025-12-31 | AA4: =DATE(YEAR(Z4) + 1, MONTH(Z4), DAY(Z4)) -> 2026-12-31 | AB4: =DATE(YEAR(AA4) + 1, MONTH(AA4), DAY(AA4)) -> 2027-12-31 | AC4: =DATE(YEAR(AB4) + 1, MONTH(AB4), DAY(AB4)) -> 2028-12-31 | AD4: =DATE(YEAR(AC4) + 1, MONTH(AC4), DAY(AC4)) -> 2029-12-31 | AE4: =DATE(YEAR(AD4) + 1, MONTH(AD4), DAY(AD4)) -> 2030-12-31 | AF4: =DATE(YEAR(AE4) + 1, MONTH(AE4), DAY(AE4)) -> 2031-12-31 | AG4: =DATE(YEAR(AF4) + 1, MONTH(AF4), DAY(AF4)) -> 2032-12-31 | AH4: =DATE(YEAR(AG4) + 1, MONTH(AG4), DAY(AG4)) -> 2033-12-31 | AI4: =DATE(YEAR(AH4) + 1, MONTH(AH4), DAY(AH4)) -> 2034-12-31 | AJ4: =DATE(YEAR(AI4) + 1, MONTH(AI4), DAY(AI4)) -> 2035-12-31 | AK4: =DATE(YEAR(AJ4) + 1, MONTH(AJ4), DAY(AJ4)) -> 2036-12-31 | AL4: =DATE(YEAR(AK4) + 1, MONTH(AK4), DAY(AK4)) -> 2037-12-31 | AM4: =DATE(YEAR(AL4) + 1, MONTH(AL4), DAY(AL4)) -> 2038-12-31 | AN4: =DATE(YEAR(AM4) + 1, MONTH(AM4), DAY(AM4)) -> 2039-12-31 | AO4: =DATE(YEAR(AN4) + 1, MONTH(AN4), DAY(AN4)) -> 2040-12-31 | AP4: =DATE(YEAR(AO4) + 1, MONTH(AO4), DAY(AO4)) -> 2041-12-31 | AQ4: =DATE(YEAR(AP4) + 1, MONTH(AP4), DAY(AP4)) -> 2042-12-31 | AR4: =DATE(YEAR(AQ4) + 1, MONTH(AQ4), DAY(AQ4)) -> 2043-12-31 | AS4: =DATE(YEAR(AR4) + 1, MONTH(AR4), DAY(AR4)) -> 2044-12-31 | AT4: =DATE(YEAR(AS4) + 1, MONTH(AS4), DAY(AS4)) -> 2045-12-31 | AU4: =DATE(YEAR(AT4) + 1, MONTH(AT4), DAY(AT4)) -> 2046-12-31 | AV4: =DATE(YEAR(AU4) + 1, MONTH(AU4), DAY(AU4)) -> 2047-12-31 | AW4: =DATE(YEAR(AV4) + 1, MONTH(AV4), DAY(AV4)) -> 2048-12-31 | AX4: =DATE(YEAR(AW4) + 1, MONTH(AW4), DAY(AW4)) -> 2049-12-31
B6: Variables set after financial close
C8: Actual value
E10: Development costs | G10: £m 13/14 prices | K10: =0.029+0.303 -> 0.332 | L10: 0.51 | M10: 6.463 | N10: 1.397 | O10: 3.491 | P10: 0 | Q10: 0 | R10: 0 | S10: 0 | T10: 0 | U10: 0 | V10: 0
E12: Average exchange rate (XUMAERS) | G12: EUR / GBP | K12: =RPI!K154 -> 1.177 | L12: =RPI!L154 -> 1.16 | M12: =RPI!M154 -> 1.227 | N12: =RPI!N154 -> 1.186 | O12: =RPI!O154 -> 1.275 | P12: =RPI!P154 -> 1.367 | Q12: =P12 -> 1.367 | R12: =Q12 -> 1.367 | S12: 1.367 | T12: 1.367 | U12: 1.367 | V12: 1.367 | W12: 1.367 | X12: 1.367 | Y12: 1.367 | Z12: 1.367 | AA12: 1.367 | AB12: 1.367 | AC12: 1.367 | AD12: 1.367 | AE12: 1.367 | AF12: 1.367 | AG12: 1.367 | AH12: 1.367 | AI12: 1.367 | AJ12: 1.367 | AK12: 1.367 | AL12: 1.367 | AM12: 1.367 | AN12: 1.367 | AO12: 1.367 | AP12: 1.367 | AQ12: 1.367 | AR12: 1.367 | AS12: 1.367 | AT12: 1.367 | AU12: 1.367 | AV12: 1.367 | AW12: 1.367 | AX12: 1.367
E13: UK RPI inflation index value (CHAW) | G13: Jan 1987 = 100 | K13: =K81 -> 226.475 | L13: =L81 -> 237.342 | M13: 244.675 | N13: 251.733 | O13: 256.667 | P13: 259.217 | Q13: 266.2417807 | R13: 273.456933 | S13: 280.8676158 | T13: 288.4791282 | U13: 296.2969126 | V13: 304.3265589 | W13: 312.5738087 | X13: 321.0445589 | Y13: 329.7448664 | Z13: 338.6809523 | AA13: 347.8592061 | AB13: 357.2861906 | AC13: 366.9686464 | AD13: 376.9134967 | AE13: 387.1278525 | AF13: 397.6190173 | AG13: 408.3944926 | AH13: 419.4619834 | AI13: 430.8294031 | AJ13: 442.50488 | AK13: 454.4967622 | AL13: 466.8136245 | AM13: 479.4642737 | AN13: 492.4577555 | AO13: 505.8033607 | AP13: 519.5106317 | AQ13: 533.5893699 | AR13: 548.0496418 | AS13: 562.9017871 | AT13: 578.1564255 | AU13: 593.8244646 | AV13: 609.9171076 | AW13: 626.4458613 | AX13: 643.4225441
E15: Development costs | G15: £m 15/16 prices | K15: =K10*$P13/$N13 -> 0.3418703309 | L15: 0.5251622552 | M15: 6.655144423 | N15: 1.438532687 | O15: 3.594787124 | P15: 0 | Q15: 0 | R15: 0 | S15: 0 | T15: 0 | U15: 0 | V15: 0
E16: Capex | G16: £m 15/16 prices | K16: 0 | L16: 0 | M16: 0 | N16: 0 | O16: 0 | P16: 27.90970941 | Q16: 43.93852463 | R16: 48.18997663 | S16: 74.75139496 | T16: 146.8031538 | U16: 175.2381271 | V16: 86.40852052
E17: Spares | G17: £m 15/16 prices | K17: 0 | L17: 0 | M17: 0 | N17: 0 | O17: 0 | P17: 0 | Q17: 0 | R17: 0 | S17: 0 | T17: 0 | U17: 0 | V17: 0
E18: Non-controllable opex (actual) | G18: £m 15/16 prices | W18: =W32 -> 0 | X18: 0 | Y18: 0 | Z18: 0 | AA18: 0 | AB18: 0 | AC18: 0 | AD18: 0 | AE18: 0 | AF18: 0 | AG18: 0 | AH18: 0 | AI18: 0 | AJ18: 0 | AK18: 0 | AL18: 0 | AM18: 0 | AN18: 0 | AO18: 0 | AP18: 0 | AQ18: 0 | AR18: 0 | AS18: 0 | AT18: 0 | AU18: 0 | AV18: 0 | AW18: 0 | AX18: 0
E21: Gross congestion revenues (net of market-related costs) | G21: £m nominal prices | W21: 0 | X21: 0 | Y21: 0 | Z21: 0 | AA21: 0 | AB21: 0 | AC21: 0 | AD21: 0 | AE21: 0 | AF21: 0 | AG21: 0 | AH21: 0 | AI21: 0 | AJ21: 0 | AK21: 0 | AL21: 0 | AM21: 0 | AN21: 0 | AO21: 0 | AP21: 0 | AQ21: 0 | AR21: 0 | AS21: 0 | AT21: 0 | AU21: 0 | AV21: 0 | AW21: 0 | AX21: 0
E22: Gross congestion revenues (net of market-related costs) | G22: €m nominal prices | W22: 0 | X22: 0 | Y22: 0 | Z22: 0 | AA22: 0 | AB22: 0 | AC22: 0 | AD22: 0 | AE22: 0 | AF22: 0 | AG22: 0 | AH22: 0 | AI22: 0 | AJ22: 0 | AK22: 0 | AL22: 0 | AM22: 0 | AN22: 0 | AO22: 0 | AP22: 0 | AQ22: 0 | AR22: 0 | AS22: 0 | AT22: 0 | AU22: 0 | AV22: 0 | AW22: 0 | AX22: 0
E24: Gross congestion revenues (net of market-related costs) | G24: £m nominal prices | H24: NARt | W24: =AVERAGE(Availability!W10, Availability!W11)*W13/$I$80 -> 88.76116001 | X24: =AVERAGE(Availability!X10, Availability!X11)*X13/$I$80 -> 91.16658744 | Y24: =AVERAGE(Availability!Y10, Availability!Y11)*Y13/$I$80 -> 93.63720196 | Z24: =AVERAGE(Availability!Z10, Availability!Z11)*Z13/$I$80 -> 96.17477013 | AA24: =AVERAGE(Availability!AA10, Availability!AA11)*AA13/$I$80 -> 98.78110641 | AB24: =AVERAGE(Availability!AB10, Availability!AB11)*AB13/$I$80 -> 101.4580744 | AC24: =AVERAGE(Availability!AC10, Availability!AC11)*AC13/$I$80 -> 104.2075882 | AD24: =AVERAGE(Availability!AD10, Availability!AD11)*AD13/$I$80 -> 107.0316138 | AE24: =AVERAGE(Availability!AE10, Availability!AE11)*AE13/$I$80 -> 109.9321706 | AF24: =AVERAGE(Availability!AF10, Availability!AF11)*AF13/$I$80 -> 112.9113324 | AG24: =AVERAGE(Availability!AG10, Availability!AG11)*AG13/$I$80 -> 115.9712295 | AH24: =AVERAGE(Availability!AH10, Availability!AH11)*AH13/$I$80 -> 119.1140498 | AI24: =AVERAGE(Availability!AI10, Availability!AI11)*AI13/$I$80 -> 122.3420406 | AJ24: =AVERAGE(Availability!AJ10, Availability!AJ11)*AJ13/$I$80 -> 125.6575099 | AK24: =AVERAGE(Availability!AK10, Availability!AK11)*AK13/$I$80 -> 129.0628284 | AL24: =AVERAGE(Availability!AL10, Availability!AL11)*AL13/$I$80 -> 132.560431 | AM24: =AVERAGE(Availability!AM10, Availability!AM11)*AM13/$I$80 -> 136.1528187 | AN24: =AVERAGE(Availability!AN10, Availability!AN11)*AN13/$I$80 -> 139.8425601 | AO24: =AVERAGE(Availability!AO10, Availability!AO11)*AO13/$I$80 -> 143.6322935 | AP24: =AVERAGE(Availability!AP10, Availability!AP11)*AP13/$I$80 -> 147.5247287 | AQ24: =AVERAGE(Availability!AQ10, Availability!AQ11)*AQ13/$I$80 -> 151.5226488 | AR24: =AVERAGE(Availability!AR10, Availability!AR11)*AR13/$I$80 -> 155.6289126 | AS24: =AVERAGE(Availability!AS10, Availability!AS11)*AS13/$I$80 -> 159.8464561 | AT24: =AVERAGE(Availability!AT10, Availability!AT11)*AT13/$I$80 -> 164.1782951 | AU24: =AVERAGE(Availability!AU10, Availability!AU11)*AU13/$I$80 -> 168.6275269 | AV24: =AVERAGE(Availability!AV10, Availability!AV11)*AV13/$I$80 -> 173.1973328 | AW24: =AVERAGE(Availability!AW10, Availability!AW11)*AW13/$I$80 -> 177.8909806 | AX24: =AVERAGE(Availability!AX10, Availability!AX11)*AX13/$I$80 -> 182.7118261
E25: Within-period adjustment (assessed) | G25: £m nominal | H25: WPAt
C27: Ex ante allowance
E29: Replacement capex | G29: £m 15/16 prices | W29: 0 | X29: 0 | Y29: 0 | Z29: 0 | AA29: 0 | AB29: 0 | AC29: 0 | AD29: 0 | AE29: 0 | AF29: 0 | AG29: 0 | AH29: 0 | AI29: 0 | AJ29: 0 | AK29: 15 | AL29: 0 | AM29: 0 | AN29: 0 | AO29: 0 | AP29: 0 | AQ29: 0 | AR29: 0 | AS29: 0 | AT29: 0 | AU29: 0 | AV29: 0 | AW29: 0 | AX29: 0
E30: Decommissioning baseline / actual | G30: £m 15/16 prices | W30: 0 | X30: 0 | Y30: 0 | Z30: 0 | AA30: 0 | AB30: 0 | AC30: 0 | AD30: 0 | AE30: 0 | AF30: 0 | AG30: 0 | AH30: 0 | AI30: 0 | AJ30: 0 | AK30: 0 | AL30: 0 | AM30: 0 | AN30: 0 | AO30: 0 | AP30: 0 | AQ30: 0 | AR30: 0 | AS30: 0 | AT30: 0 | AU30: 6.5 | AV30: 0 | AW30: 0 | AX30: 0
E31: Controllable opex | G31: £m 15/16 prices | W31: 15.2848 | X31: 15.2848 | Y31: 15.2848 | Z31: 15.2848 | AA31: 15.2848 | AB31: 15.2848 | AC31: 15.2848 | AD31: 15.2848 | AE31: 15.2848 | AF31: 15.2848 | AG31: 15.2848 | AH31: 15.2848 | AI31: 15.2848 | AJ31: 15.2848 | AK31: 15.2848 | AL31: 15.2848 | AM31: 15.2848 | AN31: 15.2848 | AO31: 15.2848 | AP31: 15.2848 | AQ31: 15.2848 | AR31: 15.2848 | AS31: 15.2848 | AT31: 15.2848 | AU31: 15.2848 | AV31: 0 | AW31: 0 | AX31: 0
E32: Non-controllable opex (baseline) | G32: £m 15/16 prices | W32: 0 | X32: 0 | Y32: 0 | Z32: 0 | AA32: 0 | AB32: 0 | AC32: 0 | AD32: 0 | AE32: 0 | AF32: 0 | AG32: 0 | AH32: 0 | AI32: 0 | AJ32: 0 | AK32: 0 | AL32: 0 | AM32: 0 | AN32: 0 | AO32: 0 | AP32: 0 | AQ32: 0 | AR32: 0 | AS32: 0 | AT32: 0 | AU32: 0 | AV32: 0 | AW32: 0 | AX32: 0
E33: Opex re-assessment adjustment | G33: £m 15/16 prices | AG33: 0 | AH33: 0 | AI33: 0 | AJ33: 0 | AK33: 0 | AL33: 0 | AM33: 0 | AN33: 0 | AO33: 0 | AP33: 0 | AQ33: 0 | AR33: 0 | AS33: 0 | AT33: 0 | AU33: 0 | AV33: 0 | AW33: 0 | AX33: 0
B35: Variables set at financial close
C37: Finance
E39: Cap returns | G39: real annual % | I39: ='Market data'!I30 -> 0.07975
E40: Floor returns | G40: real annual % | I40: ='Market data'!I48 -> 0.0088
E41: Operational discount rate | G41: real annual % | I41: =(I39 + I40) / 2 -> 0.044275
E42: Interest during construction | G42: real annual % | I42: ='Market data'!I74 -> 0.0637
E43: Cost of debt (for tax) | G43: real annual % | I43: =I40 -> 0.0088
E44: Pre-operational notional gearing | G44: % | I44: ='Market data'!I76 -> 0.3341
E45: Operational notional gearing | G45: % | I45: ='Market data'!I13 -> 0.5
E47: Equity transaction costs | G47: % | I47: 0.05
E48: Debt transaction costs | G48: % | I48: 0.025
C50: Availability incentive
E52: Interconnector Rated Capacity | G52: MW | H52: RC | I52: 1400
E53: Number of Hours in Relevant Year | G53: hours pa | I53: =365.25*24 -> 8766
E55: Cap availability incentive ratio | G55: ratio | I55: 1
E56: Cap availability incentive target | G56: % | I56: 0.93
E57: Cap availability incentive upper limit | G57: scalar | I57: 1.02
E58: Cap availability incentive lower limit | G58: scalar | I58: 0.98
E60: Total Interconnector Outages during Active Cap period | G60: MWh | W60: 0 | X60: 0 | Y60: 0 | Z60: 0 | AA60: 0 | AB60: 0 | AC60: 0 | AD60: 0 | AE60: 0 | AF60: 0 | AG60: 0 | AH60: 0 | AI60: 0 | AJ60: 0 | AK60: 0 | AL60: 0 | AM60: 0 | AN60: 0 | AO60: 0 | AP60: 0 | AQ60: 0 | AR60: 0 | AS60: 0 | AT60: 0 | AU60: 0 | AV60: 0 | AW60: 0 | AX60: 0
E61: Allowed Outages during Active Cap period | G61: MWh | W61: 0 | X61: 0 | Y61: 0 | Z61: 0 | AA61: 0 | AB61: 0 | AC61: 0 | AD61: 0 | AE61: 0 | AF61: 0 | AG61: 0 | AH61: 0 | AI61: 0 | AJ61: 0 | AK61: 0 | AL61: 0 | AM61: 0 | AN61: 0 | AO61: 0 | AP61: 0 | AQ61: 0 | AR61: 0 | AS61: 0 | AT61: 0 | AU61: 0 | AV61: 0 | AW61: 0 | AX61: 0
E62: Total Interconnector Outages less Allowed Outages during Active Cap period | G62: MWh | H62: IOt | W62: =W60-W61 -> 0 | X62: =X60-X61 -> 0 | Y62: 0 | Z62: 0 | AA62: 0 | AB62: 0 | AC62: 0 | AD62: 0 | AE62: 0 | AF62: 0 | AG62: 0 | AH62: 0 | AI62: 0 | AJ62: 0 | AK62: 0 | AL62: 0 | AM62: 0 | AN62: 0 | AO62: 0 | AP62: 0 | AQ62: 0 | AR62: 0 | AS62: 0 | AT62: 0 | AU62: 0 | AV62: 0 | AW62: 0 | AX62: 0
E63: Total Interconnector Outages during Active Floor period | G63: MWh | W63: 0 | X63: 0 | Y63: 0 | Z63: 0 | AA63: 0 | AB63: 0 | AC63: 0 | AD63: 0 | AE63: 0 | AF63: 0 | AG63: 0 | AH63: 0 | AI63: 0 | AJ63: 0 | AK63: 0 | AL63: 0 | AM63: 0 | AN63: 0 | AO63: 0 | AP63: 0 | AQ63: 0 | AR63: 0 | AS63: 0 | AT63: 0 | AU63: 0 | AV63: 0 | AW63: 0 | AX63: 0
E64: Allowed Outages during Active Floor period | G64: MWh | W64: 0 | X64: 0 | Y64: 0 | Z64: 0 | AA64: 0 | AB64: 0 | AC64: 0 | AD64: 0 | AE64: 0 | AF64: 0 | AG64: 0 | AH64: 0 | AI64: 0 | AJ64: 0 | AK64: 0 | AL64: 0 | AM64: 0 | AN64: 0 | AO64: 0 | AP64: 0 | AQ64: 0 | AR64: 0 | AS64: 0 | AT64: 0 | AU64: 0 | AV64: 0 | AW64: 0 | AX64: 0
E65: Total Interconnector Outages less Allowed Outages during Active Floor period | G65: MWh | H65: IOt | W65: =W63-W64 -> 0 | X65: =X63-X64 -> 0 | Y65: 0 | Z65: 0 | AA65: 0 | AB65: 0 | AC65: 0 | AD65: 0 | AE65: 0 | AF65: 0 | AG65: 0 | AH65: 0 | AI65: 0 | AJ65: 0 | AK65: 0 | AL65: 0 | AM65: 0 | AN65: 0 | AO65: 0 | AP65: 0 | AQ65: 0 | AR65: 0 | AS65: 0 | AT65: 0 | AU65: 0 | AV65: 0 | AW65: 0 | AX65: 0
E66: Outages associated with Exceptional Events | G66: MWh | W66: 0 | X66: 0 | Y66: 0 | Z66: 0 | AA66: 0 | AB66: 0 | AC66: 0 | AD66: 0 | AE66: 0 | AF66: 0 | AG66: 0 | AH66: 0 | AI66: 0 | AJ66: 0 | AK66: 0 | AL66: 0 | AM66: 0 | AN66: 0 | AO66: 0 | AP66: 0 | AQ66: 0 | AR66: 0 | AS66: 0 | AT66: 0 | AU66: 0 | AV66: 0 | AW66: 0 | AX66: 0
E68: Floor availability incentive target | G68: % | I68: 0.8
C70: Tax
E72: Corporation tax rate | G72: % | W72: 0.2 | X72: =W72 -> 0.2 | Y72: =X72 -> 0.2 | Z72: 0.2 | AA72: 0.2 | AB72: 0.2 | AC72: 0.2 | AD72: 0.2 | AE72: 0.2 | AF72: 0.2 | AG72: 0.2 | AH72: 0.2 | AI72: 0.2 | AJ72: 0.2 | AK72: 0.2 | AL72: 0.2 | AM72: 0.2 | AN72: 0.2 | AO72: 0.2 | AP72: 0.2 | AQ72: 0.2 | AR72: 0.2 | AS72: 0.2 | AT72: 0.2 | AU72: 0.2 | AV72: 0.2 | AW72: 0.2 | AX72: 0.2
E73: Capital allowance rate (declining balance) | G73: % | W73: 0.08 | X73: =W73 -> 0.08 | Y73: =X73 -> 0.08 | Z73: 0.08 | AA73: 0.08 | AB73: 0.08 | AC73: 0.08 | AD73: 0.08 | AE73: 0.08 | AF73: 0.08 | AG73: 0.08 | AH73: 0.08 | AI73: 0.08 | AJ73: 0.08 | AK73: 0.08 | AL73: 0.08 | AM73: 0.08 | AN73: 0.08 | AO73: 0.08 | AP73: 0.08 | AQ73: 0.08 | AR73: 0.08 | AS73: 0.08 | AT73: 0.08 | AU73: 0.08 | AV73: 0.08 | AW73: 0.08 | AX73: 0.08
C75: Inflation & currency
E77: GB allocation | G77: % | I77: 1
E78: Expected UK RPI inflation | G78: % | I78: ='Market data'!I53 -> 0.0271
E79: End date of price base year | G79: date | I79: 2016-03-31
E80: =RPI!E10 -> 2015/16 RPI inflation index value (CHAW) | G80: =RPI!G10 -> Jan 1987 = 100 | I80: =RPI!I10 -> 259.217
E81: 12 month average UK RPI inflation index value (CHAW) | G81: Jan 1987 = 100 | K81: =RPI!K147 -> 226.475 | L81: =RPI!L147 -> 237.342 | M81: =RPI!M147 -> 244.675 | N81: =RPI!N147 -> 251.733 | O81: =RPI!O147 -> 256.667 | P81: =RPI!P147 -> 259.217 | Q81: =P81 * (1 + $I78) -> 266.2417807 | R81: 273.456933 | S81: 280.8676158 | T81: 288.4791282 | U81: 296.2969126 | V81: 304.3265589 | W81: 312.5738087 | X81: 321.0445589 | Y81: 329.7448664 | Z81: 338.6809523 | AA81: 347.8592061 | AB81: 357.2861906 | AC81: 366.9686464 | AD81: 376.9134967 | AE81: 387.1278525 | AF81: 397.6190173 | AG81: 408.3944926 | AH81: 419.4619834 | AI81: 430.8294031 | AJ81: 442.50488 | AK81: 454.4967622 | AL81: 466.8136245 | AM81: 479.4642737 | AN81: 492.4577555 | AO81: 505.8033607 | AP81: 519.5106317 | AQ81: 533.5893699 | AR81: 548.0496418 | AS81: 562.9017871 | AT81: 578.1564255 | AU81: 593.8244646 | AV81: 609.9171076 | AW81: 626.4458613 | AX81: 643.4225441
C84: Model operation
C85: Note: changes in these variables may require structural changes to the model.
E87: Operational start date | G87: date | I87: 2022-01-01
E88: Number of pre-operational years | G88: full years | I88: 12
E89: Number of operational years | G89: full years | I89: 25
E90: Assessment period length | G90: full years | I90: 5
B92: End of sheet

Sheet RAV
A1: RAV | H1: Licence
E2: Parameter | G2: Units | H2: Terminology | I2: Constant | K2: Annual values
E3: Project year | K3: =Input!K3 -> -11 | L3: =K3 + 1 -> -10 | M3: -9 | N3: -8 | O3: -7 | P3: -6 | Q3: -5 | R3: -4 | S3: -3 | T3: -2 | U3: -1 | V3: 0 | W3: 1 | X3: 2 | Y3: 3 | Z3: 4 | AA3: 5 | AB3: 6 | AC3: 7 | AD3: 8 | AE3: 9 | AF3: 10 | AG3: 11 | AH3: 12 | AI3: 13 | AJ3: 14 | AK3: 15 | AL3: 16 | AM3: 17 | AN3: 18 | AO3: 19 | AP3: 20 | AQ3: 21 | AR3: 22 | AS3: 23 | AT3: 24 | AU3: 25 | AV3: 26 | AW3: 27 | AX3: 28
E4: Year ending | K4: =Input!K4 -> 2010-12-31 | L4: =DATE(YEAR(K4) + 1, MONTH(K4), DAY(K4)) -> 2011-12-31 | M4: 2012-12-31 | N4: 2013-12-31 | O4: 2014-12-31 | P4: 2015-12-31 | Q4: 2016-12-31 | R4: 2017-12-31 | S4: 2018-12-31 | T4: 2019-12-31 | U4: 2020-12-31 | V4: 2021-12-31 | W4: 2022-12-31 | X4: 2023-12-31 | Y4: 2024-12-31 | Z4: 2025-12-31 | AA4: 2026-12-31 | AB4: 2027-12-31 | AC4: 2028-12-31 | AD4: 2029-12-31 | AE4: 2030-12-31 | AF4: 2031-12-31 | AG4: 2032-12-31 | AH4: 2033-12-31 | AI4: 2034-12-31 | AJ4: 2035-12-31 | AK4: 2036-12-31 | AL4: 2037-12-31 | AM4: 2038-12-31 | AN4: 2039-12-31 | AO4: 2040-12-31 | AP4: 2041-12-31 | AQ4: 2042-12-31 | AR4: 2043-12-31 | AS4: 2044-12-31 | AT4: 2045-12-31 | AU4: 2046-12-31 | AV4: 2047-12-31 | AW4: 2048-12-31 | AX4: 2049-12-31
B6: Running total RAV
C8: Pre-operational
E10: Opening pre-operational RAV (before transfers) | G10: £m 15/16 prices | L10: =K17 -> 0.3524228046 | M10: 0.9162445179 | N10: 7.835177324 | O10: =N17 -> 9.817213837 | P10: 14.14831738 | Q10: 43.82076052 | R10: 91.90691318 | S10: 147.4388349 | T10: =S17 -> 233.8894267 | U10: =T17 -> 400.1226936 | V10: =U17 -> 606.2576922 | W10: =V17 -> 733.95199
E11: Pre-operational RAV transfers | G11: £m 15/16 prices | W11: =-W10 -> -733.95199
E12: Opening pre-operational RAV (after transfers) | G12: £m 15/16 prices | K12: =SUM(K10:K11) -> 0 | L12: =SUM(L10:L11) -> 0.3524228046 | M12: 0.9162445179 | N12: 7.835177324 | O12: 9.817213837 | P12: 14.14831738 | Q12: 43.82076052 | R12: =SUM(R10:R11) -> 91.90691318 | S12: 147.4388349 | T12: =SUM(T10:T11) -> 233.8894267 | U12: =SUM(U10:U11) -> 400.1226936 | V12: =SUM(V10:V11) -> 606.2576922
E13: =Input!E15 -> Development costs | G13: £m 15/16 prices | K13: =Input!K15 -> 0.3418703309 | L13: =Input!L15 -> 0.5251622552 | M13: =Input!M15 -> 6.655144423 | N13: =Input!N15 -> 1.438532687 | O13: =Input!O15 -> 3.594787124 | P13: =Input!P15 -> 0 | Q13: =Input!Q15 -> 0 | R13: =Input!R15 -> 0 | S13: =Input!S15 -> 0 | T13: =Input!T15 -> 0 | U13: =Input!U15 -> 0 | V13: =Input!V15 -> 0
E14: =Input!E16 -> Capex | G14: £m 15/16 prices | K14: =Input!K16 -> 0 | L14: =Input!L16 -> 0 | M14: =Input!M16 -> 0 | N14: =Input!N16 -> 0 | O14: =Input!O16 -> 0 | P14: =Input!P16 -> 27.90970941 | Q14: =Input!Q16 -> 43.93852463 | R14: =Input!R16 -> 48.18997663 | S14: =Input!S16 -> 74.75139496 | T14: =Input!T16 -> 146.8031538 | U14: =Input!U16 -> 175.2381271 | V14: =Input!V16 -> 86.40852052
E15: =Input!E17 -> Spares | G15: £m 15/16 prices | K15: =Input!K17 -> 0 | L15: =Input!L17 -> 0 | M15: =Input!M17 -> 0 | N15: =Input!N17 -> 0 | O15: =Input!O17 -> 0 | P15: =Input!P17 -> 0 | Q15: =Input!Q17 -> 0 | R15: =Input!R17 -> 0 | S15: =Input!S17 -> 0 | T15: =Input!T17 -> 0 | U15: =Input!U17 -> 0 | V15: =Input!V17 -> 0
E16: =Finance!E31 -> Capitalised IDC | G16: £m 15/16 prices | K16: =Finance!K31 -> 0.01055247375 | L16: =Finance!L31 -> 0.03865945799 | M16: =Finance!M31 -> 0.2637883837 | N16: =Finance!N31 -> 0.5435038252 | O16: =Finance!O31 -> 0.7363164186 | P16: =Finance!P31 -> 1.762733735 | Q16: =Finance!Q31 -> 4.147628033 | R16: =Finance!R31 -> 7.341945057 | S16: =Finance!S31 -> 11.69919683 | T16: =Finance!T31 -> 19.43011321 | U16: =Finance!U31 -> 30.8968715 | V16: =Finance!V31 -> 41.28577725
E17: Closing pre-operational RAV (after IDC) | G17: £m 15/16 prices | K17: =SUM(K12:K16) -> 0.3524228046 | L17: 0.9162445179 | M17: 7.835177324 | N17: 9.817213837 | O17: 14.14831738 | P17: 43.82076052 | Q17: 91.90691318 | R17: =SUM(R12:R16) -> 147.4388349 | S17: =SUM(S12:S16) -> 233.8894267 | T17: =SUM(T12:T16) -> 400.1226936 | U17: =SUM(U12:U16) -> 606.2576922 | V17: =SUM(V12:V16) -> 733.95199
C19: Operational
E21: Opening operational RAV (before transfers) | G21: £m 15/16 prices | X21: =W27 -> 738.2052417 | Y21: 707.44669 | Z21: 676.6881383 | AA21: 645.9295865 | AB21: 615.1710348 | AC21: 584.412483 | AD21: 553.6539313 | AE21: 522.8953796 | AF21: 492.1368278 | AG21: 461.3782761 | AH21: 430.6197244 | AI21: 399.8611726 | AJ21: 369.1026209 | AK21: 338.3440691 | AL21: 322.5855174 | AM21: 290.3269657 | AN21: 258.0684139 | AO21: 225.8098622 | AP21: 193.5513104 | AQ21: 161.2927587 | AR21: 129.034207 | AS21: 96.77565522 | AT21: 64.51710348 | AU21: 32.25855174 | AV21: 0 | AW21: 0 | AX21: 0
E22: Transfers from pre-operational RAV | G22: £m 15/16 prices | W22: =-W11 -> 733.95199 | X22: 0 | Y22: 0 | Z22: 0 | AA22: 0 | AB22: 0 | AC22: 0 | AD22: 0 | AE22: 0 | AF22: 0 | AG22: 0 | AH22: 0 | AI22: 0 | AJ22: 0 | AK22: 0 | AL22: 0 | AM22: 0 | AN22: 0 | AO22: 0 | AP22: 0 | AQ22: 0 | AR22: 0 | AS22: 0 | AT22: 0 | AU22: 0 | AV22: 0 | AW22: 0 | AX22: 0
E23: Opening operational RAV (after transfers) | G23: £m 15/16 prices | W23: =SUM(W21:W22) -> 733.95199 | X23: 738.2052417 | Y23: 707.44669 | Z23: 676.6881383 | AA23: 645.9295865 | AB23: 615.1710348 | AC23: 584.412483 | AD23: 553.6539313 | AE23: 522.8953796 | AF23: 492.1368278 | AG23: 461.3782761 | AH23: 430.6197244 | AI23: 399.8611726 | AJ23: 369.1026209 | AK23: 338.3440691 | AL23: 322.5855174 | AM23: 290.3269657 | AN23: 258.0684139 | AO23: 225.8098622 | AP23: 193.5513104 | AQ23: 161.2927587 | AR23: 129.034207 | AS23: 96.77565522 | AT23: 64.51710348 | AU23: 32.25855174 | AV23: 0 | AW23: 0 | AX23: 0
E24: =Finance!E61 -> Transaction costs | G24: £m 15/16 prices | W24: =Finance!W61 -> 33.61133138
E25: =Input!E29 -> Replacement capex | G25: £m 15/16 prices | W25: =Input!W29 -> 0 | X25: =Input!X29 -> 0 | Y25: =Input!Y29 -> 0 | Z25: =Input!Z29 -> 0 | AA25: =Input!AA29 -> 0 | AB25: =Input!AB29 -> 0 | AC25: =Input!AC29 -> 0 | AD25: =Input!AD29 -> 0 | AE25: =Input!AE29 -> 0 | AF25: =Input!AF29 -> 0 | AG25: =Input!AG29 -> 0 | AH25: =Input!AH29 -> 0 | AI25: =Input!AI29 -> 0 | AJ25: =Input!AJ29 -> 0 | AK25: =Input!AK29 -> 15 | AL25: =Input!AL29 -> 0 | AM25: =Input!AM29 -> 0 | AN25: =Input!AN29 -> 0 | AO25: =Input!AO29 -> 0 | AP25: =Input!AP29 -> 0 | AQ25: =Input!AQ29 -> 0 | AR25: =Input!AR29 -> 0 | AS25: =Input!AS29 -> 0 | AT25: =Input!AT29 -> 0 | AU25: =Input!AU29 -> 0 | AV25: =Input!AV29 -> 0 | AW25: =Input!AW29 -> 0 | AX25: =Input!AX29 -> 0
E26: Depreciation (negative) | G26: £m 15/16 prices | W26: =- W37 -> -29.3580796 | X26: =- X37 -> -30.75855174 | Y26: -30.75855174 | Z26: -30.75855174 | AA26: -30.75855174 | AB26: -30.75855174 | AC26: -30.75855174 | AD26: -30.75855174 | AE26: -30.75855174 | AF26: -30.75855174 | AG26: -30.75855174 | AH26: -30.75855174 | AI26: -30.75855174 | AJ26: -30.75855174 | AK26: -30.75855174 | AL26: -32.25855174 | AM26: -32.25855174 | AN26: -32.25855174 | AO26: -32.25855174 | AP26: -32.25855174 | AQ26: -32.25855174 | AR26: -32.25855174 | AS26: -32.25855174 | AT26: -32.25855174 | AU26: -32.25855174 | AV26: 0 | AW26: 0 | AX26: 0
E27: Closing operational RAV | G27: £m 15/16 prices | W27: =SUM(W23:W26) -> 738.2052417 | X27: =SUM(X23:X26) -> 707.44669 | Y27: 676.6881383 | Z27: 645.9295865 | AA27: 615.1710348 | AB27: 584.412483 | AC27: 553.6539313 | AD27: 522.8953796 | AE27: 492.1368278 | AF27: 461.3782761 | AG27: 430.6197244 | AH27: 399.8611726 | AI27: 369.1026209 | AJ27: 338.3440691 | AK27: 322.5855174 | AL27: 290.3269657 | AM27: 258.0684139 | AN27: 225.8098622 | AO27: 193.5513104 | AP27: 161.2927587 | AQ27: 129.034207 | AR27: 96.77565522 | AS27: 64.51710348 | AT27: 32.25855174 | AU27: 0 | AV27: 0 | AW27: 0 | AX27: 0
E29: Average operational RAV | G29: £m 15/16 prices | W29: =AVERAGE(W23, W27) -> 736.0786159 | X29: 722.8259659 | Y29: 692.0674141 | Z29: 661.3088624 | AA29: 630.5503107 | AB29: 599.7917589 | AC29: 569.0332072 | AD29: 538.2746554 | AE29: 507.5161037 | AF29: 476.757552 | AG29: 445.9990002 | AH29: 415.2404485 | AI29: 384.4818967 | AJ29: 353.723345 | AK29: 330.4647933 | AL29: 306.4562415 | AM29: 274.1976898 | AN29: 241.939138 | AO29: 209.6805863 | AP29: 177.4220346 | AQ29: 145.1634828 | AR29: 112.9049311 | AS29: 80.64637935 | AT29: 48.38782761 | AU29: 16.12927587 | AV29: 0 | AW29: 0 | AX29: 0
B31: RAV depreciation
E33: Number of operational years | G33: full years | I33: =Input!I89 -> 25
E34: Years remaining until end of operational period | G34: full years | W34: =I33 -> 25 | X34: =W34 - 1 -> 24 | Y34: 23 | Z34: 22 | AA34: 21 | AB34: 20 | AC34: 19 | AD34: 18 | AE34: 17 | AF34: 16 | AG34: 15 | AH34: 14 | AI34: 13 | AJ34: 12 | AK34: 11 | AL34: 10 | AM34: 9 | AN34: 8 | AO34: 7 | AP34: 6 | AQ34: 5 | AR34: 4 | AS34: 3 | AT34: 2 | AU34: 1 | AV34: 0 | AW34: -1 | AX34: -2
E35: Year is before end of operational period | G35: flag | W35: =W34 > 0 -> TRUE | X35: TRUE | Y35: TRUE | Z35: TRUE | AA35: TRUE | AB35: TRUE | AC35: TRUE | AD35: TRUE | AE35: TRUE | AF35: TRUE | AG35: TRUE | AH35: TRUE | AI35: TRUE | AJ35: TRUE | AK35: TRUE | AL35: TRUE | AM35: TRUE | AN35: TRUE | AO35: TRUE | AP35: TRUE | AQ35: TRUE | AR35: TRUE | AS35: TRUE | AT35: TRUE | AU35: TRUE | AV35: FALSE | AW35: FALSE | AX35: FALSE
E37: RAV depreciation | G37: £m 15/16 prices | W37: =IF(W35, W23 / W34, 0) -> 29.3580796 | X37: =IF(X35, X23 / X34, 0) -> 30.75855174 | Y37: =IF(Y35, Y23 / Y34, 0) -> 30.75855174 | Z37: =IF(Z35, Z23 / Z34, 0) -> 30.75855174 | AA37: 30.75855174 | AB37: 30.75855174 | AC37: 30.75855174 | AD37: 30.75855174 | AE37: 30.75855174 | AF37: 30.75855174 | AG37: 30.75855174 | AH37: 30.75855174 | AI37: 30.75855174 | AJ37: 30.75855174 | AK37: 30.75855174 | AL37: 32.25855174 | AM37: 32.25855174 | AN37: 32.25855174 | AO37: 32.25855174 | AP37: 32.25855174 | AQ37: 32.25855174 | AR37: 32.25855174 | AS37: 32.25855174 | AT37: 32.25855174 | AU37: 32.25855174 | AV37: 0 | AW37: 0 | AX37: 0
E39: Depreciation equal to additions | G39: test | I39: =SUM(K13:V16,W24:AX25) = SUM(W37:AX37) -> TRUE
B41: End of sheet

Sheet Finance
A1: Finance | H1: Licence
E2: Parameter | G2: Units | H2: Terminology | I2: Constant | K2: Annual values
E3: Project year | K3: =Input!K3 -> -11 | L3: =K3 + 1 -> -10 | M3: -9 | N3: -8 | O3: -7 | P3: -6 | Q3: -5 | R3: -4 | S3: -3 | T3: -2 | U3: -1 | V3: 0 | W3: 1 | X3: 2 | Y3: 3 | Z3: 4 | AA3: 5 | AB3: 6 | AC3: 7 | AD3: 8 | AE3: 9 | AF3: 10 | AG3: 11 | AH3: 12 | AI3: 13 | AJ3: 14 | AK3: 15 | AL3: 16 | AM3: 17 | AN3: 18 | AO3: 19 | AP3: 20 | AQ3: 21 | AR3: 22 | AS3: 23 | AT3: 24 | AU3: 25 | AV3: 26 | AW3: 27 | AX3: 28
E4: Year ending | K4: =Input!K4 -> 2010-12-31 | L4: =DATE(YEAR(K4) + 1, MONTH(K4), DAY(K4)) -> 2011-12-31 | M4: 2012-12-31 | N4: 2013-12-31 | O4: 2014-12-31 | P4: 2015-12-31 | Q4: 2016-12-31 | R4: 2017-12-31 | S4: 2018-12-31 | T4: 2019-12-31 | U4: 2020-12-31 | V4: 2021-12-31 | W4: 2022-12-31 | X4: 2023-12-31 | Y4: 2024-12-31 | Z4: 2025-12-31 | AA4: 2026-12-31 | AB4: 2027-12-31 | AC4: 2028-12-31 | AD4: 2029-12-31 | AE4: 2030-12-31 | AF4: 2031-12-31 | AG4: 2032-12-31 | AH4: 2033-12-31 | AI4: 2034-12-31 | AJ4: 2035-12-31 | AK4: 2036-12-31 | AL4: 2037-12-31 | AM4: 2038-12-31 | AN4: 2039-12-31 | AO4: 2040-12-31 | AP4: 2041-12-31 | AQ4: 2042-12-31 | AR4: 2043-12-31 | AS4: 2044-12-31 | AT4: 2045-12-31 | AU4: 2046-12-31 | AV4: 2047-12-31 | AW4: 2048-12-31 | AX4: 2049-12-31
B6: Returns
C8: Operational RAV return
E10: =Input!E39 -> Cap returns | G10: =Input!G39 -> real annual % | I10: =Input!I39 -> 0.07975
E11: =Input!E40 -> Floor returns | G11: =Input!G40 -> real annual % | I11: =Input!I40 -> 0.0088
E13: Opening operational RAV (after transfers) | G13: £m 15/16 prices | W13: =RAV!W23 -> 733.95199 | X13: =RAV!X23 -> 738.2052417 | Y13: =RAV!Y23 -> 707.44669 | Z13: =RAV!Z23 -> 676.6881383 | AA13: =RAV!AA23 -> 645.9295865 | AB13: =RAV!AB23 -> 615.1710348 | AC13: =RAV!AC23 -> 584.412483 | AD13: =RAV!AD23 -> 553.6539313 | AE13: =RAV!AE23 -> 522.8953796 | AF13: =RAV!AF23 -> 492.1368278 | AG13: =RAV!AG23 -> 461.3782761 | AH13: =RAV!AH23 -> 430.6197244 | AI13: =RAV!AI23 -> 399.8611726 | AJ13: =RAV!AJ23 -> 369.1026209 | AK13: =RAV!AK23 -> 338.3440691 | AL13: =RAV!AL23 -> 322.5855174 | AM13: =RAV!AM23 -> 290.3269657 | AN13: =RAV!AN23 -> 258.0684139 | AO13: =RAV!AO23 -> 225.8098622 | AP13: =RAV!AP23 -> 193.5513104 | AQ13: =RAV!AQ23 -> 161.2927587 | AR13: =RAV!AR23 -> 129.034207 | AS13: =RAV!AS23 -> 96.77565522 | AT13: =RAV!AT23 -> 64.51710348 | AU13: =RAV!AU23 -> 32.25855174 | AV13: =RAV!AV23 -> 0 | AW13: =RAV!AW23 -> 0 | AX13: =RAV!AX23 -> 0
E14: Closing operational RAV | G14: £m 15/16 prices | W14: =RAV!W27 -> 738.2052417 | X14: =RAV!X27 -> 707.44669 | Y14: =RAV!Y27 -> 676.6881383 | Z14: =RAV!Z27 -> 645.9295865 | AA14: =RAV!AA27 -> 615.1710348 | AB14: =RAV!AB27 -> 584.412483 | AC14: =RAV!AC27 -> 553.6539313 | AD14: =RAV!AD27 -> 522.8953796 | AE14: =RAV!AE27 -> 492.1368278 | AF14: =RAV!AF27 -> 461.3782761 | AG14: =RAV!AG27 -> 430.6197244 | AH14: =RAV!AH27 -> 399.8611726 | AI14: =RAV!AI27 -> 369.1026209 | AJ14: =RAV!AJ27 -> 338.3440691 | AK14: =RAV!AK27 -> 322.5855174 | AL14: =RAV!AL27 -> 290.3269657 | AM14: =RAV!AM27 -> 258.0684139 | AN14: =RAV!AN27 -> 225.8098622 | AO14: =RAV!AO27 -> 193.5513104 | AP14: =RAV!AP27 -> 161.2927587 | AQ14: =RAV!AQ27 -> 129.034207 | AR14: =RAV!AR27 -> 96.77565522 | AS14: =RAV!AS27 -> 64.51710348 | AT14: =RAV!AT27 -> 32.25855174 | AU14: =RAV!AU27 -> 0 | AV14: =RAV!AV27 -> 0 | AW14: =RAV!AW27 -> 0 | AX14: =RAV!AX27 -> 0
E16: NPV neutral return base (cap) | G16: £m 15/16 prices | W16: =0.5 * W$13 + 0.5 * W$14 / (1 + $I10) -> 708.8168108 | X16: =0.5 * X$13 + 0.5 * X$14 / (1 + $I10) -> 696.7000694 | Y16: 667.0774262 | Z16: 637.454783 | AA16: 607.8321398 | AB16: 578.2094966 | AC16: 548.5868534 | AD16: 518.9642102 | AE16: 489.341567 | AF16: 459.7189238 | AG16: 430.0962806 | AH16: 400.4736374 | AI16: 370.8509942 | AJ16: 341.228351 | AK16: 318.5517601 | AL16: 295.7345117 | AM16: 264.6672633 | AN16: 233.6000149 | AO16: 202.5327664 | AP16: 171.465518 | AQ16: 140.3982696 | AR16: 109.3310212 | AS16: 78.26377273 | AT16: 47.1965243 | AU16: 16.12927587 | AV16: 0 | AW16: 0 | AX16: 0
E17: NPV neutral return base (floor) | G17: £m 15/16 prices | W17: =0.5 * W$13 + 0.5 * W$14 / (1 + $I11) -> 732.8588468 | X17: 719.7403538 | Y17: 689.1159591 | Z17: 658.4915644 | AA17: 627.8671697 | AB17: 597.2427751 | AC17: 566.6183804 | AD17: 535.9939857 | AE17: 505.369591 | AF17: 474.7451963 | AG17: 444.1208016 | AH17: 413.4964069 | AI17: 382.8720122 | AJ17: 352.2476175 | AK17: 329.0577985 | AL17: 305.1899463 | AM17: 273.072094 | AN17: 240.9542417 | AO17: 208.8363895 | AP17: 176.7185372 | AQ17: 144.6006849 | AR17: 112.4828327 | AS17: 80.3649804 | AT17: 48.24712814 | AU17: 16.12927587 | AV17: 0 | AW17: 0 | AX17: 0
E19: Post-tax return (cap) | G19: £m 15/16 prices | W19: =W16 * $I10 -> 56.52814066 | X19: =X16 * $I10 -> 55.56183053 | Y19: 53.19942474 | Z19: 50.83701894 | AA19: 48.47461315 | AB19: 46.11220735 | AC19: 43.74980156 | AD19: 41.38739576 | AE19: 39.02498997 | AF19: 36.66258417 | AG19: 34.30017838 | AH19: 31.93777258 | AI19: 29.57536679 | AJ19: 27.21296099 | AK19: 25.40450287 | AL19: 23.58482731 | AM19: 21.10721425 | AN19: 18.62960119 | AO19: 16.15198812 | AP19: 13.67437506 | AQ19: 11.196762 | AR19: 8.719148937 | AS19: 6.241535875 | AT19: 3.763922813 | AU19: 1.286309751 | AV19: 0 | AW19: 0 | AX19: 0
E20: Post-tax return (floor) | G20: £m 15/16 prices | W20: =W17 * $I11 -> 6.449157851 | X20: 6.333715114 | Y20: 6.06422044 | Z20: 5.794725767 | AA20: 5.525231094 | AB20: 5.25573642 | AC20: 4.986241747 | AD20: 4.716747074 | AE20: 4.447252401 | AF20: 4.177757727 | AG20: 3.908263054 | AH20: 3.638768381 | AI20: 3.369273707 | AJ20: 3.099779034 | AK20: 2.895708627 | AL20: 2.685671527 | AM20: 2.403034427 | AN20: 2.120397327 | AO20: 1.837760227 | AP20: 1.555123127 | AQ20: 1.272486027 | AR20: 0.9898489275 | AS20: 0.7072118276 | AT20: 0.4245747276 | AU20: 0.1419376277 | AV20: 0 | AW20: 0 | AX20: 0
C22: Pre-operational IDC
E24: =Input!E42 -> Interest during construction | G24: =Input!G42 -> real annual % | I24: =Input!I42 -> 0.0637
E26: =RAV!E12 -> Opening pre-operational RAV (after transfers) | G26: £m 15/16 prices | K26: =RAV!K12 -> 0 | L26: =RAV!L12 -> 0.3524228046 | M26: =RAV!M12 -> 0.9162445179 | N26: =RAV!N12 -> 7.835177324 | O26: =RAV!O12 -> 9.817213837 | P26: =RAV!P12 -> 14.14831738 | Q26: =RAV!Q12 -> 43.82076052 | R26: =RAV!R12 -> 91.90691318 | S26: =RAV!S12 -> 147.4388349 | T26: =RAV!T12 -> 233.8894267 | U26: =RAV!U12 -> 400.1226936 | V26: =RAV!V12 -> 606.2576922
E27: =Input!E15 -> Development costs | G27: £m 15/16 prices | K27: =Input!K15 -> 0.3418703309 | L27: =Input!L15 -> 0.5251622552 | M27: =Input!M15 -> 6.655144423 | N27: =Input!N15 -> 1.438532687 | O27: =Input!O15 -> 3.594787124 | P27: =Input!P15 -> 0 | Q27: =Input!Q15 -> 0 | R27: =Input!R15 -> 0 | S27: =Input!S15 -> 0 | T27: =Input!T15 -> 0 | U27: =Input!U15 -> 0 | V27: =Input!V15 -> 0
E28: =Input!E16 -> Capex | G28: £m 15/16 prices | K28: =Input!K16 -> 0 | L28: =Input!L16 -> 0 | M28: =Input!M16 -> 0 | N28: =Input!N16 -> 0 | O28: =Input!O16 -> 0 | P28: =Input!P16 -> 27.90970941 | Q28: =Input!Q16 -> 43.93852463 | R28: =Input!R16 -> 48.18997663 | S28: =Input!S16 -> 74.75139496 | T28: =Input!T16 -> 146.8031538 | U28: =Input!U16 -> 175.2381271 | V28: =Input!V16 -> 86.40852052
E29: =Input!E17 -> Spares | G29: £m 15/16 prices | K29: =Input!K17 -> 0 | L29: =Input!L17 -> 0 | M29: =Input!M17 -> 0 | N29: =Input!N17 -> 0 | O29: =Input!O17 -> 0 | P29: =Input!P17 -> 0 | Q29: =Input!Q17 -> 0 | R29: =Input!R17 -> 0 | S29: =Input!S17 -> 0 | T29: =Input!T17 -> 0 | U29: =Input!U17 -> 0 | V29: =Input!V17 -> 0
E31: Capitalised IDC | G31: £m 15/16 prices | K31: =$I24 * (K26 + (K27 + K28 + K29) / (2 + $I24)) -> 0.01055247375 | L31: =$I24 * (L26 + (L27 + L28 + L29) / (2 + $I24)) -> 0.03865945799 | M31: =$I24 * (M26 + (M27 + M28 + M29) / (2 + $I24)) -> 0.2637883837 | N31: =$I24 * (N26 + (N27 + N28 + N29) / (2 + $I24)) -> 0.5435038252 | O31: =$I24 * (O26 + (O27 + O28 + O29) / (2 + $I24)) -> 0.7363164186 | P31: =$I24 * (P26 + (P27 + P28 + P29) / (2 + $I24)) -> 1.762733735 | Q31: 4.147628033 | R31: 7.341945057 | S31: 11.69919683 | T31: =$I24 * (T26 + (T27 + T28 + T29) / (2 + $I24)) -> 19.43011321 | U31: =$I24 * (U26 + (U27 + U28 + U29) / (2 + $I24)) -> 30.8968715 | V31: =$I24 * (V26 + (V27 + V28 + V29) / (2 + $I24)) -> 41.28577725
E33: NPV-equivalent return check | G33: check | K33: =K31 = $I24 * 0.5 * (K26 + RAV!K17 / (1 + $I24)) -> TRUE | L33: =L31 = $I24 * 0.5 * (L26 + RAV!L17 / (1 + $I24)) -> TRUE | M33: =M31 = $I24 * 0.5 * (M26 + RAV!M17 / (1 + $I24)) -> TRUE | N33: =N31 = $I24 * 0.5 * (N26 + RAV!N17 / (1 + $I24)) -> TRUE | O33: =O31 = $I24 * 0.5 * (O26 + RAV!O17 / (1 + $I24)) -> TRUE | P33: =P31 = $I24 * 0.5 * (P26 + RAV!P17 / (1 + $I24)) -> TRUE | Q33: =Q31 = $I24 * 0.5 * (Q26 + RAV!Q17 / (1 + $I24)) -> TRUE | R33: =R31 = $I24 * 0.5 * (R26 + RAV!R17 / (1 + $I24)) -> FALSE | S33: =S31 = $I24 * 0.5 * (S26 + RAV!S17 / (1 + $I24)) -> TRUE | T33: =T31 = $I24 * 0.5 * (T26 + RAV!T17 / (1 + $I24)) -> TRUE | U33: =U31 = $I24 * 0.5 * (U26 + RAV!U17 / (1 + $I24)) -> TRUE | V33: =V31 = $I24 * 0.5 * (V26 + RAV!V17 / (1 + $I24)) -> TRUE
B35: Transaction costs
C37: Opening operational RAV
E39: First operational year | G39: flag | W39: =RAV!W3 = 1 -> TRUE | X39: =RAV!X3 = 1 -> FALSE | Y39: =RAV!Y3 = 1 -> FALSE | Z39: =RAV!Z3 = 1 -> FALSE | AA39: =RAV!AA3 = 1 -> FALSE | AB39: =RAV!AB3 = 1 -> FALSE | AC39: =RAV!AC3 = 1 -> FALSE | AD39: =RAV!AD3 = 1 -> FALSE | AE39: =RAV!AE3 = 1 -> FALSE | AF39: =RAV!AF3 = 1 -> FALSE | AG39: =RAV!AG3 = 1 -> FALSE | AH39: =RAV!AH3 = 1 -> FALSE | AI39: =RAV!AI3 = 1 -> FALSE | AJ39: =RAV!AJ3 = 1 -> FALSE | AK39: =RAV!AK3 = 1 -> FALSE | AL39: =RAV!AL3 = 1 -> FALSE | AM39: =RAV!AM3 = 1 -> FALSE | AN39: =RAV!AN3 = 1 -> FALSE | AO39: =RAV!AO3 = 1 -> FALSE | AP39: =RAV!AP3 = 1 -> FALSE | AQ39: =RAV!AQ3 = 1 -> FALSE | AR39: =RAV!AR3 = 1 -> FALSE | AS39: =RAV!AS3 = 1 -> FALSE | AT39: =RAV!AT3 = 1 -> FALSE | AU39: =RAV!AU3 = 1 -> FALSE | AV39: =RAV!AV3 = 1 -> FALSE | AW39: =RAV!AW3 = 1 -> FALSE | AX39: =RAV!AX3 = 1 -> FALSE
E40: =RAV!E23 -> Opening operational RAV (after transfers) | G40: £m 15/16 prices | W40: =RAV!W23 -> 733.95199 | X40: =RAV!X23 -> 738.2052417 | Y40: =RAV!Y23 -> 707.44669 | Z40: =RAV!Z23 -> 676.6881383 | AA40: =RAV!AA23 -> 645.9295865 | AB40: =RAV!AB23 -> 615.1710348 | AC40: =RAV!AC23 -> 584.412483 | AD40: =RAV!AD23 -> 553.6539313 | AE40: =RAV!AE23 -> 522.8953796 | AF40: =RAV!AF23 -> 492.1368278 | AG40: =RAV!AG23 -> 461.3782761 | AH40: =RAV!AH23 -> 430.6197244 | AI40: =RAV!AI23 -> 399.8611726 | AJ40: =RAV!AJ23 -> 369.1026209 | AK40: =RAV!AK23 -> 338.3440691 | AL40: =RAV!AL23 -> 322.5855174 | AM40: =RAV!AM23 -> 290.3269657 | AN40: =RAV!AN23 -> 258.0684139 | AO40: =RAV!AO23 -> 225.8098622 | AP40: =RAV!AP23 -> 193.5513104 | AQ40: =RAV!AQ23 -> 161.2927587 | AR40: =RAV!AR23 -> 129.034207 | AS40: =RAV!AS23 -> 96.77565522 | AT40: =RAV!AT23 -> 64.51710348 | AU40: =RAV!AU23 -> 32.25855174 | AV40: =RAV!AV23 -> 0 | AW40: =RAV!AW23 -> 0 | AX40: =RAV!AX23 -> 0
E42: Opening operational RAV at start of operations | G42: £m 15/16 prices | W42: =W39 * W40 -> 733.95199 | X42: 0 | Y42: 0 | Z42: 0 | AA42: 0 | AB42: 0 | AC42: 0 | AD42: 0 | AE42: 0 | AF42: 0 | AG42: 0 | AH42: 0 | AI42: 0 | AJ42: 0 | AK42: 0 | AL42: 0 | AM42: 0 | AN42: 0 | AO42: 0 | AP42: 0 | AQ42: 0 | AR42: 0 | AS42: 0 | AT42: 0 | AU42: 0 | AV42: 0 | AW42: 0 | AX42: 0
C44: Transaction costs
E46: =Input!E44 -> Pre-operational notional gearing | G46: =Input!G44 -> % | I46: =Input!I44 -> 0.3341
E47: =Input!E45 -> Operational notional gearing | G47: =Input!G45 -> % | I47: =Input!I45 -> 0.5
E49: Share of RAV for debt transaction costs | G49: % | I49: =MAX(I46, I47) -> 0.5
E50: Share of RAV for equity transaction costs | G50: % | I50: =MAX(1 - I46,1 - I47) -> 0.6659
E52: =Input!E48 -> Debt transaction costs | G52: =Input!G48 -> % | I52: =Input!I48 -> 0.025
E53: =Input!E47 -> Equity transaction costs | G53: =Input!G47 -> % | I53: =Input!I47 -> 0.05
E55: Blended transaction costs | G55: % | I55: =I49 * I52 + I50 * I53 -> 0.045795
C57: Allowance
E59: Debt transaction costs | G59: £m 15/16 prices | W59: =$I49 * $I52 * W$42 -> 9.174399875 | X59: =$I49 * $I52 * X$42 -> 0 | Y59: 0 | Z59: 0 | AA59: 0 | AB59: 0 | AC59: 0 | AD59: 0 | AE59: 0 | AF59: 0 | AG59: 0 | AH59: 0 | AI59: 0 | AJ59: 0 | AK59: 0 | AL59: 0 | AM59: 0 | AN59: 0 | AO59: 0 | AP59: 0 | AQ59: 0 | AR59: 0 | AS59: 0 | AT59: 0 | AU59: 0 | AV59: 0 | AW59: 0 | AX59: 0
E60: Equity transaction costs | G60: £m 15/16 prices | W60: =$I50 * $I53 * W$42 -> 24.43693151 | X60: =$I50 * $I53 * X$42 -> 0 | Y60: 0 | Z60: 0 | AA60: 0 | AB60: 0 | AC60: 0 | AD60: 0 | AE60: 0 | AF60: 0 | AG60: 0 | AH60: 0 | AI60: 0 | AJ60: 0 | AK60: 0 | AL60: 0 | AM60: 0 | AN60: 0 | AO60: 0 | AP60: 0 | AQ60: 0 | AR60: 0 | AS60: 0 | AT60: 0 | AU60: 0 | AV60: 0 | AW60: 0 | AX60: 0
E61: Transaction costs | G61: £m 15/16 prices | W61: =SUM(W59:W60) -> 33.61133138 | X61: =SUM(X59:X60) -> 0 | Y61: 0 | Z61: 0 | AA61: 0 | AB61: 0 | AC61: 0 | AD61: 0 | AE61: 0 | AF61: 0 | AG61: 0 | AH61: 0 | AI61: 0 | AJ61: 0 | AK61: 0 | AL61: 0 | AM61: 0 | AN61: 0 | AO61: 0 | AP61: 0 | AQ61: 0 | AR61: 0 | AS61: 0 | AT61: 0 | AU61: 0 | AV61: 0 | AW61: 0 | AX61: 0
B63: Inflation
C65: Ex ante forecast
E67: =Input!E78 -> Expected UK RPI inflation | G67: =Input!G78 -> % | I67: =Input!I78 -> 0.0271
E69: =Input!E80 -> 2015/16 RPI inflation index value (CHAW) | G69: =Input!G80 -> Jan 1987 = 100 | I69: =Input!I80 -> 259.217
E70: Forecast GB inflation index | G70: Jan 1987 = 100 | K70: =Input!K81 -> 226.475 | L70: =Input!L81 -> 237.342 | M70: =Input!M81 -> 244.675 | N70: =Input!N81 -> 251.733 | O70: =Input!O81 -> 256.667 | P70: =Input!P81 -> 259.217 | Q70: =Input!Q81 -> 266.2417807 | R70: =Q70 * (1 + $I67) -> 273.456933 | S70: =R70 * (1 + $I67) -> 280.8676158 | T70: 288.4791282 | U70: 296.2969126 | V70: 304.3265589 | W70: 312.5738087 | X70: 321.0445589 | Y70: 329.7448664 | Z70: 338.6809523 | AA70: 347.8592061 | AB70: 357.2861906 | AC70: 366.9686464 | AD70: 376.9134967 | AE70: 387.1278525 | AF70: 397.6190173 | AG70: 408.3944926 | AH70: 419.4619834 | AI70: 430.8294031 | AJ70: 442.50488 | AK70: 454.4967622 | AL70: 466.8136245 | AM70: 479.4642737 | AN70: 492.4577555 | AO70: 505.8033607 | AP70: 519.5106317 | AQ70: 533.5893699 | AR70: 548.0496418 | AS70: 562.9017871 | AT70: 578.1564255 | AU70: 593.8244646 | AV70: 609.9171076 | AW70: 626.4458613 | AX70: 643.4225441
E71: GB inflation uplift (forecast) | G71: scalar | K71: =K70 / $I$75 -> 0.8736888399 | L71: =L70 / $I$75 -> 0.9156112446 | M71: 0.9439002843 | N71: 0.9711284368 | O71: 0.9901626822 | P71: =P70 / $I$75 -> 1 | Q71: 1.0271 | R71: 1.05493441 | S71: 1.083523133 | T71: =T70 / $I$75 -> 1.112886609 | U71: 1.143045837 | V71: 1.174022379 | W71: 1.205838385 | X71: 1.238516605 | Y71: 1.272080405 | Z71: 1.306553784 | AA71: 1.341961392 | AB71: 1.378328546 | AC71: 1.415681249 | AD71: 1.454046211 | AE71: 1.493450863 | AF71: 1.533923382 | AG71: 1.575492705 | AH71: 1.618188558 | AI71: =AI70 / $I$75 -> 1.662041468 | AJ71: 1.707082791 | AK71: 1.753344735 | AL71: 1.800860377 | AM71: 1.849663694 | AN71: 1.89978958 | AO71: 1.951273877 | AP71: 2.004153399 | AQ71: 2.058465957 | AR71: 2.114250384 | AS71: 2.171546569 | AT71: 2.230395481 | AU71: 2.290839199 | AV71: 2.352920941 | AW71: 2.416685099 | AX71: 2.482177265
C73: Ex post actuals
E75: =E69 -> 2015/16 RPI inflation index value (CHAW) | G75: =G69 -> Jan 1987 = 100 | I75: =I69 -> 259.217
E76: =Input!E13 -> UK RPI inflation index value (CHAW) | G76: =Input!G13 -> Jan 1987 = 100 | W76: =Input!W13 -> 312.5738087 | X76: =Input!X13 -> 321.0445589 | Y76: =Input!Y13 -> 329.7448664 | Z76: =Input!Z13 -> 338.6809523 | AA76: =Input!AA13 -> 347.8592061 | AB76: =Input!AB13 -> 357.2861906 | AC76: =Input!AC13 -> 366.9686464 | AD76: =Input!AD13 -> 376.9134967 | AE76: =Input!AE13 -> 387.1278525 | AF76: =Input!AF13 -> 397.6190173 | AG76: =Input!AG13 -> 408.3944926 | AH76: =Input!AH13 -> 419.4619834 | AI76: =Input!AI13 -> 430.8294031 | AJ76: =Input!AJ13 -> 442.50488 | AK76: =Input!AK13 -> 454.4967622 | AL76: =Input!AL13 -> 466.8136245 | AM76: =Input!AM13 -> 479.4642737 | AN76: =Input!AN13 -> 492.4577555 | AO76: =Input!AO13 -> 505.8033607 | AP76: =Input!AP13 -> 519.5106317 | AQ76: =Input!AQ13 -> 533.5893699 | AR76: =Input!AR13 -> 548.0496418 | AS76: =Input!AS13 -> 562.9017871 | AT76: =Input!AT13 -> 578.1564255 | AU76: =Input!AU13 -> 593.8244646 | AV76: =Input!AV13 -> 609.9171076 | AW76: =Input!AW13 -> 626.4458613 | AX76: =Input!AX13 -> 643.4225441
E77: GB inflation uplift (actual) | G77: scalar | W77: =W76 / $I75 -> 1.205838385 | X77: =X76 / $I75 -> 1.238516605 | Y77: 1.272080405 | Z77: 1.306553784 | AA77: 1.341961392 | AB77: 1.378328546 | AC77: 1.415681249 | AD77: 1.454046211 | AE77: 1.493450863 | AF77: 1.533923382 | AG77: 1.575492705 | AH77: 1.618188558 | AI77: 1.662041468 | AJ77: 1.707082791 | AK77: 1.753344735 | AL77: 1.800860377 | AM77: 1.849663694 | AN77: 1.89978958 | AO77: 1.951273877 | AP77: 2.004153399 | AQ77: 2.058465957 | AR77: 2.114250384 | AS77: 2.171546569 | AT77: 2.230395481 | AU77: 2.290839199 | AV77: 2.352920941 | AW77: 2.416685099 | AX77: 2.482177265
B87: End of sheet

Sheet AllowancesCap
A1: AllowancesCap | H1: Licence
E2: Parameter | G2: Units | H2: Terminology | I2: Constant | K2: Annual values
E3: Project year | K3: =Input!K3 -> -11 | L3: =K3 + 1 -> -10 | M3: -9 | N3: -8 | O3: -7 | P3: -6 | Q3: -5 | R3: -4 | S3: -3 | T3: -2 | U3: -1 | V3: 0 | W3: 1 | X3: 2 | Y3: 3 | Z3: 4 | AA3: 5 | AB3: 6 | AC3: 7 | AD3: 8 | AE3: 9 | AF3: 10 | AG3: 11 | AH3: 12 | AI3: 13 | AJ3: 14 | AK3: 15 | AL3: 16 | AM3: 17 | AN3: 18 | AO3: 19 | AP3: 20 | AQ3: 21 | AR3: 22 | AS3: 23 | AT3: 24 | AU3: 25 | AV3: 26 | AW3: 27 | AX3: 28
E4: Year ending | K4: =Input!K4 -> 2010-12-31 | L4: =DATE(YEAR(K4) + 1, MONTH(K4), DAY(K4)) -> 2011-12-31 | M4: 2012-12-31 | N4: 2013-12-31 | O4: 2014-12-31 | P4: 2015-12-31 | Q4: 2016-12-31 | R4: 2017-12-31 | S4: 2018-12-31 | T4: 2019-12-31 | U4: 2020-12-31 | V4: 2021-12-31 | W4: 2022-12-31 | X4: 2023-12-31 | Y4: 2024-12-31 | Z4: 2025-12-31 | AA4: 2026-12-31 | AB4: 2027-12-31 | AC4: 2028-12-31 | AD4: 2029-12-31 | AE4: 2030-12-31 | AF4: 2031-12-31 | AG4: 2032-12-31 | AH4: 2033-12-31 | AI4: 2034-12-31 | AJ4: 2035-12-31 | AK4: 2036-12-31 | AL4: 2037-12-31 | AM4: 2038-12-31 | AN4: 2039-12-31 | AO4: 2040-12-31 | AP4: 2041-12-31 | AQ4: 2042-12-31 | AR4: 2043-12-31 | AS4: 2044-12-31 | AT4: 2045-12-31 | AU4: 2046-12-31 | AV4: 2047-12-31 | AW4: 2048-12-31 | AX4: 2049-12-31
B6: Unprofiled allowances except tax (cap)
E8: =Input!E31 -> Controllable opex | G8: £m 15/16 prices | W8: =Input!W31 -> 15.2848 | X8: =Input!X31 -> 15.2848 | Y8: =Input!Y31 -> 15.2848 | Z8: =Input!Z31 -> 15.2848 | AA8: =Input!AA31 -> 15.2848 | AB8: =Input!AB31 -> 15.2848 | AC8: =Input!AC31 -> 15.2848 | AD8: =Input!AD31 -> 15.2848 | AE8: =Input!AE31 -> 15.2848 | AF8: =Input!AF31 -> 15.2848 | AG8: =Input!AG31 -> 15.2848 | AH8: =Input!AH31 -> 15.2848 | AI8: =Input!AI31 -> 15.2848 | AJ8: =Input!AJ31 -> 15.2848 | AK8: =Input!AK31 -> 15.2848 | AL8: =Input!AL31 -> 15.2848 | AM8: =Input!AM31 -> 15.2848 | AN8: =Input!AN31 -> 15.2848 | AO8: =Input!AO31 -> 15.2848 | AP8: =Input!AP31 -> 15.2848 | AQ8: =Input!AQ31 -> 15.2848 | AR8: =Input!AR31 -> 15.2848 | AS8: =Input!AS31 -> 15.2848 | AT8: =Input!AT31 -> 15.2848 | AU8: =Input!AU31 -> 15.2848 | AV8: =Input!AV31 -> 0 | AW8: =Input!AW31 -> 0 | AX8: =Input!AX31 -> 0
E9: =Input!E32 -> Non-controllable opex (baseline) | G9: £m 15/16 prices | W9: =Input!W32 -> 0 | X9: =Input!X32 -> 0 | Y9: =Input!Y32 -> 0 | Z9: =Input!Z32 -> 0 | AA9: =Input!AA32 -> 0 | AB9: =Input!AB32 -> 0 | AC9: =Input!AC32 -> 0 | AD9: =Input!AD32 -> 0 | AE9: =Input!AE32 -> 0 | AF9: =Input!AF32 -> 0 | AG9: =Input!AG32 -> 0 | AH9: =Input!AH32 -> 0 | AI9: =Input!AI32 -> 0 | AJ9: =Input!AJ32 -> 0 | AK9: =Input!AK32 -> 0 | AL9: =Input!AL32 -> 0 | AM9: =Input!AM32 -> 0 | AN9: =Input!AN32 -> 0 | AO9: =Input!AO32 -> 0 | AP9: =Input!AP32 -> 0 | AQ9: =Input!AQ32 -> 0 | AR9: =Input!AR32 -> 0 | AS9: =Input!AS32 -> 0 | AT9: =Input!AT32 -> 0 | AU9: =Input!AU32 -> 0 | AV9: =Input!AV32 -> 0 | AW9: =Input!AW32 -> 0 | AX9: =Input!AX32 -> 0
E10: Opex re-assessment adjustment | G10: £m 15/16 prices | AG10: =Input!AG33 -> 0 | AH10: =Input!AH33 -> 0 | AI10: =Input!AI33 -> 0 | AJ10: =Input!AJ33 -> 0 | AK10: =Input!AK33 -> 0 | AL10: =Input!AL33 -> 0 | AM10: =Input!AM33 -> 0 | AN10: =Input!AN33 -> 0 | AO10: =Input!AO33 -> 0 | AP10: =Input!AP33 -> 0 | AQ10: =Input!AQ33 -> 0 | AR10: =Input!AR33 -> 0 | AS10: =Input!AS33 -> 0 | AT10: =Input!AT33 -> 0 | AU10: =Input!AU33 -> 0 | AV10: =Input!AV33 -> 0 | AW10: =Input!AW33 -> 0 | AX10: =Input!AX33 -> 0
E11: =Input!E30 -> Decommissioning baseline / actual | G11: £m 15/16 prices | W11: =Input!W30 -> 0 | X11: =Input!X30 -> 0 | Y11: =Input!Y30 -> 0 | Z11: =Input!Z30 -> 0 | AA11: =Input!AA30 -> 0 | AB11: =Input!AB30 -> 0 | AC11: =Input!AC30 -> 0 | AD11: =Input!AD30 -> 0 | AE11: =Input!AE30 -> 0 | AF11: =Input!AF30 -> 0 | AG11: =Input!AG30 -> 0 | AH11: =Input!AH30 -> 0 | AI11: =Input!AI30 -> 0 | AJ11: =Input!AJ30 -> 0 | AK11: =Input!AK30 -> 0 | AL11: =Input!AL30 -> 0 | AM11: =Input!AM30 -> 0 | AN11: =Input!AN30 -> 0 | AO11: =Input!AO30 -> 0 | AP11: =Input!AP30 -> 0 | AQ11: =Input!AQ30 -> 0 | AR11: =Input!AR30 -> 0 | AS11: =Input!AS30 -> 0 | AT11: =Input!AT30 -> 0 | AU11: =Input!AU30 -> 6.5 | AV11: =Input!AV30 -> 0 | AW11: =Input!AW30 -> 0 | AX11: =Input!AX30 -> 0
E12: =RAV!E37 -> RAV depreciation | G12: £m 15/16 prices | W12: =RAV!W37 -> 29.3580796 | X12: =RAV!X37 -> 30.75855174 | Y12: =RAV!Y37 -> 30.75855174 | Z12: =RAV!Z37 -> 30.75855174 | AA12: =RAV!AA37 -> 30.75855174 | AB12: =RAV!AB37 -> 30.75855174 | AC12: =RAV!AC37 -> 30.75855174 | AD12: =RAV!AD37 -> 30.75855174 | AE12: =RAV!AE37 -> 30.75855174 | AF12: =RAV!AF37 -> 30.75855174 | AG12: =RAV!AG37 -> 30.75855174 | AH12: =RAV!AH37 -> 30.75855174 | AI12: =RAV!AI37 -> 30.75855174 | AJ12: =RAV!AJ37 -> 30.75855174 | AK12: =RAV!AK37 -> 30.75855174 | AL12: =RAV!AL37 -> 32.25855174 | AM12: =RAV!AM37 -> 32.25855174 | AN12: =RAV!AN37 -> 32.25855174 | AO12: =RAV!AO37 -> 32.25855174 | AP12: =RAV!AP37 -> 32.25855174 | AQ12: =RAV!AQ37 -> 32.25855174 | AR12: =RAV!AR37 -> 32.25855174 | AS12: =RAV!AS37 -> 32.25855174 | AT12: =RAV!AT37 -> 32.25855174 | AU12: =RAV!AU37 -> 32.25855174 | AV12: =RAV!AV37 -> 0 | AW12: =RAV!AW37 -> 0 | AX12: =RAV!AX37 -> 0
E13: =Finance!E19 -> Post-tax return (cap) | G13: £m 15/16 prices | W13: =Finance!W19 -> 56.52814066 | X13: =Finance!X19 -> 55.56183053 | Y13: =Finance!Y19 -> 53.19942474 | Z13: =Finance!Z19 -> 50.83701894 | AA13: =Finance!AA19 -> 48.47461315 | AB13: =Finance!AB19 -> 46.11220735 | AC13: =Finance!AC19 -> 43.74980156 | AD13: =Finance!AD19 -> 41.38739576 | AE13: =Finance!AE19 -> 39.02498997 | AF13: =Finance!AF19 -> 36.66258417 | AG13: =Finance!AG19 -> 34.30017838 | AH13: =Finance!AH19 -> 31.93777258 | AI13: =Finance!AI19 -> 29.57536679 | AJ13: =Finance!AJ19 -> 27.21296099 | AK13: =Finance!AK19 -> 25.40450287 | AL13: =Finance!AL19 -> 23.58482731 | AM13: =Finance!AM19 -> 21.10721425 | AN13: =Finance!AN19 -> 18.62960119 | AO13: =Finance!AO19 -> 16.15198812 | AP13: =Finance!AP19 -> 13.67437506 | AQ13: =Finance!AQ19 -> 11.196762 | AR13: =Finance!AR19 -> 8.719148937 | AS13: =Finance!AS19 -> 6.241535875 | AT13: =Finance!AT19 -> 3.763922813 | AU13: =Finance!AU19 -> 1.286309751 | AV13: =Finance!AV19 -> 0 | AW13: =Finance!AW19 -> 0 | AX13: =Finance!AX19 -> 0
E14: Unprofiled allowances except tax (cap) | G14: £m 15/16 prices | W14: =SUM(W8:W13) -> 101.1710203 | X14: =SUM(X8:X13) -> 101.6051823 | Y14: 99.24277648 | Z14: 96.88037068 | AA14: 94.51796489 | AB14: 92.15555909 | AC14: 89.7931533 | AD14: 87.4307475 | AE14: 85.06834171 | AF14: 82.70593591 | AG14: 80.34353012 | AH14: 77.98112432 | AI14: 75.61871853 | AJ14: 73.25631273 | AK14: 71.44785461 | AL14: 71.12817905 | AM14: 68.65056599 | AN14: 66.17295292 | AO14: 63.69533986 | AP14: 61.2177268 | AQ14: 58.74011374 | AR14: 56.26250068 | AS14: 53.78488761 | AT14: 51.30727455 | AU14: 55.32966149 | AV14: 0 | AW14: 0 | AX14: 0
B16: Profiled allowances except tax (cap)
C18: Annuity parameters
E20: =Input!E39 -> Cap returns | G20: =Input!G39 -> real annual % | I20: =Input!I39 -> 0.07975
E21: =Input!E89 -> Number of operational years | G21: =Input!G89 -> full years | I21: =Input!I89 -> 25
E22: Annuity factor (cap) | G22: scalar | I22: =I20 / (1 - (1 + I20)^(-I21)) -> 0.09347880861
E24: Year is within operational period | G24: flag | W24: =AND(W3 > 0, W3<= $I21) -> TRUE | X24: =AND(X3 > 0, X3<= $I21) -> TRUE | Y24: TRUE | Z24: TRUE | AA24: TRUE | AB24: TRUE | AC24: TRUE | AD24: TRUE | AE24: TRUE | AF24: TRUE | AG24: TRUE | AH24: TRUE | AI24: TRUE | AJ24: TRUE | AK24: TRUE | AL24: TRUE | AM24: TRUE | AN24: TRUE | AO24: TRUE | AP24: TRUE | AQ24: TRUE | AR24: TRUE | AS24: TRUE | AT24: TRUE | AU24: TRUE | AV24: FALSE | AW24: FALSE | AX24: FALSE
E25: Discount factor to start of operational period (cap) | G25: scalar | W25: =(1 + $I20) ^ - W3 -> 0.9261403103 | X25: =(1 + $I20) ^ - X3 -> 0.8577358743 | Y25: 0.7943837687 | Z25: 0.73571083 | AA25: 0.6813714564 | AB25: 0.631045572 | AC25: 0.5844367419 | AD25: 0.5412704254 | AE25: 0.5012923597 | AF25: 0.4642670616 | AG25: 0.4299764405 | AH25: 0.398218514 | AI25: 0.3688062181 | AJ25: 0.3415663052 | AK25: 0.3163383239 | AL25: 0.2929736734 | AM25: 0.2713347288 | AN25: 0.2512940299 | AO25: 0.2327335308 | AP25: 0.2155439045 | AQ25: 0.1996238986 | AR25: 0.1848797393 | AS25: 0.1712245792 | AT25: 0.1585779849 | AU25: 0.1468654641 | AV25: 0.1360180265 | AW25: 0.1259717773 | AX25: 0.1166675409
C27: Allowances except tax
E29: Discounted unprofiled allowances except tax (cap) | G29: £m 15/16 prices | W29: =W14 * W$25 -> 93.69856009 | X29: =X14 * X$25 -> 87.15040985 | Y29: 78.8368508 | Z29: 71.27593793 | AA29: 64.40184339 | AB29: 58.1543575 | AC29: 52.47841795 | AD29: 47.3236779 | AE29: 42.64410975 | AF29: 38.39764184 | AG29: 34.54582509 | AH29: 31.05352744 | AI29: 27.8886536 | AJ29: 25.02188807 | AK29: 22.60169457 | AL29: 20.8386839 | AM29: 18.62728271 | AN29: 16.62886801 | AO29: 14.82404134 | AP29: 13.19510786 | AQ29: 11.72593051 | AR29: 10.40179646 | AS29: 9.209294747 | AT29: 8.136204207 | AU29: 8.126016413 | AV29: 0 | AW29: 0 | AX29: 0
E30: NPV of allowances except tax (cap) | G30: £m 15/16 prices | I30: =SUM(P29:AX29) -> 907.1866219
E32: =E$22 -> Annuity factor (cap) | G32: =G$22 -> scalar | I32: =I$22 -> 0.09347880861
E34: Annuity of allowances except tax (cap) | G34: £m 15/16 prices | I34: =I30 * I32 -> 84.80272461
E35: Annuitised allowances except tax (cap) | G35: £m 15/16 prices | W35: =W$24 * $I34 -> 84.80272461 | X35: 84.80272461 | Y35: 84.80272461 | Z35: 84.80272461 | AA35: 84.80272461 | AB35: 84.80272461 | AC35: 84.80272461 | AD35: 84.80272461 | AE35: 84.80272461 | AF35: 84.80272461 | AG35: 84.80272461 | AH35: 84.80272461 | AI35: 84.80272461 | AJ35: 84.80272461 | AK35: 84.80272461 | AL35: 84.80272461 | AM35: 84.80272461 | AN35: 84.80272461 | AO35: 84.80272461 | AP35: 84.80272461 | AQ35: 84.80272461 | AR35: 84.80272461 | AS35: 84.80272461 | AT35: 84.80272461 | AU35: 84.80272461 | AV35: 0 | AW35: 0 | AX35: 0
B37: End of sheet

Sheet AllowancesFloor
A1: AllowancesFloor | H1: Licence
E2: Parameter | G2: Units | H2: Terminology | I2: Constant | K2: Annual values
E3: Project year | K3: =Input!K3 -> -11 | L3: =K3 + 1 -> -10 | M3: -9 | N3: -8 | O3: -7 | P3: -6 | Q3: -5 | R3: -4 | S3: -3 | T3: -2 | U3: -1 | V3: 0 | W3: 1 | X3: 2 | Y3: 3 | Z3: 4 | AA3: 5 | AB3: 6 | AC3: 7 | AD3: 8 | AE3: 9 | AF3: 10 | AG3: 11 | AH3: 12 | AI3: 13 | AJ3: 14 | AK3: 15 | AL3: 16 | AM3: 17 | AN3: 18 | AO3: 19 | AP3: 20 | AQ3: 21 | AR3: 22 | AS3: 23 | AT3: 24 | AU3: 25 | AV3: 26 | AW3: 27 | AX3: 28
E4: Year ending | K4: =Input!K4 -> 2010-12-31 | L4: =DATE(YEAR(K4) + 1, MONTH(K4), DAY(K4)) -> 2011-12-31 | M4: 2012-12-31 | N4: 2013-12-31 | O4: 2014-12-31 | P4: 2015-12-31 | Q4: 2016-12-31 | R4: 2017-12-31 | S4: 2018-12-31 | T4: 2019-12-31 | U4: 2020-12-31 | V4: 2021-12-31 | W4: 2022-12-31 | X4: 2023-12-31 | Y4: 2024-12-31 | Z4: 2025-12-31 | AA4: 2026-12-31 | AB4: 2027-12-31 | AC4: 2028-12-31 | AD4: 2029-12-31 | AE4: 2030-12-31 | AF4: 2031-12-31 | AG4: 2032-12-31 | AH4: 2033-12-31 | AI4: 2034-12-31 | AJ4: 2035-12-31 | AK4: 2036-12-31 | AL4: 2037-12-31 | AM4: 2038-12-31 | AN4: 2039-12-31 | AO4: 2040-12-31 | AP4: 2041-12-31 | AQ4: 2042-12-31 | AR4: 2043-12-31 | AS4: 2044-12-31 | AT4: 2045-12-31 | AU4: 2046-12-31 | AV4: 2047-12-31 | AW4: 2048-12-31 | AX4: 2049-12-31
B6: Unprofiled allowances except tax (floor)
E8: =Input!E31 -> Controllable opex | G8: £m 15/16 prices | W8: =Input!W31 -> 15.2848 | X8: =Input!X31 -> 15.2848 | Y8: =Input!Y31 -> 15.2848 | Z8: =Input!Z31 -> 15.2848 | AA8: =Input!AA31 -> 15.2848 | AB8: =Input!AB31 -> 15.2848 | AC8: =Input!AC31 -> 15.2848 | AD8: =Input!AD31 -> 15.2848 | AE8: =Input!AE31 -> 15.2848 | AF8: =Input!AF31 -> 15.2848 | AG8: =Input!AG31 -> 15.2848 | AH8: =Input!AH31 -> 15.2848 | AI8: =Input!AI31 -> 15.2848 | AJ8: =Input!AJ31 -> 15.2848 | AK8: =Input!AK31 -> 15.2848 | AL8: =Input!AL31 -> 15.2848 | AM8: =Input!AM31 -> 15.2848 | AN8: =Input!AN31 -> 15.2848 | AO8: =Input!AO31 -> 15.2848 | AP8: =Input!AP31 -> 15.2848 | AQ8: =Input!AQ31 -> 15.2848 | AR8: =Input!AR31 -> 15.2848 | AS8: =Input!AS31 -> 15.2848 | AT8: =Input!AT31 -> 15.2848 | AU8: =Input!AU31 -> 15.2848 | AV8: =Input!AV31 -> 0 | AW8: =Input!AW31 -> 0 | AX8: =Input!AX31 -> 0
E9: =Input!E32 -> Non-controllable opex (baseline) | G9: £m 15/16 prices | W9: =Input!W32 -> 0 | X9: =Input!X32 -> 0 | Y9: =Input!Y32 -> 0 | Z9: =Input!Z32 -> 0 | AA9: =Input!AA32 -> 0 | AB9: =Input!AB32 -> 0 | AC9: =Input!AC32 -> 0 | AD9: =Input!AD32 -> 0 | AE9: =Input!AE32 -> 0 | AF9: =Input!AF32 -> 0 | AG9: =Input!AG32 -> 0 | AH9: =Input!AH32 -> 0 | AI9: =Input!AI32 -> 0 | AJ9: =Input!AJ32 -> 0 | AK9: =Input!AK32 -> 0 | AL9: =Input!AL32 -> 0 | AM9: =Input!AM32 -> 0 | AN9: =Input!AN32 -> 0 | AO9: =Input!AO32 -> 0 | AP9: =Input!AP32 -> 0 | AQ9: =Input!AQ32 -> 0 | AR9: =Input!AR32 -> 0 | AS9: =Input!AS32 -> 0 | AT9: =Input!AT32 -> 0 | AU9: =Input!AU32 -> 0 | AV9: =Input!AV32 -> 0 | AW9: =Input!AW32 -> 0 | AX9: =Input!AX32 -> 0
E10: Opex re-assessment adjustment | G10: £m 15/16 prices | AG10: =Input!AG33 -> 0 | AH10: =Input!AH33 -> 0 | AI10: =Input!AI33 -> 0 | AJ10: =Input!AJ33 -> 0 | AK10: =Input!AK33 -> 0 | AL10: =Input!AL33 -> 0 | AM10: =Input!AM33 -> 0 | AN10: =Input!AN33 -> 0 | AO10: =Input!AO33 -> 0 | AP10: =Input!AP33 -> 0 | AQ10: =Input!AQ33 -> 0 | AR10: =Input!AR33 -> 0 | AS10: =Input!AS33 -> 0 | AT10: =Input!AT33 -> 0 | AU10: =Input!AU33 -> 0 | AV10: =Input!AV33 -> 0 | AW10: =Input!AW33 -> 0 | AX10: =Input!AX33 -> 0
E11: =Input!E30 -> Decommissioning baseline / actual | G11: £m 15/16 prices | W11: =Input!W30 -> 0 | X11: =Input!X30 -> 0 | Y11: =Input!Y30 -> 0 | Z11: =Input!Z30 -> 0 | AA11: =Input!AA30 -> 0 | AB11: =Input!AB30 -> 0 | AC11: =Input!AC30 -> 0 | AD11: =Input!AD30 -> 0 | AE11: =Input!AE30 -> 0 | AF11: =Input!AF30 -> 0 | AG11: =Input!AG30 -> 0 | AH11: =Input!AH30 -> 0 | AI11: =Input!AI30 -> 0 | AJ11: =Input!AJ30 -> 0 | AK11: =Input!AK30 -> 0 | AL11: =Input!AL30 -> 0 | AM11: =Input!AM30 -> 0 | AN11: =Input!AN30 -> 0 | AO11: =Input!AO30 -> 0 | AP11: =Input!AP30 -> 0 | AQ11: =Input!AQ30 -> 0 | AR11: =Input!AR30 -> 0 | AS11: =Input!AS30 -> 0 | AT11: =Input!AT30 -> 0 | AU11: =Input!AU30 -> 6.5 | AV11: =Input!AV30 -> 0 | AW11: =Input!AW30 -> 0 | AX11: =Input!AX30 -> 0
E12: =RAV!E37 -> RAV depreciation | G12: £m 15/16 prices | W12: =RAV!W37 -> 29.3580796 | X12: =RAV!X37 -> 30.75855174 | Y12: =RAV!Y37 -> 30.75855174 | Z12: =RAV!Z37 -> 30.75855174 | AA12: =RAV!AA37 -> 30.75855174 | AB12: =RAV!AB37 -> 30.75855174 | AC12: =RAV!AC37 -> 30.75855174 | AD12: =RAV!AD37 -> 30.75855174 | AE12: =RAV!AE37 -> 30.75855174 | AF12: =RAV!AF37 -> 30.75855174 | AG12: =RAV!AG37 -> 30.75855174 | AH12: =RAV!AH37 -> 30.75855174 | AI12: =RAV!AI37 -> 30.75855174 | AJ12: =RAV!AJ37 -> 30.75855174 | AK12: =RAV!AK37 -> 30.75855174 | AL12: =RAV!AL37 -> 32.25855174 | AM12: =RAV!AM37 -> 32.25855174 | AN12: =RAV!AN37 -> 32.25855174 | AO12: =RAV!AO37 -> 32.25855174 | AP12: =RAV!AP37 -> 32.25855174 | AQ12: =RAV!AQ37 -> 32.25855174 | AR12: =RAV!AR37 -> 32.25855174 | AS12: =RAV!AS37 -> 32.25855174 | AT12: =RAV!AT37 -> 32.25855174 | AU12: =RAV!AU37 -> 32.25855174 | AV12: =RAV!AV37 -> 0 | AW12: =RAV!AW37 -> 0 | AX12: =RAV!AX37 -> 0
E13: =Finance!E20 -> Post-tax return (floor) | G13: £m 15/16 prices | W13: =Finance!W20 -> 6.449157851 | X13: =Finance!X20 -> 6.333715114 | Y13: =Finance!Y20 -> 6.06422044 | Z13: =Finance!Z20 -> 5.794725767 | AA13: =Finance!AA20 -> 5.525231094 | AB13: =Finance!AB20 -> 5.25573642 | AC13: =Finance!AC20 -> 4.986241747 | AD13: =Finance!AD20 -> 4.716747074 | AE13: =Finance!AE20 -> 4.447252401 | AF13: =Finance!AF20 -> 4.177757727 | AG13: =Finance!AG20 -> 3.908263054 | AH13: =Finance!AH20 -> 3.638768381 | AI13: =Finance!AI20 -> 3.369273707 | AJ13: =Finance!AJ20 -> 3.099779034 | AK13: =Finance!AK20 -> 2.895708627 | AL13: =Finance!AL20 -> 2.685671527 | AM13: =Finance!AM20 -> 2.403034427 | AN13: =Finance!AN20 -> 2.120397327 | AO13: =Finance!AO20 -> 1.837760227 | AP13: =Finance!AP20 -> 1.555123127 | AQ13: =Finance!AQ20 -> 1.272486027 | AR13: =Finance!AR20 -> 0.9898489275 | AS13: =Finance!AS20 -> 0.7072118276 | AT13: =Finance!AT20 -> 0.4245747276 | AU13: =Finance!AU20 -> 0.1419376277 | AV13: =Finance!AV20 -> 0 | AW13: =Finance!AW20 -> 0 | AX13: =Finance!AX20 -> 0
E14: Unprofiled allowances except tax (floor) | G14: £m 15/16 prices | W14: =SUM(W8:W13) -> 51.09203745 | X14: =SUM(X8:X13) -> 52.37706685 | Y14: 52.10757218 | Z14: 51.83807751 | AA14: 51.56858283 | AB14: 51.29908816 | AC14: 51.02959349 | AD14: 50.76009881 | AE14: 50.49060414 | AF14: 50.22110947 | AG14: 49.95161479 | AH14: 49.68212012 | AI14: 49.41262545 | AJ14: 49.14313077 | AK14: 48.93906037 | AL14: 50.22902327 | AM14: 49.94638617 | AN14: 49.66374907 | AO14: 49.38111197 | AP14: 49.09847487 | AQ14: 48.81583777 | AR14: 48.53320067 | AS14: 48.25056357 | AT14: 47.96792647 | AU14: 54.18528937 | AV14: 0 | AW14: 0 | AX14: 0
B16: Unprofiled allowances except tax (floor)
C18: Annuity parameters
E20: =Input!E40 -> Floor returns | G20: =Input!G40 -> real annual % | I20: =Input!I40 -> 0.0088
E21: =Input!E89 -> Number of operational years | G21: =Input!G89 -> full years | I21: =Input!I89 -> 25
E22: Annuity factor (floor) | G22: scalar | I22: =I20 / (1 - (1 + I20)^(-I21)) -> 0.0447362423
E24: Year is within operational period | G24: flag | W24: =AND(W3 > 0, W3<= $I21) -> TRUE | X24: =AND(X3 > 0, X3<= $I21) -> TRUE | Y24: TRUE | Z24: TRUE | AA24: TRUE | AB24: TRUE | AC24: TRUE | AD24: TRUE | AE24: TRUE | AF24: TRUE | AG24: TRUE | AH24: TRUE | AI24: TRUE | AJ24: TRUE | AK24: TRUE | AL24: TRUE | AM24: TRUE | AN24: TRUE | AO24: TRUE | AP24: TRUE | AQ24: TRUE | AR24: TRUE | AS24: TRUE | AT24: TRUE | AU24: TRUE | AV24: FALSE | AW24: FALSE | AX24: FALSE
E25: Discount factor to start of operational period (floor) | G25: scalar | W25: =(1 + $I20) ^ - W3 -> 0.9912767645 | X25: =(1 + $I20) ^ - X3 -> 0.9826296238 | Y25: 0.9740579141 | Z25: 0.9655609775 | AA25: 0.9571381617 | AB25: 0.9487888201 | AC25: 0.9405123118 | AD25: 0.9323080013 | AE25: 0.9241752591 | AF25: 0.9161134606 | AG25: 0.9081219871 | AH25: 0.9002002251 | AI25: 0.8923475666 | AJ25: 0.8845634086 | AK25: 0.8768471536 | AL25: 0.8691982094 | AM25: 0.8616159887 | AN25: 0.8540999095 | AO25: 0.8466493948 | AP25: 0.8392638727 | AQ25: 0.8319427763 | AR25: 0.8246855435 | AS25: 0.8174916173 | AT25: 0.8103604453 | AU25: 0.8032914803 | AV25: 0.7962841795 | AW25: 0.7893380051 | AX25: 0.7824524238
C27: Allowances except tax
E29: Discounted unprofiled allowances except tax (floor) | G29: £m 15/16 prices | W29: =W14 * W$25 -> 50.64634957 | X29: =X14 * X$25 -> 51.4672575 | Y29: 50.75579307 | Z29: 50.05282479 | AA29: 49.35825858 | AB29: 48.67200133 | AC29: 47.99396094 | AD29: 47.32404627 | AE29: 46.66216716 | AF29: 46.00823439 | AG29: 45.36215969 | AH29: 44.72385572 | AI29: 44.09323607 | AJ29: 43.47021526 | AK29: 42.91207578 | AL29: 43.65897708 | AM29: 43.0346049 | AN29: 42.41780358 | AO29: 41.80848856 | AP29: 41.20657616 | AQ29: 40.6119836 | AR29: 40.02462897 | AS29: 39.44443124 | AT29: 38.87131025 | AU29: 43.52658131 | AV29: 0 | AW29: 0 | AX29: 0
E30: NPV of allowances except tax (floor) | G30: £m 15/16 prices | I30: =SUM(P29:AX29) -> 1124.107822
E32: =E$22 -> Annuity factor (floor) | G32: =G$22 -> scalar | I32: =I$22 -> 0.0447362423
E34: Annuity of allowances except tax (floor) | G34: £m 15/16 prices | I34: =I30 * I32 -> 50.28835989
E35: Annuitised allowances except tax (floor) | G35: £m 15/16 prices | W35: =W$24 * $I34 -> 50.28835989 | X35: 50.28835989 | Y35: 50.28835989 | Z35: 50.28835989 | AA35: 50.28835989 | AB35: 50.28835989 | AC35: 50.28835989 | AD35: 50.28835989 | AE35: 50.28835989 | AF35: 50.28835989 | AG35: 50.28835989 | AH35: 50.28835989 | AI35: 50.28835989 | AJ35: 50.28835989 | AK35: 50.28835989 | AL35: 50.28835989 | AM35: 50.28835989 | AN35: 50.28835989 | AO35: 50.28835989 | AP35: 50.28835989 | AQ35: 50.28835989 | AR35: 50.28835989 | AS35: 50.28835989 | AT35: 50.28835989 | AU35: 50.28835989 | AV35: 0 | AW35: 0 | AX35: 0
B37: End of sheet

Sheet Deductions
A1: Deductions | H1: Licence
E2: Parameter | G2: Units | H2: Terminology | I2: Constant | K2: Annual values
E3: Project year | K3: =Input!K3 -> -11 | L3: =K3 + 1 -> -10 | M3: -9 | N3: -8 | O3: -7 | P3: -6 | Q3: -5 | R3: -4 | S3: -3 | T3: -2 | U3: -1 | V3: 0 | W3: 1 | X3: 2 | Y3: 3 | Z3: 4 | AA3: 5 | AB3: 6 | AC3: 7 | AD3: 8 | AE3: 9 | AF3: 10 | AG3: 11 | AH3: 12 | AI3: 13 | AJ3: 14 | AK3: 15 | AL3: 16 | AM3: 17 | AN3: 18 | AO3: 19 | AP3: 20 | AQ3: 21 | AR3: 22 | AS3: 23 | AT3: 24 | AU3: 25 | AV3: 26 | AW3: 27 | AX3: 28
E4: Year ending | K4: =Input!K4 -> 2010-12-31 | L4: =DATE(YEAR(K4) + 1, MONTH(K4), DAY(K4)) -> 2011-12-31 | M4: 2012-12-31 | N4: 2013-12-31 | O4: 2014-12-31 | P4: 2015-12-31 | Q4: 2016-12-31 | R4: 2017-12-31 | S4: 2018-12-31 | T4: 2019-12-31 | U4: 2020-12-31 | V4: 2021-12-31 | W4: 2022-12-31 | X4: 2023-12-31 | Y4: 2024-12-31 | Z4: 2025-12-31 | AA4: 2026-12-31 | AB4: 2027-12-31 | AC4: 2028-12-31 | AD4: 2029-12-31 | AE4: 2030-12-31 | AF4: 2031-12-31 | AG4: 2032-12-31 | AH4: 2033-12-31 | AI4: 2034-12-31 | AJ4: 2035-12-31 | AK4: 2036-12-31 | AL4: 2037-12-31 | AM4: 2038-12-31 | AN4: 2039-12-31 | AO4: 2040-12-31 | AP4: 2041-12-31 | AQ4: 2042-12-31 | AR4: 2043-12-31 | AS4: 2044-12-31 | AT4: 2045-12-31 | AU4: 2046-12-31 | AV4: 2047-12-31 | AW4: 2048-12-31 | AX4: 2049-12-31
B6: Tax deductions
C8: Total
E10: =E23 -> Revenue pool additions | G10: £m nominal | W10: =W23 -> 18.43099855 | X10: 18.93047861 | Y10: 19.44349458 | Z10: 19.97041328 | AA10: 20.51161148 | AB10: 21.06747615 | AC10: 21.63840476 | AD10: 22.22480553 | AE10: 22.82709776 | AF10: 23.44571211 | AG10: 24.0810909 | AH10: 24.73368847 | AI10: 25.40397143 | AJ10: 26.09241905 | AK10: 26.79952361 | AL10: 27.5257907 | AM10: 28.27173963 | AN10: 29.03790377 | AO10: 29.82483096 | AP10: 30.63308388 | AQ10: 31.46324045 | AR10: 32.31589427 | AS10: 33.191655 | AT10: 34.09114885 | AU10: 35.01501899 | AV10: 0 | AW10: 0 | AX10: 0
E11: =E38 -> Capital allowances | G11: £m nominal | W11: =W38 -> 53.59976885 | X11: 49.31178734 | Y11: 45.36684435 | Z11: 41.73749681 | AA11: 38.39849706 | AB11: 35.3266173 | AC11: 32.50048791 | AD11: 29.90044888 | AE11: 27.50841297 | AF11: 25.30773993 | AG11: 23.28312074 | AH11: 21.42047108 | AI11: 19.70683339 | AJ11: 18.13028672 | AK11: 18.78387746 | AL11: 17.28116727 | AM11: 15.89867389 | AN11: 14.62677998 | AO11: 13.45663758 | AP11: 12.38010657 | AQ11: 11.38969805 | AR11: 10.4785222 | AS11: 9.640240426 | AT11: 8.869021192 | AU11: 101.9937437 | AV11: 0 | AW11: 0 | AX11: 0
E12: Interest Payable | G12: £m nominal | W12: =W65 -> 15.58303671 | X12: 15.18022612 | Y12: 14.76259069 | Z12: 14.32958481 | AA12: 13.88064281 | AB12: 13.41517818 | AC12: 12.93258282 | AD12: 12.43222627 | AE12: 11.91345485 | AF12: 11.37559083 | AG12: 10.81793154 | AH12: 10.23974844 | AI12: 9.640286185 | AJ12: 9.018761624 | AK12: 8.37436279 | AL12: 7.706247828 | AM12: 7.013543904 | AN12: 6.295346057 | AO12: 5.550716022 | AP12: 4.778681002 | AQ12: 3.978232398 | AR12: 3.148324491 | AS12: 2.287873075 | AT12: 1.395754044 | AU12: =AU65 -> 0.4708019175 | AV12: =AV65 -> -3.130222605e-05 | AW12: -3.245425725e-05 | AX12: -3.364868722e-05
E13: Debt transaction costs | G13: £m nominal | W13: =Finance!W59*I52 -> 10.91689715 | X13: =Finance!X59 -> 0 | Y13: =Finance!Y59 -> 0 | Z13: =Finance!Z59 -> 0 | AA13: =Finance!AA59 -> 0 | AB13: =Finance!AB59 -> 0 | AC13: =Finance!AC59 -> 0 | AD13: =Finance!AD59 -> 0 | AE13: =Finance!AE59 -> 0 | AF13: =Finance!AF59 -> 0 | AG13: =Finance!AG59 -> 0 | AH13: =Finance!AH59 -> 0 | AI13: =Finance!AI59 -> 0 | AJ13: =Finance!AJ59 -> 0 | AK13: =Finance!AK59 -> 0 | AL13: =Finance!AL59 -> 0 | AM13: =Finance!AM59 -> 0 | AN13: =Finance!AN59 -> 0 | AO13: =Finance!AO59 -> 0 | AP13: =Finance!AP59 -> 0 | AQ13: =Finance!AQ59 -> 0 | AR13: =Finance!AR59 -> 0 | AS13: =Finance!AS59 -> 0 | AT13: =Finance!AT59 -> 0 | AU13: =Finance!AU59 -> 0 | AV13: =Finance!AV59 -> 0 | AW13: =Finance!AW59 -> 0 | AX13: =Finance!AX59 -> 0
E14: Total tax deductions | G14: £m nominal | W14: =SUM(W10:W13) -> 98.53070126 | X14: =SUM(X10:X13) -> 83.42249207 | Y14: 79.57292962 | Z14: 76.0374949 | AA14: 72.79075136 | AB14: 69.80927163 | AC14: 67.07147549 | AD14: 64.55748068 | AE14: 62.24896558 | AF14: 60.12904287 | AG14: 58.18214318 | AH14: 56.39390799 | AI14: 54.751091 | AJ14: 53.2414674 | AK14: 53.95776386 | AL14: 52.51320579 | AM14: 51.18395742 | AN14: 49.9600298 | AO14: 48.83218456 | AP14: 47.79187145 | AQ14: 46.8311709 | AR14: 45.94274096 | AS14: 45.11976851 | AT14: 44.35592409 | AU14: 137.4795646 | AV14: -3.130222605e-05 | AW14: -3.245425725e-05 | AX14: -3.364868722e-05
C16: Tax pools
D18: Revenue pool
E20: =Input!E31 -> Controllable opex | G20: £m nominal | W20: =Input!W31 * Finance!W$71 -> 18.43099855 | X20: =Input!X31 * Finance!X$71 -> 18.93047861 | Y20: =Input!Y31 * Finance!Y$71 -> 19.44349458 | Z20: =Input!Z31 * Finance!Z$71 -> 19.97041328 | AA20: =Input!AA31 * Finance!AA$71 -> 20.51161148 | AB20: =Input!AB31 * Finance!AB$71 -> 21.06747615 | AC20: =Input!AC31 * Finance!AC$71 -> 21.63840476 | AD20: =Input!AD31 * Finance!AD$71 -> 22.22480553 | AE20: =Input!AE31 * Finance!AE$71 -> 22.82709776 | AF20: =Input!AF31 * Finance!AF$71 -> 23.44571211 | AG20: =Input!AG31 * Finance!AG$71 -> 24.0810909 | AH20: =Input!AH31 * Finance!AH$71 -> 24.73368847 | AI20: =Input!AI31 * Finance!AI$71 -> 25.40397143 | AJ20: =Input!AJ31 * Finance!AJ$71 -> 26.09241905 | AK20: =Input!AK31 * Finance!AK$71 -> 26.79952361 | AL20: =Input!AL31 * Finance!AL$71 -> 27.5257907 | AM20: =Input!AM31 * Finance!AM$71 -> 28.27173963 | AN20: =Input!AN31 * Finance!AN$71 -> 29.03790377 | AO20: =Input!AO31 * Finance!AO$71 -> 29.82483096 | AP20: =Input!AP31 * Finance!AP$71 -> 30.63308388 | AQ20: =Input!AQ31 * Finance!AQ$71 -> 31.46324045 | AR20: =Input!AR31 * Finance!AR$71 -> 32.31589427 | AS20: =Input!AS31 * Finance!AS$71 -> 33.191655 | AT20: =Input!AT31 * Finance!AT$71 -> 34.09114885 | AU20: =Input!AU31 * Finance!AU$71 -> 35.01501899 | AV20: =Input!AV31 * Finance!AV$71 -> 0 | AW20: =Input!AW31 * Finance!AW$71 -> 0 | AX20: =Input!AX31 * Finance!AX$71 -> 0
E21: Opex re-assessment adjustment | G21: £m nominal | AG21: =Input!AG33*Finance!AG71 -> 0 | AH21: =Input!AH33*Finance!AH71 -> 0 | AI21: =Input!AI33*Finance!AI71 -> 0 | AJ21: =Input!AJ33*Finance!AJ71 -> 0 | AK21: =Input!AK33*Finance!AK71 -> 0 | AL21: =Input!AL33*Finance!AL71 -> 0 | AM21: =Input!AM33*Finance!AM71 -> 0 | AN21: =Input!AN33*Finance!AN71 -> 0 | AO21: =Input!AO33*Finance!AO71 -> 0 | AP21: =Input!AP33*Finance!AP71 -> 0 | AQ21: =Input!AQ33*Finance!AQ71 -> 0 | AR21: =Input!AR33*Finance!AR71 -> 0 | AS21: =Input!AS33*Finance!AS71 -> 0 | AT21: =Input!AT33*Finance!AT71 -> 0 | AU21: =Input!AU33*Finance!AU71 -> 0 | AV21: =Input!AV33*Finance!AV71 -> 0 | AW21: =Input!AW33*Finance!AW71 -> 0 | AX21: =Input!AX33*Finance!AX71 -> 0
E22: =Input!E32 -> Non-controllable opex (baseline) | G22: £m nominal | W22: =Input!W32 * Finance!W$71 -> 0 | X22: =Input!X32 * Finance!X$71 -> 0 | Y22: =Input!Y32 * Finance!Y$71 -> 0 | Z22: =Input!Z32 * Finance!Z$71 -> 0 | AA22: =Input!AA32 * Finance!AA$71 -> 0 | AB22: =Input!AB32 * Finance!AB$71 -> 0 | AC22: =Input!AC32 * Finance!AC$71 -> 0 | AD22: =Input!AD32 * Finance!AD$71 -> 0 | AE22: =Input!AE32 * Finance!AE$71 -> 0 | AF22: =Input!AF32 * Finance!AF$71 -> 0 | AG22: =Input!AG32 * Finance!AG$71 -> 0 | AH22: =Input!AH32 * Finance!AH$71 -> 0 | AI22: =Input!AI32 * Finance!AI$71 -> 0 | AJ22: =Input!AJ32 * Finance!AJ$71 -> 0 | AK22: =Input!AK32 * Finance!AK$71 -> 0 | AL22: =Input!AL32 * Finance!AL$71 -> 0 | AM22: =Input!AM32 * Finance!AM$71 -> 0 | AN22: =Input!AN32 * Finance!AN$71 -> 0 | AO22: =Input!AO32 * Finance!AO$71 -> 0 | AP22: =Input!AP32 * Finance!AP$71 -> 0 | AQ22: =Input!AQ32 * Finance!AQ$71 -> 0 | AR22: =Input!AR32 * Finance!AR$71 -> 0 | AS22: =Input!AS32 * Finance!AS$71 -> 0 | AT22: =Input!AT32 * Finance!AT$71 -> 0 | AU22: =Input!AU32 * Finance!AU$71 -> 0 | AV22: =Input!AV32 * Finance!AV$71 -> 0 | AW22: =Input!AW32 * Finance!AW$71 -> 0 | AX22: =Input!AX32 * Finance!AX$71 -> 0
E23: Revenue pool additions | G23: £m nominal | W23: =SUM(W20:W22) -> 18.43099855 | X23: 18.93047861 | Y23: 19.44349458 | Z23: 19.97041328 | AA23: 20.51161148 | AB23: 21.06747615 | AC23: 21.63840476 | AD23: 22.22480553 | AE23: 22.82709776 | AF23: 23.44571211 | AG23: 24.0810909 | AH23: 24.73368847 | AI23: 25.40397143 | AJ23: 26.09241905 | AK23: 26.79952361 | AL23: 27.5257907 | AM23: 28.27173963 | AN23: 29.03790377 | AO23: 29.82483096 | AP23: 30.63308388 | AQ23: 31.46324045 | AR23: 32.31589427 | AS23: 33.191655 | AT23: 34.09114885 | AU23: 35.01501899 | AV23: 0 | AW23: 0 | AX23: 0
D25: Capital allowance pool
E27: =Input!E73 -> Capital allowance rate (declining balance) | G27: =Input!G73 -> % | W27: =Input!W73 -> 0.08 | X27: =Input!X73 -> 0.08 | Y27: =Input!Y73 -> 0.08 | Z27: =Input!Z73 -> 0.08 | AA27: =Input!AA73 -> 0.08 | AB27: =Input!AB73 -> 0.08 | AC27: =Input!AC73 -> 0.08 | AD27: =Input!AD73 -> 0.08 | AE27: =Input!AE73 -> 0.08 | AF27: =Input!AF73 -> 0.08 | AG27: =Input!AG73 -> 0.08 | AH27: =Input!AH73 -> 0.08 | AI27: =Input!AI73 -> 0.08 | AJ27: =Input!AJ73 -> 0.08 | AK27: =Input!AK73 -> 0.08 | AL27: =Input!AL73 -> 0.08 | AM27: =Input!AM73 -> 0.08 | AN27: =Input!AN73 -> 0.08 | AO27: =Input!AO73 -> 0.08 | AP27: =Input!AP73 -> 0.08 | AQ27: =Input!AQ73 -> 0.08 | AR27: =Input!AR73 -> 0.08 | AS27: =Input!AS73 -> 0.08 | AT27: =Input!AT73 -> 0.08 | AU27: =Input!AU73 -> 0.08 | AV27: =Input!AV73 -> 0.08 | AW27: =Input!AW73 -> 0.08 | AX27: =Input!AX73 -> 0.08
E28: =Input!E89 -> Number of operational years | G28: =Input!G89 -> full years | I28: =Input!I89 -> 25
E30: Opening balance brought forward | G30: £m nominal | L30: =K36 -> 0 | M30: =L36 -> 0 | N30: =M36 -> 0 | O30: =N36 -> 0 | P30: =O36 -> 0 | Q30: =P36 -> 27.90970941 | R30: =Q36 -> 73.03896805 | S30: =R36 -> 123.8762326 | T30: =S36 -> 204.8710982 | U30: =T36 -> 368.2463623 | V30: 568.5515738 | W30: =V36 -> 669.9971106 | X30: 616.3973418 | Y30: 567.0855544 | Z30: 521.7187101 | AA30: 479.9812133 | AB30: 441.5827162 | AC30: 406.2560989 | AD30: 373.755611 | AE30: 343.8551621 | AF30: 316.3467491 | AG30: 291.0390092 | AH30: 267.7558885 | AI30: 246.3354174 | AJ30: 226.628584 | AK30: 208.4982973 | AL30: 216.0145908 | AM30: 198.7334236 | AN30: 182.8347497 | AO30: 168.2079697 | AP30: 154.7513321 | AQ30: 142.3712256 | AR30: 130.9815275 | AS30: 120.5030053 | AT30: 110.8627649 | AU30: 101.9937437 | AV30: 0 | AW30: 0 | AX30: 0
E31: =Input!E16 -> Capex | G31: £m nominal | K31: =Input!K16 * Finance!K$71 -> 0 | L31: =Input!L16 * Finance!L$71 -> 0 | M31: =Input!M16 * Finance!M$71 -> 0 | N31: =Input!N16 * Finance!N$71 -> 0 | O31: =Input!O16 * Finance!O$71 -> 0 | P31: =Input!P16 * Finance!P$71 -> 27.90970941 | Q31: =Input!Q16 * Finance!Q$71 -> 45.12925864 | R31: =Input!R16 * Finance!R$71 -> 50.83726457 | S31: =Input!S16 * Finance!S$71 -> 80.99486563 | T31: =Input!T16 * Finance!T$71 -> 163.375264 | U31: =Input!U16 * Finance!U$71 -> 200.3052115 | V31: =Input!V16 * Finance!V$71 -> 101.4455368
E32: =Input!E29 -> Replacement capex | G32: £m nominal | W32: =Input!W29 * Finance!W$71 -> 0 | X32: =Input!X29 * Finance!X$71 -> 0 | Y32: =Input!Y29 * Finance!Y$71 -> 0 | Z32: =Input!Z29 * Finance!Z$71 -> 0 | AA32: =Input!AA29 * Finance!AA$71 -> 0 | AB32: =Input!AB29 * Finance!AB$71 -> 0 | AC32: =Input!AC29 * Finance!AC$71 -> 0 | AD32: =Input!AD29 * Finance!AD$71 -> 0 | AE32: =Input!AE29 * Finance!AE$71 -> 0 | AF32: =Input!AF29 * Finance!AF$71 -> 0 | AG32: =Input!AG29 * Finance!AG$71 -> 0 | AH32: =Input!AH29 * Finance!AH$71 -> 0 | AI32: =Input!AI29 * Finance!AI$71 -> 0 | AJ32: =Input!AJ29 * Finance!AJ$71 -> 0 | AK32: =Input!AK29 * Finance!AK$71 -> 26.30017103 | AL32: =Input!AL29 * Finance!AL$71 -> 0 | AM32: =Input!AM29 * Finance!AM$71 -> 0 | AN32: =Input!AN29 * Finance!AN$71 -> 0 | AO32: =Input!AO29 * Finance!AO$71 -> 0 | AP32: =Input!AP29 * Finance!AP$71 -> 0 | AQ32: =Input!AQ29 * Finance!AQ$71 -> 0 | AR32: =Input!AR29 * Finance!AR$71 -> 0 | AS32: =Input!AS29 * Finance!AS$71 -> 0 | AT32: =Input!AT29 * Finance!AT$71 -> 0 | AU32: =Input!AU29 * Finance!AU$71 -> 0 | AV32: =Input!AV29 * Finance!AV$71 -> 0 | AW32: =Input!AW29 * Finance!AW$71 -> 0 | AX32: =Input!AX29 * Finance!AX$71 -> 0
E33: Tax book value pre-depreciation | G33: £m nominal | K33: =SUM(K30:K32) -> 0 | L33: 0 | M33: 0 | N33: 0 | O33: 0 | P33: 27.90970941 | Q33: 73.03896805 | R33: 123.8762326 | S33: 204.8710982 | T33: 368.2463623 | U33: 568.5515738 | V33: =SUM(V30:V32) -> 669.9971106 | W33: 669.9971106 | X33: 616.3973418 | Y33: 567.0855544 | Z33: 521.7187101 | AA33: 479.9812133 | AB33: 441.5827162 | AC33: 406.2560989 | AD33: 373.755611 | AE33: 343.8551621 | AF33: 316.3467491 | AG33: 291.0390092 | AH33: 267.7558885 | AI33: 246.3354174 | AJ33: 226.628584 | AK33: 234.7984683 | AL33: 216.0145908 | AM33: 198.7334236 | AN33: 182.8347497 | AO33: 168.2079697 | AP33: 154.7513321 | AQ33: 142.3712256 | AR33: 130.9815275 | AS33: 120.5030053 | AT33: 110.8627649 | AU33: 101.9937437 | AV33: 0 | AW33: 0 | AX33: 0
E34: Capital allowance (reducing balance) | G34: £m nominal | W34: =-W33 * W27 -> -53.59976885 | X34: =-X33 * X27 -> -49.31178734 | Y34: =-Y33 * Y27 -> -45.36684435 | Z34: -41.73749681 | AA34: -38.39849706 | AB34: -35.3266173 | AC34: -32.50048791 | AD34: -29.90044888 | AE34: -27.50841297 | AF34: -25.30773993 | AG34: -23.28312074 | AH34: -21.42047108 | AI34: -19.70683339 | AJ34: -18.13028672 | AK34: -18.78387746 | AL34: -17.28116727 | AM34: -15.89867389 | AN34: -14.62677998 | AO34: -13.45663758 | AP34: -12.38010657 | AQ34: -11.38969805 | AR34: -10.4785222 | AS34: -9.640240426 | AT34: -8.869021192 | AU34: =-AU33 * AU27 -> -8.159499496 | AV34: 0 | AW34: 0 | AX34: 0
E35: Write-back allowance | G35: £m nominal | W35: =IF(W$3 = $I28, - SUM(W33:W34), 0) -> 0 | X35: 0 | Y35: 0 | Z35: 0 | AA35: 0 | AB35: 0 | AC35: 0 | AD35: 0 | AE35: 0 | AF35: 0 | AG35: 0 | AH35: 0 | AI35: 0 | AJ35: 0 | AK35: 0 | AL35: 0 | AM35: 0 | AN35: 0 | AO35: 0 | AP35: 0 | AQ35: 0 | AR35: 0 | AS35: 0 | AT35: 0 | AU35: -93.83424421 | AV35: 0 | AW35: 0 | AX35: 0
E36: Closing balance carried forward | G36: £m nominal | K36: =SUM(K33:K35) -> 0 | L36: 0 | M36: 0 | N36: 0 | O36: 0 | P36: 27.90970941 | Q36: =SUM(Q33:Q35) -> 73.03896805 | R36: 123.8762326 | S36: 204.8710982 | T36: 368.2463623 | U36: =SUM(U33:U35) -> 568.5515738 | V36: =SUM(V33:V35) -> 669.9971106 | W36: 616.3973418 | X36: 567.0855544 | Y36: 521.7187101 | Z36: 479.9812133 | AA36: 441.5827162 | AB36: 406.2560989 | AC36: 373.755611 | AD36: 343.8551621 | AE36: 316.3467491 | AF36: 291.0390092 | AG36: 267.7558885 | AH36: 246.3354174 | AI36: 226.628584 | AJ36: 208.4982973 | AK36: 216.0145908 | AL36: 198.7334236 | AM36: 182.8347497 | AN36: 168.2079697 | AO36: 154.7513321 | AP36: 142.3712256 | AQ36: 130.9815275 | AR36: 120.5030053 | AS36: 110.8627649 | AT36: 101.9937437 | AU36: 0 | AV36: 0 | AW36: 0 | AX36: 0
E38: Capital allowances | G38: £m nominal | W38: =-(W34 + W35) -> 53.59976885 | X38: =-(X34 + X35) -> 49.31178734 | Y38: 45.36684435 | Z38: 41.73749681 | AA38: 38.39849706 | AB38: 35.3266173 | AC38: 32.50048791 | AD38: 29.90044888 | AE38: 27.50841297 | AF38: 25.30773993 | AG38: 23.28312074 | AH38: 21.42047108 | AI38: 19.70683339 | AJ38: 18.13028672 | AK38: 18.78387746 | AL38: 17.28116727 | AM38: 15.89867389 | AN38: 14.62677998 | AO38: 13.45663758 | AP38: 12.38010657 | AQ38: 11.38969805 | AR38: 10.4785222 | AS38: 9.640240426 | AT38: 8.869021192 | AU38: =-(AU34 + AU35) -> 101.9937437 | AV38: 0 | AW38: 0 | AX38: 0
C40: Interest
D42: Cost of debt
E44: =Input!E43 -> Cost of debt (for tax) | G44: =Input!G43 -> real annual % | I44: =Input!I43 -> 0.0088
E45: =Input!E78 -> Expected UK RPI inflation | G45: =Input!G78 -> % | I45: =Input!I78 -> 0.0271
E46: =E44 -> Cost of debt (for tax) | G46: nominal annual % | I46: =(1 + I44) * (1 + I$45) - 1 -> 0.03613848
D48: Opening net debt
E50: =RAV!E23 -> Opening operational RAV (after transfers) | G50: =RAV!G23 -> £m 15/16 prices | W50: =RAV!W23 -> 733.95199
E51: =Finance!E71 -> GB inflation uplift (forecast) | G51: =Finance!G71 -> scalar | V51: =Finance!V71 -> 1.174022379 | W51: =Finance!W71 -> 1.205838385
E52: GB inflation uplift (forecast) at start of operational period | G52: scalar | I52: =AVERAGE(V51:W51) -> 1.189930382
E53: =Input!E45 -> Operational notional gearing | G53: =Input!G45 -> % | I53: =Input!I45 -> 0.5
E54: =RAV!E23 -> Opening operational RAV (after transfers) | G54: £m nominal | W54: =W50 * I52 -> 873.3517717
E56: Opening net debt | G56: £m nominal | W56: =$I53 * W54 -> 436.6758859
D58: Net debt
E60: =Input!E89 -> Number of operational years | G60: =Input!G89 -> full years | I60: =Input!I89 -> 25
E61: Year is within operational period | G61: flag | W61: =AND(TaxFloor!W3 > 0, TaxFloor!W3<= $I60) -> TRUE | X61: =AND(TaxFloor!X3 > 0, TaxFloor!X3<= $I60) -> TRUE | Y61: =AND(TaxFloor!Y3 > 0, TaxFloor!Y3<= $I60) -> TRUE | Z61: =AND(TaxFloor!Z3 > 0, TaxFloor!Z3<= $I60) -> TRUE | AA61: =AND(TaxFloor!AA3 > 0, TaxFloor!AA3<= $I60) -> TRUE | AB61: =AND(TaxFloor!AB3 > 0, TaxFloor!AB3<= $I60) -> TRUE | AC61: =AND(TaxFloor!AC3 > 0, TaxFloor!AC3<= $I60) -> TRUE | AD61: =AND(TaxFloor!AD3 > 0, TaxFloor!AD3<= $I60) -> TRUE | AE61: =AND(TaxFloor!AE3 > 0, TaxFloor!AE3<= $I60) -> TRUE | AF61: =AND(TaxFloor!AF3 > 0, TaxFloor!AF3<= $I60) -> TRUE | AG61: =AND(TaxFloor!AG3 > 0, TaxFloor!AG3<= $I60) -> TRUE | AH61: =AND(TaxFloor!AH3 > 0, TaxFloor!AH3<= $I60) -> TRUE | AI61: =AND(TaxFloor!AI3 > 0, TaxFloor!AI3<= $I60) -> TRUE | AJ61: =AND(TaxFloor!AJ3 > 0, TaxFloor!AJ3<= $I60) -> TRUE | AK61: =AND(TaxFloor!AK3 > 0, TaxFloor!AK3<= $I60) -> TRUE | AL61: =AND(TaxFloor!AL3 > 0, TaxFloor!AL3<= $I60) -> TRUE | AM61: =AND(TaxFloor!AM3 > 0, TaxFloor!AM3<= $I60) -> TRUE | AN61: =AND(TaxFloor!AN3 > 0, TaxFloor!AN3<= $I60) -> TRUE | AO61: =AND(TaxFloor!AO3 > 0, TaxFloor!AO3<= $I60) -> TRUE | AP61: =AND(TaxFloor!AP3 > 0, TaxFloor!AP3<= $I60) -> TRUE | AQ61: =AND(TaxFloor!AQ3 > 0, TaxFloor!AQ3<= $I60) -> TRUE | AR61: =AND(TaxFloor!AR3 > 0, TaxFloor!AR3<= $I60) -> TRUE | AS61: =AND(TaxFloor!AS3 > 0, TaxFloor!AS3<= $I60) -> TRUE | AT61: =AND(TaxFloor!AT3 > 0, TaxFloor!AT3<= $I60) -> TRUE | AU61: =AND(TaxFloor!AU3 > 0, TaxFloor!AU3<= $I60) -> TRUE | AV61: =AND(TaxFloor!AV3 > 0, TaxFloor!AV3<= $I60) -> FALSE | AW61: =AND(TaxFloor!AW3 > 0, TaxFloor!AW3<= $I60) -> FALSE | AX61: =AND(TaxFloor!AX3 > 0, TaxFloor!AX3<= $I60) -> FALSE
E63: Opening net debt | G63: £m nominal | W63: =W56 -> 436.6758859 | X63: =W66 -> 425.7309841 | Y63: =X66 -> 414.3832717 | Z63: 402.617924 | AA63: 390.4195703 | AB63: 377.7722746 | AC63: 364.6595143 | AD63: 351.0641587 | AE63: 336.9684465 | AF63: 322.3539629 | AG63: 307.2016152 | AH63: 291.4916083 | AI63: 275.2034183 | AJ63: 258.315766 | AK63: 240.8065891 | AL63: 222.6530135 | AM63: 203.8313228 | AN63: 184.3169282 | AO63: 164.0843358 | AP63: 143.1071134 | AQ63: 121.3578559 | AR63: 98.80814984 | AS63: 75.42853586 | AT63: 51.18847046 | AU63: 26.05628603 | AV63: -0.000850523282 | AW63: -0.0008818255081 | AX63: -0.0009142797653
E64: Less principal and interest repayment | G64: £m nominal | W64: =-$I73*W$61 -> -26.52793847 | X64: =-$I73*X$61 -> -26.52793847 | Y64: -26.52793847 | Z64: -26.52793847 | AA64: -26.52793847 | AB64: -26.52793847 | AC64: -26.52793847 | AD64: -26.52793847 | AE64: -26.52793847 | AF64: -26.52793847 | AG64: -26.52793847 | AH64: -26.52793847 | AI64: -26.52793847 | AJ64: -26.52793847 | AK64: -26.52793847 | AL64: -26.52793847 | AM64: -26.52793847 | AN64: -26.52793847 | AO64: -26.52793847 | AP64: -26.52793847 | AQ64: -26.52793847 | AR64: -26.52793847 | AS64: -26.52793847 | AT64: -26.52793847 | AU64: -26.52793847 | AV64: 0 | AW64: 0 | AX64: 0
E65: Add Interest Accrued | G65: £m nominal | W65: =W68 -> 15.58303671 | X65: =X68 -> 15.18022612 | Y65: 14.76259069 | Z65: 14.32958481 | AA65: 13.88064281 | AB65: 13.41517818 | AC65: 12.93258282 | AD65: 12.43222627 | AE65: 11.91345485 | AF65: 11.37559083 | AG65: 10.81793154 | AH65: 10.23974844 | AI65: 9.640286185 | AJ65: 9.018761624 | AK65: 8.37436279 | AL65: 7.706247828 | AM65: 7.013543904 | AN65: 6.295346057 | AO65: 5.550716022 | AP65: 4.778681002 | AQ65: 3.978232398 | AR65: 3.148324491 | AS65: 2.287873075 | AT65: 1.395754044 | AU65: 0.4708019175 | AV65: -3.130222605e-05 | AW65: -3.245425725e-05 | AX65: -3.364868722e-05
E66: Closing net debt | G66: £m nominal | W66: =SUM(W63:W65) -> 425.7309841 | X66: 414.3832717 | Y66: 402.617924 | Z66: 390.4195703 | AA66: 377.7722746 | AB66: 364.6595143 | AC66: 351.0641587 | AD66: 336.9684465 | AE66: 322.3539629 | AF66: 307.2016152 | AG66: 291.4916083 | AH66: 275.2034183 | AI66: 258.315766 | AJ66: 240.8065891 | AK66: 222.6530135 | AL66: 203.8313228 | AM66: 184.3169282 | AN66: 164.0843358 | AO66: 143.1071134 | AP66: 121.3578559 | AQ66: 98.80814984 | AR66: 75.42853586 | AS66: 51.18847046 | AT66: 26.05628603 | AU66: -0.000850523282 | AV66: -0.0008818255081 | AW66: -0.0009142797653 | AX66: -0.0009479284526
E68: Interest Pasted | G68: £m nominal | W68: 15.58303671 | X68: 15.18022612 | Y68: 14.76259069 | Z68: 14.32958481 | AA68: 13.88064281 | AB68: 13.41517818 | AC68: 12.93258282 | AD68: 12.43222627 | AE68: 11.91345485 | AF68: 11.37559083 | AG68: 10.81793154 | AH68: 10.23974844 | AI68: 9.640286185 | AJ68: 9.018761624 | AK68: 8.37436279 | AL68: 7.706247828 | AM68: 7.013543904 | AN68: 6.295346057 | AO68: 5.550716022 | AP68: 4.778681002 | AQ68: 3.978232398 | AR68: 3.148324491 | AS68: 2.287873075 | AT68: 1.395754044 | AU68: 0.4708019175 | AV68: -3.130222605e-05 | AW68: -3.245425725e-05 | AX68: -3.364868722e-05
E69: Interest Computed | G69: £m nominal | W69: =AVERAGE(W63,W66)*$I$46 -> 15.58303671 | X69: =AVERAGE(X63,X66)*$I$46 -> 15.18022612 | Y69: 14.76259069 | Z69: 14.32958481 | AA69: 13.88064281 | AB69: 13.41517818 | AC69: 12.93258282 | AD69: 12.43222627 | AE69: 11.91345485 | AF69: 11.37559083 | AG69: 10.81793154 | AH69: 10.23974844 | AI69: 9.640286185 | AJ69: 9.018761624 | AK69: 8.37436279 | AL69: 7.706247828 | AM69: 7.013543904 | AN69: 6.295346057 | AO69: 5.550716022 | AP69: 4.778681002 | AQ69: 3.978232398 | AR69: 3.148324491 | AS69: 2.287873075 | AT69: 1.395754044 | AU69: 0.4708019175 | AV69: -3.130222605e-05 | AW69: -3.245425725e-05 | AX69: -3.364868722e-05
E71: Difference | G71: £m nominal | I71: =SUM(W71:AX71) -> 0 | W71: =ABS(W68-W69) -> 0 | X71: =ABS(X68-X69) -> 0 | Y71: 0 | Z71: 0 | AA71: 0 | AB71: 0 | AC71: 0 | AD71: 0 | AE71: 0 | AF71: 0 | AG71: 0 | AH71: 0 | AI71: 0 | AJ71: 0 | AK71: 0 | AL71: 0 | AM71: 0 | AN71: 0 | AO71: 0 | AP71: 0 | AQ71: 0 | AR71: 0 | AS71: 0 | AT71: 0 | AU71: 0 | AV71: 0 | AW71: 0 | AX71: 0
E73: Total Principal and Interest Repayment | G73: £m nominal | I73: 26.52793847
E75: Macro to run to calculate annual payments
B80: End of sheet

Sheet TaxCap
A1: TaxCap | H1: Licence
E2: Parameter | G2: Units | H2: Terminology | I2: Constant | K2: Annual values
E3: Project year | K3: =Input!K3 -> -11 | L3: =K3 + 1 -> -10 | M3: -9 | N3: -8 | O3: -7 | P3: -6 | Q3: -5 | R3: -4 | S3: -3 | T3: -2 | U3: -1 | V3: 0 | W3: 1 | X3: 2 | Y3: 3 | Z3: 4 | AA3: 5 | AB3: 6 | AC3: 7 | AD3: 8 | AE3: 9 | AF3: 10 | AG3: 11 | AH3: 12 | AI3: 13 | AJ3: 14 | AK3: 15 | AL3: 16 | AM3: 17 | AN3: 18 | AO3: 19 | AP3: 20 | AQ3: 21 | AR3: 22 | AS3: 23 | AT3: 24 | AU3: 25 | AV3: 26 | AW3: 27 | AX3: 28
E4: Year ending | K4: =Input!K4 -> 2010-12-31 | L4: =DATE(YEAR(K4) + 1, MONTH(K4), DAY(K4)) -> 2011-12-31 | M4: 2012-12-31 | N4: 2013-12-31 | O4: 2014-12-31 | P4: 2015-12-31 | Q4: 2016-12-31 | R4: 2017-12-31 | S4: 2018-12-31 | T4: 2019-12-31 | U4: 2020-12-31 | V4: 2021-12-31 | W4: 2022-12-31 | X4: 2023-12-31 | Y4: 2024-12-31 | Z4: 2025-12-31 | AA4: 2026-12-31 | AB4: 2027-12-31 | AC4: 2028-12-31 | AD4: 2029-12-31 | AE4: 2030-12-31 | AF4: 2031-12-31 | AG4: 2032-12-31 | AH4: 2033-12-31 | AI4: 2034-12-31 | AJ4: 2035-12-31 | AK4: 2036-12-31 | AL4: 2037-12-31 | AM4: 2038-12-31 | AN4: 2039-12-31 | AO4: 2040-12-31 | AP4: 2041-12-31 | AQ4: 2042-12-31 | AR4: 2043-12-31 | AS4: 2044-12-31 | AT4: 2045-12-31 | AU4: 2046-12-31 | AV4: 2047-12-31 | AW4: 2048-12-31 | AX4: 2049-12-31
B6: Tax (cap)
C8: Unprofiled tax allowance (cap)
D10: Profits attributable to corporation tax
E12: Annuitised allowances except tax (cap) | G12: £m nominal prices | W12: =AllowancesCap!W35 * Finance!W71 -> 102.2583805 | X12: =AllowancesCap!X35 * Finance!X71 -> 105.0295826 | Y12: =AllowancesCap!Y35 * Finance!Y71 -> 107.8758843 | Z12: =AllowancesCap!Z35 * Finance!Z71 -> 110.7993208 | AA12: =AllowancesCap!AA35 * Finance!AA71 -> 113.8019824 | AB12: =AllowancesCap!AB35 * Finance!AB71 -> 116.8860161 | AC12: =AllowancesCap!AC35 * Finance!AC71 -> 120.0536271 | AD12: =AllowancesCap!AD35 * Finance!AD71 -> 123.3070804 | AE12: =AllowancesCap!AE35 * Finance!AE71 -> 126.6487023 | AF12: =AllowancesCap!AF35 * Finance!AF71 -> 130.0808821 | AG12: =AllowancesCap!AG35 * Finance!AG71 -> 133.606074 | AH12: =AllowancesCap!AH35 * Finance!AH71 -> 137.2267986 | AI12: =AllowancesCap!AI35 * Finance!AI71 -> 140.9456449 | AJ12: =AllowancesCap!AJ35 * Finance!AJ71 -> 144.7652718 | AK12: =AllowancesCap!AK35 * Finance!AK71 -> 148.6884107 | AL12: =AllowancesCap!AL35 * Finance!AL71 -> 152.7178666 | AM12: =AllowancesCap!AM35 * Finance!AM71 -> 156.8565208 | AN12: =AllowancesCap!AN35 * Finance!AN71 -> 161.1073325 | AO12: =AllowancesCap!AO35 * Finance!AO71 -> 165.4733413 | AP12: =AllowancesCap!AP35 * Finance!AP71 -> 169.9576688 | AQ12: =AllowancesCap!AQ35 * Finance!AQ71 -> 174.5635216 | AR12: =AllowancesCap!AR35 * Finance!AR71 -> 179.2941931 | AS12: =AllowancesCap!AS35 * Finance!AS71 -> 184.1530657 | AT12: =AllowancesCap!AT35 * Finance!AT71 -> 189.1436138 | AU12: =AllowancesCap!AU35 * Finance!AU71 -> 194.2694057 | AV12: =AllowancesCap!AV35 * Finance!AV71 -> 0 | AW12: =AllowancesCap!AW35 * Finance!AW71 -> 0 | AX12: =AllowancesCap!AX35 * Finance!AX71 -> 0
E13: Less tax deductions | G13: £m nominal prices | W13: =-Deductions!W14 -> -98.53070126 | X13: =-Deductions!X14 -> -83.42249207 | Y13: =-Deductions!Y14 -> -79.57292962 | Z13: =-Deductions!Z14 -> -76.0374949 | AA13: =-Deductions!AA14 -> -72.79075136 | AB13: =-Deductions!AB14 -> -69.80927163 | AC13: =-Deductions!AC14 -> -67.07147549 | AD13: =-Deductions!AD14 -> -64.55748068 | AE13: =-Deductions!AE14 -> -62.24896558 | AF13: =-Deductions!AF14 -> -60.12904287 | AG13: =-Deductions!AG14 -> -58.18214318 | AH13: =-Deductions!AH14 -> -56.39390799 | AI13: =-Deductions!AI14 -> -54.751091 | AJ13: =-Deductions!AJ14 -> -53.2414674 | AK13: =-Deductions!AK14 -> -53.95776386 | AL13: =-Deductions!AL14 -> -52.51320579 | AM13: =-Deductions!AM14 -> -51.18395742 | AN13: =-Deductions!AN14 -> -49.9600298 | AO13: =-Deductions!AO14 -> -48.83218456 | AP13: =-Deductions!AP14 -> -47.79187145 | AQ13: =-Deductions!AQ14 -> -46.8311709 | AR13: =-Deductions!AR14 -> -45.94274096 | AS13: =-Deductions!AS14 -> -45.11976851 | AT13: =-Deductions!AT14 -> -44.35592409 | AU13: =-Deductions!AU14 -> -137.4795646 | AV13: =-Deductions!AV14 -> 3.130222605e-05 | AW13: =-Deductions!AW14 -> 3.245425725e-05 | AX13: =-Deductions!AX14 -> 3.364868722e-05
E14: Profits attributable to corporation tax | G14: £m nominal prices | W14: =SUM(W12:W13) -> 3.727679239 | X14: =SUM(X12:X13) -> 21.60709054 | Y14: 28.30295467 | Z14: 34.76182586 | AA14: 41.01123099 | AB14: 47.07674444 | AC14: 52.98215162 | AD14: 58.74959973 | AE14: 64.3997367 | AF14: 69.95183924 | AG14: 75.42393084 | AH14: 80.83289064 | AI14: 86.19455387 | AJ14: 91.52380445 | AK14: 94.73064685 | AL14: 100.2046608 | AM14: 105.6725634 | AN14: 111.1473027 | AO14: 116.6411567 | AP14: 122.1657973 | AQ14: 127.7323507 | AR14: 133.3514521 | AS14: 139.0332972 | AT14: 144.7876897 | AU14: 56.7898411 | AV14: 3.130222605e-05 | AW14: 3.245425725e-05 | AX14: 3.364868722e-05
D16: Tax losses
E18: Taxable losses brought forward | G18: £m nominal prices | X18: =W21 -> 0 | Y18: 0 | Z18: 0 | AA18: 0 | AB18: 0 | AC18: 0 | AD18: 0 | AE18: 0 | AF18: 0 | AG18: 0 | AH18: 0 | AI18: 0 | AJ18: 0 | AK18: 0 | AL18: 0 | AM18: 0 | AN18: 0 | AO18: 0 | AP18: 0 | AQ18: 0 | AR18: 0 | AS18: 0 | AT18: =AS21 -> 0 | AU18: =AT21 -> 0 | AV18: =AU21 -> 0 | AW18: =AV21 -> 0 | AX18: =AW21 -> 0
E19: In-year taxable loss | G19: £m nominal prices | W19: =MIN(W14, 0) -> 0 | X19: 0 | Y19: 0 | Z19: 0 | AA19: 0 | AB19: 0 | AC19: 0 | AD19: 0 | AE19: 0 | AF19: 0 | AG19: 0 | AH19: 0 | AI19: 0 | AJ19: 0 | AK19: 0 | AL19: 0 | AM19: 0 | AN19: 0 | AO19: 0 | AP19: 0 | AQ19: 0 | AR19: 0 | AS19: 0 | AT19: 0 | AU19: 0 | AV19: 0 | AW19: 0 | AX19: 0
E20: Profits attributable to corporation tax | G20: £m nominal prices | W20: =IF(W14 >= 0, MIN(W14, -W18), 0) -> 0 | X20: 0 | Y20: 0 | Z20: 0 | AA20: 0 | AB20: 0 | AC20: 0 | AD20: 0 | AE20: 0 | AF20: 0 | AG20: 0 | AH20: 0 | AI20: 0 | AJ20: 0 | AK20: 0 | AL20: 0 | AM20: 0 | AN20: 0 | AO20: 0 | AP20: 0 | AQ20: 0 | AR20: 0 | AS20: 0 | AT20: 0 | AU20: 0 | AV20: 0 | AW20: 0 | AX20: 0
E21: Balance carried forward | G21: £m nominal prices | W21: =SUM(W18:W20) -> 0 | X21: 0 | Y21: 0 | Z21: 0 | AA21: 0 | AB21: 0 | AC21: 0 | AD21: 0 | AE21: 0 | AF21: 0 | AG21: 0 | AH21: 0 | AI21: 0 | AJ21: 0 | AK21: 0 | AL21: 0 | AM21: 0 | AN21: 0 | AO21: 0 | AP21: 0 | AQ21: 0 | AR21: 0 | AS21: 0 | AT21: =SUM(AT18:AT20) -> 0 | AU21: 0 | AV21: 0 | AW21: 0 | AX21: 0
D23: Tax allowance
E25: Profits attributable to corporation tax (after taxable losses) | G25: £m nominal prices | W25: =MAX(W14 - W20,0) -> 3.727679239 | X25: =MAX(X14 - X20,0) -> 21.60709054 | Y25: =MAX(Y14 - Y20,0) -> 28.30295467 | Z25: 34.76182586 | AA25: 41.01123099 | AB25: 47.07674444 | AC25: 52.98215162 | AD25: 58.74959973 | AE25: 64.3997367 | AF25: 69.95183924 | AG25: 75.42393084 | AH25: 80.83289064 | AI25: 86.19455387 | AJ25: 91.52380445 | AK25: 94.73064685 | AL25: 100.2046608 | AM25: 105.6725634 | AN25: 111.1473027 | AO25: 116.6411567 | AP25: 122.1657973 | AQ25: 127.7323507 | AR25: 133.3514521 | AS25: 139.0332972 | AT25: 144.7876897 | AU25: 56.7898411 | AV25: 3.130222605e-05 | AW25: 3.245425725e-05 | AX25: 3.364868722e-05
E26: =Input!E72 -> Corporation tax rate | G26: =Input!G72 -> % | W26: =Input!W72 -> 0.2 | X26: =Input!X72 -> 0.2 | Y26: =Input!Y72 -> 0.2 | Z26: =Input!Z72 -> 0.2 | AA26: =Input!AA72 -> 0.2 | AB26: =Input!AB72 -> 0.2 | AC26: =Input!AC72 -> 0.2 | AD26: =Input!AD72 -> 0.2 | AE26: =Input!AE72 -> 0.2 | AF26: =Input!AF72 -> 0.2 | AG26: =Input!AG72 -> 0.2 | AH26: =Input!AH72 -> 0.2 | AI26: =Input!AI72 -> 0.2 | AJ26: =Input!AJ72 -> 0.2 | AK26: =Input!AK72 -> 0.2 | AL26: =Input!AL72 -> 0.2 | AM26: =Input!AM72 -> 0.2 | AN26: =Input!AN72 -> 0.2 | AO26: =Input!AO72 -> 0.2 | AP26: =Input!AP72 -> 0.2 | AQ26: =Input!AQ72 -> 0.2 | AR26: =Input!AR72 -> 0.2 | AS26: =Input!AS72 -> 0.2 | AT26: =Input!AT72 -> 0.2 | AU26: =Input!AU72 -> 0.2 | AV26: =Input!AV72 -> 0.2 | AW26: =Input!AW72 -> 0.2 | AX26: =Input!AX72 -> 0.2
E27: Corporation tax charge after losses | G27: £m nominal prices | W27: =W25 * W26 -> 0.7455358477 | X27: =X25 * X26 -> 4.321418108 | Y27: =Y25 * Y26 -> 5.660590935 | Z27: 6.952365171 | AA27: 8.202246199 | AB27: 9.415348889 | AC27: 10.59643032 | AD27: 11.74991995 | AE27: 12.87994734 | AF27: 13.99036785 | AG27: 15.08478617 | AH27: 16.16657813 | AI27: 17.23891077 | AJ27: 18.30476089 | AK27: 18.94612937 | AL27: 20.04093217 | AM27: 21.13451268 | AN27: 22.22946055 | AO27: 23.32823134 | AP27: 24.43315947 | AQ27: 25.54647015 | AR27: 26.67029042 | AS27: 27.80665944 | AT27: 28.95753794 | AU27: 11.35796822 | AV27: 6.26044521e-06 | AW27: 6.49085145e-06 | AX27: 6.729737444e-06
E29: "Grossing-up" factor for tax on tax charge after losses | G29: scalar | W29: =1 / (1 - W26) -> 1.25 | X29: =1 / (1 - X26) -> 1.25 | Y29: =1 / (1 - Y26) -> 1.25 | Z29: 1.25 | AA29: 1.25 | AB29: 1.25 | AC29: 1.25 | AD29: 1.25 | AE29: 1.25 | AF29: 1.25 | AG29: 1.25 | AH29: 1.25 | AI29: 1.25 | AJ29: 1.25 | AK29: 1.25 | AL29: 1.25 | AM29: 1.25 | AN29: 1.25 | AO29: 1.25 | AP29: 1.25 | AQ29: 1.25 | AR29: 1.25 | AS29: 1.25 | AT29: 1.25 | AU29: 1.25 | AV29: 1.25 | AW29: 1.25 | AX29: 1.25
E31: Unprofiled tax allowance (cap) | G31: £m nominal prices | W31: =W27 * W29 -> 0.9319198097 | X31: =X27 * X29 -> 5.401772635 | Y31: =Y27 * Y29 -> 7.075738669 | Z31: =Z27 * Z29 -> 8.690456464 | AA31: 10.25280775 | AB31: 11.76918611 | AC31: 13.2455379 | AD31: 14.68739993 | AE31: 16.09993418 | AF31: 17.48795981 | AG31: 18.85598271 | AH31: 20.20822266 | AI31: 21.54863847 | AJ31: 22.88095111 | AK31: 23.68266171 | AL31: 25.05116521 | AM31: 26.41814085 | AN31: 27.78682569 | AO31: 29.16028917 | AP31: 30.54144934 | AQ31: 31.93308768 | AR31: 33.33786302 | AS31: 34.7583243 | AT31: 36.19692242 | AU31: 14.19746027 | AV31: 7.825556513e-06 | AW31: 8.113564313e-06 | AX31: 8.412171805e-06
C33: Profiled tax allowance (cap)
E35: =E31 -> Unprofiled tax allowance (cap) | G35: £m 15/16 prices | W35: =TaxCap!W31 / Finance!W71 -> 0.7728397281 | X35: =TaxCap!X31 / Finance!X71 -> 4.361485838 | Y35: =TaxCap!Y31 / Finance!Y71 -> 5.562336027 | Z35: =TaxCap!Z31 / Finance!Z71 -> 6.651434153 | AA35: =TaxCap!AA31 / Finance!AA71 -> 7.640165962 | AB35: =TaxCap!AB31 / Finance!AB71 -> 8.538737842 | AC35: =TaxCap!AC31 / Finance!AC71 -> 9.356299599 | AD35: =TaxCap!AD31 / Finance!AD71 -> 10.10105444 | AE35: =TaxCap!AE31 / Finance!AE71 -> 10.78035747 | AF35: =TaxCap!AF31 / Finance!AF71 -> 11.40080399 | AG35: =TaxCap!AG31 / Finance!AG71 -> 11.96830848 | AH35: =TaxCap!AH31 / Finance!AH71 -> 12.48817547 | AI35: =TaxCap!AI31 / Finance!AI71 -> 12.96516295 | AJ35: =TaxCap!AJ31 / Finance!AJ71 -> 13.4035392 | AK35: =TaxCap!AK31 / Finance!AK71 -> 13.50713367 | AL35: =TaxCap!AL31 / Finance!AL71 -> 13.91066488 | AM35: =TaxCap!AM31 / Finance!AM71 -> 14.28267254 | AN35: =TaxCap!AN31 / Finance!AN71 -> 14.62626492 | AO35: =TaxCap!AO31 / Finance!AO71 -> 14.94423182 | AP35: =TaxCap!AP31 / Finance!AP71 -> 15.23907768 | AQ35: =TaxCap!AQ31 / Finance!AQ71 -> 15.51305115 | AR35: =TaxCap!AR31 / Finance!AR71 -> 15.76817168 | AS35: =TaxCap!AS31 / Finance!AS71 -> 16.00625323 | AT35: =TaxCap!AT31 / Finance!AT71 -> 16.22892564 | AU35: =TaxCap!AU31 / Finance!AU71 -> 6.197493163 | AV35: =TaxCap!AV31 / Finance!AV71 -> 3.325890121e-06 | AW35: =TaxCap!AW31 / Finance!AW71 -> 3.35731135e-06 | AX35: =TaxCap!AX31 / Finance!AX71 -> 3.389029431e-06
E36: =AllowancesCap!E$25 -> Discount factor to start of operational period (cap) | G36: =AllowancesCap!G$25 -> scalar | W36: =AllowancesCap!W$25 -> 0.9261403103 | X36: =AllowancesCap!X$25 -> 0.8577358743 | Y36: =AllowancesCap!Y$25 -> 0.7943837687 | Z36: =AllowancesCap!Z$25 -> 0.73571083 | AA36: =AllowancesCap!AA$25 -> 0.6813714564 | AB36: =AllowancesCap!AB$25 -> 0.631045572 | AC36: =AllowancesCap!AC$25 -> 0.5844367419 | AD36: =AllowancesCap!AD$25 -> 0.5412704254 | AE36: =AllowancesCap!AE$25 -> 0.5012923597 | AF36: =AllowancesCap!AF$25 -> 0.4642670616 | AG36: =AllowancesCap!AG$25 -> 0.4299764405 | AH36: =AllowancesCap!AH$25 -> 0.398218514 | AI36: =AllowancesCap!AI$25 -> 0.3688062181 | AJ36: =AllowancesCap!AJ$25 -> 0.3415663052 | AK36: =AllowancesCap!AK$25 -> 0.3163383239 | AL36: =AllowancesCap!AL$25 -> 0.2929736734 | AM36: =AllowancesCap!AM$25 -> 0.2713347288 | AN36: =AllowancesCap!AN$25 -> 0.2512940299 | AO36: =AllowancesCap!AO$25 -> 0.2327335308 | AP36: =AllowancesCap!AP$25 -> 0.2155439045 | AQ36: =AllowancesCap!AQ$25 -> 0.1996238986 | AR36: =AllowancesCap!AR$25 -> 0.1848797393 | AS36: =AllowancesCap!AS$25 -> 0.1712245792 | AT36: =AllowancesCap!AT$25 -> 0.1585779849 | AU36: =AllowancesCap!AU$25 -> 0.1468654641 | AV36: =AllowancesCap!AV$25 -> 0.1360180265 | AW36: =AllowancesCap!AW$25 -> 0.1259717773 | AX36: =AllowancesCap!AX$25 -> 0.1166675409
E38: Discounted unprofiled tax allowance (cap) | G38: £m 15/16 prices | W38: =W35 * W36 -> 0.7157580255 | X38: =X35 * X36 -> 3.741002869 | Y38: =Y35 * Y36 -> 4.418629456 | Z38: 4.893532142 | AA38: 5.205791008 | AB38: 5.388332706 | AC38: 5.468165253 | AD38: 5.467402032 | AE38: 5.404110836 | AF38: 5.293017768 | AG38: 5.146090679 | AH38: 4.973022679 | AI38: 4.781632716 | AJ38: 4.578197361 | AK38: 4.272824027 | AL38: 4.075458591 | AM38: 3.875385081 | AN38: 3.675493054 | AO38: 3.478023838 | AP38: 3.284690304 | AQ38: 3.09677575 | AR38: 2.91521547 | AS38: 2.740663974 | AT38: 2.573550325 | AU38: 0.9101977097 | AV38: 4.523810105e-07 | AW38: 4.229264776e-07 | AX38: 3.953897297e-07
E39: NPV of tax allowance (cap) | G39: £m 15/16 prices | I39: =SUM(P38:AX38) -> 100.3729649
E41: =AllowancesCap!E$22 -> Annuity factor (cap) | G41: =AllowancesCap!G$22 -> scalar | I41: =AllowancesCap!I$22 -> 0.09347880861
E43: Annuity of tax allowance (cap) | G43: £m 15/16 prices | I43: =I39 * I41 -> 9.382745178 | L43: 9.382745178 | M43: hard coded value to prevent accidental updates as input values change
B45: End of sheet

Sheet TaxFloor
A1: TaxFloor | H1: Licence
E2: Parameter | G2: Units | H2: Terminology | I2: Constant | K2: Annual values
E3: Project year | K3: =Input!K3 -> -11 | L3: =K3 + 1 -> -10 | M3: -9 | N3: -8 | O3: -7 | P3: -6 | Q3: -5 | R3: -4 | S3: -3 | T3: -2 | U3: -1 | V3: 0 | W3: 1 | X3: 2 | Y3: 3 | Z3: 4 | AA3: 5 | AB3: 6 | AC3: 7 | AD3: 8 | AE3: 9 | AF3: 10 | AG3: 11 | AH3: 12 | AI3: 13 | AJ3: 14 | AK3: 15 | AL3: 16 | AM3: 17 | AN3: 18 | AO3: 19 | AP3: 20 | AQ3: 21 | AR3: 22 | AS3: 23 | AT3: 24 | AU3: 25 | AV3: 26 | AW3: 27 | AX3: 28
E4: Year ending | K4: =Input!K4 -> 2010-12-31 | L4: =DATE(YEAR(K4) + 1, MONTH(K4), DAY(K4)) -> 2011-12-31 | M4: 2012-12-31 | N4: 2013-12-31 | O4: 2014-12-31 | P4: 2015-12-31 | Q4: 2016-12-31 | R4: 2017-12-31 | S4: 2018-12-31 | T4: 2019-12-31 | U4: 2020-12-31 | V4: 2021-12-31 | W4: 2022-12-31 | X4: 2023-12-31 | Y4: 2024-12-31 | Z4: 2025-12-31 | AA4: 2026-12-31 | AB4: 2027-12-31 | AC4: 2028-12-31 | AD4: 2029-12-31 | AE4: 2030-12-31 | AF4: 2031-12-31 | AG4: 2032-12-31 | AH4: 2033-12-31 | AI4: 2034-12-31 | AJ4: 2035-12-31 | AK4: 2036-12-31 | AL4: 2037-12-31 | AM4: 2038-12-31 | AN4: 2039-12-31 | AO4: 2040-12-31 | AP4: 2041-12-31 | AQ4: 2042-12-31 | AR4: 2043-12-31 | AS4: 2044-12-31 | AT4: 2045-12-31 | AU4: 2046-12-31 | AV4: 2047-12-31 | AW4: 2048-12-31 | AX4: 2049-12-31
B6: Tax (floor)
C8: Unprofiled tax allowance (floor)
D10: Profits attributable to corporation tax
E12: Annuitised allowances except tax (floor) | G12: £m nominal prices | W12: =AllowancesFloor!W35 * Finance!W71 -> 60.63963468 | X12: =AllowancesFloor!X35 * Finance!X71 -> 62.28296878 | Y12: =AllowancesFloor!Y35 * Finance!Y71 -> 63.97083724 | Z12: =AllowancesFloor!Z35 * Finance!Z71 -> 65.70444693 | AA12: =AllowancesFloor!AA35 * Finance!AA71 -> 67.48503744 | AB12: =AllowancesFloor!AB35 * Finance!AB71 -> 69.31388195 | AC12: =AllowancesFloor!AC35 * Finance!AC71 -> 71.19228815 | AD12: =AllowancesFloor!AD35 * Finance!AD71 -> 73.12159916 | AE12: =AllowancesFloor!AE35 * Finance!AE71 -> 75.1031945 | AF12: =AllowancesFloor!AF35 * Finance!AF71 -> 77.13849107 | AG12: =AllowancesFloor!AG35 * Finance!AG71 -> 79.22894418 | AH12: =AllowancesFloor!AH35 * Finance!AH71 -> 81.37604857 | AI12: =AllowancesFloor!AI35 * Finance!AI71 -> 83.58133948 | AJ12: =AllowancesFloor!AJ35 * Finance!AJ71 -> 85.84639378 | AK12: =AllowancesFloor!AK35 * Finance!AK71 -> 88.17283105 | AL12: =AllowancesFloor!AL35 * Finance!AL71 -> 90.56231478 | AM12: =AllowancesFloor!AM35 * Finance!AM71 -> 93.01655351 | AN12: =AllowancesFloor!AN35 * Finance!AN71 -> 95.53730211 | AO12: =AllowancesFloor!AO35 * Finance!AO71 -> 98.12636299 | AP12: =AllowancesFloor!AP35 * Finance!AP71 -> 100.7855874 | AQ12: =AllowancesFloor!AQ35 * Finance!AQ71 -> 103.5168768 | AR12: =AllowancesFloor!AR35 * Finance!AR71 -> 106.3221842 | AS12: =AllowancesFloor!AS35 * Finance!AS71 -> 109.2035154 | AT12: =AllowancesFloor!AT35 * Finance!AT71 -> 112.1629307 | AU12: =AllowancesFloor!AU35 * Finance!AU71 -> 115.2025461 | AV12: =AllowancesFloor!AV35 * Finance!AV71 -> 0 | AW12: =AllowancesFloor!AW35 * Finance!AW71 -> 0 | AX12: =AllowancesFloor!AX35 * Finance!AX71 -> 0
E13: Less tax deductions | G13: £m nominal prices | W13: =-Deductions!W14 -> -98.53070126 | X13: =-Deductions!X14 -> -83.42249207 | Y13: =-Deductions!Y14 -> -79.57292962 | Z13: =-Deductions!Z14 -> -76.0374949 | AA13: =-Deductions!AA14 -> -72.79075136 | AB13: =-Deductions!AB14 -> -69.80927163 | AC13: =-Deductions!AC14 -> -67.07147549 | AD13: =-Deductions!AD14 -> -64.55748068 | AE13: =-Deductions!AE14 -> -62.24896558 | AF13: =-Deductions!AF14 -> -60.12904287 | AG13: =-Deductions!AG14 -> -58.18214318 | AH13: =-Deductions!AH14 -> -56.39390799 | AI13: =-Deductions!AI14 -> -54.751091 | AJ13: =-Deductions!AJ14 -> -53.2414674 | AK13: =-Deductions!AK14 -> -53.95776386 | AL13: =-Deductions!AL14 -> -52.51320579 | AM13: =-Deductions!AM14 -> -51.18395742 | AN13: =-Deductions!AN14 -> -49.9600298 | AO13: =-Deductions!AO14 -> -48.83218456 | AP13: =-Deductions!AP14 -> -47.79187145 | AQ13: =-Deductions!AQ14 -> -46.8311709 | AR13: =-Deductions!AR14 -> -45.94274096 | AS13: =-Deductions!AS14 -> -45.11976851 | AT13: =-Deductions!AT14 -> -44.35592409 | AU13: =-Deductions!AU14 -> -137.4795646 | AV13: =-Deductions!AV14 -> 3.130222605e-05 | AW13: =-Deductions!AW14 -> 3.245425725e-05 | AX13: =-Deductions!AX14 -> 3.364868722e-05
E14: Profits attributable to corporation tax | G14: £m nominal prices | W14: =SUM(W12:W13) -> -37.89106657 | X14: -21.13952328 | Y14: -15.60209238 | Z14: -10.33304797 | AA14: -5.305713918 | AB14: -0.4953896766 | AC14: 4.120812661 | AD14: 8.564118485 | AE14: 12.85422892 | AF14: 17.0094482 | AG14: 21.04680099 | AH14: 24.98214058 | AI14: 28.83024848 | AJ14: 32.60492639 | AK14: 34.21506719 | AL14: 38.04910898 | AM14: 41.83259609 | AN14: 45.5772723 | AO14: 49.29417843 | AP14: 52.99371598 | AQ14: 56.68570595 | AR14: 60.37944325 | AS14: 64.0837469 | AT14: 67.80700658 | AU14: -22.27701852 | AV14: 3.130222605e-05 | AW14: 3.245425725e-05 | AX14: 3.364868722e-05
D16: Tax losses
E18: Taxable losses brought forward | G18: £m nominal prices | X18: =W21 -> -37.89106657 | Y18: -59.03058986 | Z18: -74.63268224 | AA18: -84.96573021 | AB18: -90.27144413 | AC18: -90.76683381 | AD18: -86.64602115 | AE18: -78.08190266 | AF18: -65.22767374 | AG18: -48.21822554 | AH18: -27.17142455 | AI18: -2.189283968 | AJ18: 0 | AK18: 0 | AL18: 0 | AM18: 0 | AN18: 0 | AO18: 0 | AP18: 0 | AQ18: 0 | AR18: 0 | AS18: 0 | AT18: 0 | AU18: 0 | AV18: -22.27701852 | AW18: -22.27698722 | AX18: -22.27695476
E19: In-year taxable loss | G19: £m nominal prices | W19: =MIN(W14, 0) -> -37.89106657 | X19: -21.13952328 | Y19: -15.60209238 | Z19: -10.33304797 | AA19: -5.305713918 | AB19: -0.4953896766 | AC19: 0 | AD19: 0 | AE19: 0 | AF19: 0 | AG19: 0 | AH19: 0 | AI19: 0 | AJ19: 0 | AK19: 0 | AL19: 0 | AM19: 0 | AN19: 0 | AO19: 0 | AP19: 0 | AQ19: 0 | AR19: 0 | AS19: 0 | AT19: 0 | AU19: -22.27701852 | AV19: 0 | AW19: 0 | AX19: 0
E20: Profits attributable to corporation tax | G20: £m nominal prices | W20: =IF(W14 >= 0, MIN(W14, -W18), 0) -> 0 | X20: 0 | Y20: 0 | Z20: 0 | AA20: 0 | AB20: 0 | AC20: 4.120812661 | AD20: 8.564118485 | AE20: 12.85422892 | AF20: 17.0094482 | AG20: 21.04680099 | AH20: 24.98214058 | AI20: 2.189283968 | AJ20: 0 | AK20: 0 | AL20: 0 | AM20: 0 | AN20: 0 | AO20: 0 | AP20: 0 | AQ20: 0 | AR20: 0 | AS20: 0 | AT20: 0 | AU20: 0 | AV20: 3.130222605e-05 | AW20: 3.245425725e-05 | AX20: 3.364868722e-05
E21: Balance carried forward | G21: £m nominal prices | W21: =SUM(W18:W20) -> -37.89106657 | X21: -59.03058986 | Y21: -74.63268224 | Z21: -84.96573021 | AA21: -90.27144413 | AB21: -90.76683381 | AC21: -86.64602115 | AD21: -78.08190266 | AE21: -65.22767374 | AF21: -48.21822554 | AG21: -27.17142455 | AH21: -2.189283968 | AI21: 0 | AJ21: 0 | AK21: 0 | AL21: 0 | AM21: 0 | AN21: 0 | AO21: 0 | AP21: 0 | AQ21: 0 | AR21: 0 | AS21: 0 | AT21: 0 | AU21: -22.27701852 | AV21: -22.27698722 | AW21: -22.27695476 | AX21: -22.27692111
D23: Tax allowance
E25: Profits attributable to corporation tax (after taxable losses) | G25: £m nominal prices | W25: =MAX(W14 - W20,0) -> 0 | X25: 0 | Y25: 0 | Z25: 0 | AA25: 0 | AB25: 0 | AC25: 0 | AD25: 0 | AE25: 0 | AF25: 0 | AG25: 0 | AH25: 0 | AI25: 26.64096451 | AJ25: 32.60492639 | AK25: 34.21506719 | AL25: 38.04910898 | AM25: 41.83259609 | AN25: 45.5772723 | AO25: 49.29417843 | AP25: 52.99371598 | AQ25: 56.68570595 | AR25: 60.37944325 | AS25: 64.0837469 | AT25: 67.80700658 | AU25: 0 | AV25: 0 | AW25: 0 | AX25: 0
E26: =Input!E72 -> Corporation tax rate | G26: =Input!G72 -> % | W26: =Input!W72 -> 0.2 | X26: =Input!X72 -> 0.2 | Y26: =Input!Y72 -> 0.2 | Z26: =Input!Z72 -> 0.2 | AA26: =Input!AA72 -> 0.2 | AB26: =Input!AB72 -> 0.2 | AC26: =Input!AC72 -> 0.2 | AD26: =Input!AD72 -> 0.2 | AE26: =Input!AE72 -> 0.2 | AF26: =Input!AF72 -> 0.2 | AG26: =Input!AG72 -> 0.2 | AH26: =Input!AH72 -> 0.2 | AI26: =Input!AI72 -> 0.2 | AJ26: =Input!AJ72 -> 0.2 | AK26: =Input!AK72 -> 0.2 | AL26: =Input!AL72 -> 0.2 | AM26: =Input!AM72 -> 0.2 | AN26: =Input!AN72 -> 0.2 | AO26: =Input!AO72 -> 0.2 | AP26: =Input!AP72 -> 0.2 | AQ26: =Input!AQ72 -> 0.2 | AR26: =Input!AR72 -> 0.2 | AS26: =Input!AS72 -> 0.2 | AT26: =Input!AT72 -> 0.2 | AU26: =Input!AU72 -> 0.2 | AV26: =Input!AV72 -> 0.2 | AW26: =Input!AW72 -> 0.2 | AX26: =Input!AX72 -> 0.2
E27: Corporation tax charge after losses | G27: £m nominal prices | W27: =W25 * $W26 -> 0 | X27: 0 | Y27: 0 | Z27: 0 | AA27: 0 | AB27: 0 | AC27: 0 | AD27: 0 | AE27: 0 | AF27: 0 | AG27: 0 | AH27: 0 | AI27: 5.328192902 | AJ27: 6.520985277 | AK27: 6.843013438 | AL27: 7.609821796 | AM27: 8.366519218 | AN27: 9.115454461 | AO27: 9.858835687 | AP27: 10.5987432 | AQ27: 11.33714119 | AR27: 12.07588865 | AS27: 12.81674938 | AT27: 13.56140132 | AU27: 0 | AV27: 0 | AW27: 0 | AX27: 0
E29: "Grossing-up" factor for tax on tax charge after losses | G29: scalar | W29: =1 / (1 - W26) -> 1.25 | X29: =1 / (1 - X26) -> 1.25 | Y29: 1.25 | Z29: 1.25 | AA29: 1.25 | AB29: 1.25 | AC29: 1.25 | AD29: 1.25 | AE29: 1.25 | AF29: 1.25 | AG29: 1.25 | AH29: 1.25 | AI29: 1.25 | AJ29: 1.25 | AK29: 1.25 | AL29: 1.25 | AM29: 1.25 | AN29: 1.25 | AO29: 1.25 | AP29: 1.25 | AQ29: 1.25 | AR29: 1.25 | AS29: 1.25 | AT29: 1.25 | AU29: 1.25 | AV29: 1.25 | AW29: 1.25 | AX29: 1.25
E31: Unprofiled tax allowance (floor) | G31: £m nominal prices | W31: =W27 * W29 -> 0 | X31: =X27 * X29 -> 0 | Y31: 0 | Z31: 0 | AA31: 0 | AB31: 0 | AC31: 0 | AD31: 0 | AE31: 0 | AF31: 0 | AG31: 0 | AH31: 0 | AI31: 6.660241128 | AJ31: 8.151231597 | AK31: 8.553766798 | AL31: 9.512277246 | AM31: 10.45814902 | AN31: 11.39431808 | AO31: 12.32354461 | AP31: 13.24842899 | AQ31: 14.17142649 | AR31: 15.09486081 | AS31: 16.02093672 | AT31: 16.95175165 | AU31: 0 | AV31: 0 | AW31: 0 | AX31: 0
C33: Profiled tax allowance (floor)
E35: =TaxFloor!E31 -> Unprofiled tax allowance (floor) | G35: £m 15/16 prices | W35: =TaxFloor!W31 / Finance!W71 -> 0 | X35: =TaxFloor!X31 / Finance!X71 -> 0 | Y35: =TaxFloor!Y31 / Finance!Y71 -> 0 | Z35: =TaxFloor!Z31 / Finance!Z71 -> 0 | AA35: =TaxFloor!AA31 / Finance!AA71 -> 0 | AB35: =TaxFloor!AB31 / Finance!AB71 -> 0 | AC35: =TaxFloor!AC31 / Finance!AC71 -> 0 | AD35: =TaxFloor!AD31 / Finance!AD71 -> 0 | AE35: =TaxFloor!AE31 / Finance!AE71 -> 0 | AF35: =TaxFloor!AF31 / Finance!AF71 -> 0 | AG35: =TaxFloor!AG31 / Finance!AG71 -> 0 | AH35: =TaxFloor!AH31 / Finance!AH71 -> 0 | AI35: =TaxFloor!AI31 / Finance!AI71 -> 4.007265316 | AJ35: =TaxFloor!AJ31 / Finance!AJ71 -> 4.774948021 | AK35: =TaxFloor!AK31 / Finance!AK71 -> 4.878542495 | AL35: =TaxFloor!AL31 / Finance!AL71 -> 5.282073705 | AM35: =TaxFloor!AM31 / Finance!AM71 -> 5.654081365 | AN35: =TaxFloor!AN31 / Finance!AN71 -> 5.997673741 | AO35: =TaxFloor!AO31 / Finance!AO71 -> 6.315640644 | AP35: =TaxFloor!AP31 / Finance!AP71 -> 6.610486502 | AQ35: =TaxFloor!AQ31 / Finance!AQ71 -> 6.884459975 | AR35: =TaxFloor!AR31 / Finance!AR71 -> 7.139580499 | AS35: =TaxFloor!AS31 / Finance!AS71 -> 7.377662054 | AT35: =TaxFloor!AT31 / Finance!AT71 -> 7.600334464 | AU35: =TaxFloor!AU31 / Finance!AU71 -> 0 | AV35: =TaxFloor!AV31 / Finance!AV71 -> 0 | AW35: =TaxFloor!AW31 / Finance!AW71 -> 0 | AX35: =TaxFloor!AX31 / Finance!AX71 -> 0
E36: =AllowancesFloor!E$25 -> Discount factor to start of operational period (floor) | G36: =AllowancesFloor!G$25 -> scalar | W36: =AllowancesFloor!W$25 -> 0.9912767645 | X36: =AllowancesFloor!X$25 -> 0.9826296238 | Y36: =AllowancesFloor!Y$25 -> 0.9740579141 | Z36: =AllowancesFloor!Z$25 -> 0.9655609775 | AA36: =AllowancesFloor!AA$25 -> 0.9571381617 | AB36: =AllowancesFloor!AB$25 -> 0.9487888201 | AC36: =AllowancesFloor!AC$25 -> 0.9405123118 | AD36: =AllowancesFloor!AD$25 -> 0.9323080013 | AE36: =AllowancesFloor!AE$25 -> 0.9241752591 | AF36: =AllowancesFloor!AF$25 -> 0.9161134606 | AG36: =AllowancesFloor!AG$25 -> 0.9081219871 | AH36: =AllowancesFloor!AH$25 -> 0.9002002251 | AI36: =AllowancesFloor!AI$25 -> 0.8923475666 | AJ36: =AllowancesFloor!AJ$25 -> 0.8845634086 | AK36: =AllowancesFloor!AK$25 -> 0.8768471536 | AL36: =AllowancesFloor!AL$25 -> 0.8691982094 | AM36: =AllowancesFloor!AM$25 -> 0.8616159887 | AN36: =AllowancesFloor!AN$25 -> 0.8540999095 | AO36: =AllowancesFloor!AO$25 -> 0.8466493948 | AP36: =AllowancesFloor!AP$25 -> 0.8392638727 | AQ36: =AllowancesFloor!AQ$25 -> 0.8319427763 | AR36: =AllowancesFloor!AR$25 -> 0.8246855435 | AS36: =AllowancesFloor!AS$25 -> 0.8174916173 | AT36: =AllowancesFloor!AT$25 -> 0.8103604453 | AU36: =AllowancesFloor!AU$25 -> 0.8032914803 | AV36: =AllowancesFloor!AV$25 -> 0.7962841795 | AW36: =AllowancesFloor!AW$25 -> 0.7893380051 | AX36: =AllowancesFloor!AX$25 -> 0.7824524238
E38: Discounted unprofiled tax allowance (floor) | G38: £m 15/16 prices | W38: =W35 * AllowancesFloor!W$25 -> 0 | X38: =X35 * AllowancesFloor!X$25 -> 0 | Y38: =Y35 * AllowancesFloor!Y$25 -> 0 | Z38: =Z35 * AllowancesFloor!Z$25 -> 0 | AA38: =AA35 * AllowancesFloor!AA$25 -> 0 | AB38: =AB35 * AllowancesFloor!AB$25 -> 0 | AC38: =AC35 * AllowancesFloor!AC$25 -> 0 | AD38: =AD35 * AllowancesFloor!AD$25 -> 0 | AE38: =AE35 * AllowancesFloor!AE$25 -> 0 | AF38: =AF35 * AllowancesFloor!AF$25 -> 0 | AG38: =AG35 * AllowancesFloor!AG$25 -> 0 | AH38: =AH35 * AllowancesFloor!AH$25 -> 0 | AI38: =AI35 * AllowancesFloor!AI$25 -> 3.575873454 | AJ38: =AJ35 * AllowancesFloor!AJ$25 -> 4.223744297 | AK38: =AK35 * AllowancesFloor!AK$25 -> 4.2777361 | AL38: =AL35 * AllowancesFloor!AL$25 -> 4.591169006 | AM38: =AM35 * AllowancesFloor!AM$25 -> 4.871646906 | AN38: =AN35 * AllowancesFloor!AN$25 -> 5.122612599 | AO38: =AO35 * AllowancesFloor!AO$25 -> 5.347133329 | AP38: =AP35 * AllowancesFloor!AP$25 -> 5.547942502 | AQ38: =AQ35 * AllowancesFloor!AQ$25 -> 5.727476745 | AR38: =AR35 * AllowancesFloor!AR$25 -> 5.887908824 | AS38: =AS35 * AllowancesFloor!AS$25 -> 6.031176885 | AT38: =AT35 * AllowancesFloor!AT$25 -> 6.159010421 | AU38: =AU35 * AllowancesFloor!AU$25 -> 0 | AV38: =AV35 * AllowancesFloor!AV$25 -> 0 | AW38: =AW35 * AllowancesFloor!AW$25 -> 0 | AX38: =AX35 * AllowancesFloor!AX$25 -> 0
E39: NPV of tax allowance (floor) | G39: £m 15/16 prices | I39: =SUM(P38:AX38) -> 61.36343107
E41: =AllowancesFloor!E$22 -> Annuity factor (floor) | G41: =AllowancesFloor!G$22 -> scalar | I41: =AllowancesFloor!I$22 -> 0.0447362423
E43: Annuity of tax allowance (floor) | G43: £m 15/16 prices | I43: =I39 * I41 -> 2.745169321 | L43: 2.745169321 | M43: hard coded value to prevent accidental updates as input values change
B45: End of sheet

Sheet Availability
A1: Availability | H1: Licence
E2: Parameter | G2: Units | H2: Terminology | I2: Constant | K2: Annual values
E3: Project year | K3: =Input!K3 -> -11 | L3: =K3 + 1 -> -10 | M3: -9 | N3: -8 | O3: -7 | P3: -6 | Q3: -5 | R3: -4 | S3: -3 | T3: -2 | U3: -1 | V3: 0 | W3: 1 | X3: 2 | Y3: 3 | Z3: 4 | AA3: 5 | AB3: 6 | AC3: 7 | AD3: 8 | AE3: 9 | AF3: 10 | AG3: 11 | AH3: 12 | AI3: 13 | AJ3: 14 | AK3: 15 | AL3: 16 | AM3: 17 | AN3: 18 | AO3: 19 | AP3: 20 | AQ3: 21 | AR3: 22 | AS3: 23 | AT3: 24 | AU3: 25 | AV3: 26 | AW3: 27 | AX3: 28
E4: Year ending | K4: =Input!K4 -> 2010-12-31 | L4: =DATE(YEAR(K4) + 1, MONTH(K4), DAY(K4)) -> 2011-12-31 | M4: 2012-12-31 | N4: 2013-12-31 | O4: 2014-12-31 | P4: 2015-12-31 | Q4: 2016-12-31 | R4: 2017-12-31 | S4: 2018-12-31 | T4: 2019-12-31 | U4: 2020-12-31 | V4: 2021-12-31 | W4: 2022-12-31 | X4: 2023-12-31 | Y4: 2024-12-31 | Z4: 2025-12-31 | AA4: 2026-12-31 | AB4: 2027-12-31 | AC4: 2028-12-31 | AD4: 2029-12-31 | AE4: 2030-12-31 | AF4: 2031-12-31 | AG4: 2032-12-31 | AH4: 2033-12-31 | AI4: 2034-12-31 | AJ4: 2035-12-31 | AK4: 2036-12-31 | AL4: 2037-12-31 | AM4: 2038-12-31 | AN4: 2039-12-31 | AO4: 2040-12-31 | AP4: 2041-12-31 | AQ4: 2042-12-31 | AR4: 2043-12-31 | AS4: 2044-12-31 | AT4: 2045-12-31 | AU4: 2046-12-31 | AV4: 2047-12-31 | AW4: 2048-12-31 | AX4: 2049-12-31
B6: Availability incentives
C8: Avaliability incentive
E10: Cap (pre-availability incentive) | G10: £m 15/16 prices | W10: =AllowancesCap!$I34+TaxCap!$I43 -> 94.18546978 | X10: =AllowancesCap!$I34+TaxCap!$I43 -> 94.18546978 | Y10: =AllowancesCap!$I34+TaxCap!$I43 -> 94.18546978 | Z10: =AllowancesCap!$I34+TaxCap!$I43 -> 94.18546978 | AA10: =AllowancesCap!$I34+TaxCap!$I43 -> 94.18546978 | AB10: =AllowancesCap!$I34+TaxCap!$I43 -> 94.18546978 | AC10: =AllowancesCap!$I34+TaxCap!$I43 -> 94.18546978 | AD10: =AllowancesCap!$I34+TaxCap!$I43 -> 94.18546978 | AE10: =AllowancesCap!$I34+TaxCap!$I43 -> 94.18546978 | AF10: =AllowancesCap!$I34+TaxCap!$I43 -> 94.18546978 | AG10: =AllowancesCap!$I34+TaxCap!$I43 -> 94.18546978 | AH10: =AllowancesCap!$I34+TaxCap!$I43 -> 94.18546978 | AI10: =AllowancesCap!$I34+TaxCap!$I43 -> 94.18546978 | AJ10: =AllowancesCap!$I34+TaxCap!$I43 -> 94.18546978 | AK10: =AllowancesCap!$I34+TaxCap!$I43 -> 94.18546978 | AL10: =AllowancesCap!$I34+TaxCap!$I43 -> 94.18546978 | AM10: =AllowancesCap!$I34+TaxCap!$I43 -> 94.18546978 | AN10: =AllowancesCap!$I34+TaxCap!$I43 -> 94.18546978 | AO10: =AllowancesCap!$I34+TaxCap!$I43 -> 94.18546978 | AP10: =AllowancesCap!$I34+TaxCap!$I43 -> 94.18546978 | AQ10: =AllowancesCap!$I34+TaxCap!$I43 -> 94.18546978 | AR10: =AllowancesCap!$I34+TaxCap!$I43 -> 94.18546978 | AS10: =AllowancesCap!$I34+TaxCap!$I43 -> 94.18546978 | AT10: =AllowancesCap!$I34+TaxCap!$I43 -> 94.18546978 | AU10: =AllowancesCap!$I34+TaxCap!$I43 -> 94.18546978 | AV10: =AllowancesCap!$I34+TaxCap!$I43 -> 94.18546978 | AW10: =AllowancesCap!$I34+TaxCap!$I43 -> 94.18546978 | AX10: =AllowancesCap!$I34+TaxCap!$I43 -> 94.18546978
E11: Floor (pre-availability incentive) | G11: £m 15/16 prices | W11: =AllowancesFloor!$I34+TaxFloor!$I43 -> 53.03352921 | X11: =AllowancesFloor!$I34+TaxFloor!$I43 -> 53.03352921 | Y11: =AllowancesFloor!$I34+TaxFloor!$I43 -> 53.03352921 | Z11: =AllowancesFloor!$I34+TaxFloor!$I43 -> 53.03352921 | AA11: =AllowancesFloor!$I34+TaxFloor!$I43 -> 53.03352921 | AB11: =AllowancesFloor!$I34+TaxFloor!$I43 -> 53.03352921 | AC11: =AllowancesFloor!$I34+TaxFloor!$I43 -> 53.03352921 | AD11: =AllowancesFloor!$I34+TaxFloor!$I43 -> 53.03352921 | AE11: =AllowancesFloor!$I34+TaxFloor!$I43 -> 53.03352921 | AF11: =AllowancesFloor!$I34+TaxFloor!$I43 -> 53.03352921 | AG11: =AllowancesFloor!$I34+TaxFloor!$I43 -> 53.03352921 | AH11: =AllowancesFloor!$I34+TaxFloor!$I43 -> 53.03352921 | AI11: =AllowancesFloor!$I34+TaxFloor!$I43 -> 53.03352921 | AJ11: =AllowancesFloor!$I34+TaxFloor!$I43 -> 53.03352921 | AK11: =AllowancesFloor!$I34+TaxFloor!$I43 -> 53.03352921 | AL11: =AllowancesFloor!$I34+TaxFloor!$I43 -> 53.03352921 | AM11: =AllowancesFloor!$I34+TaxFloor!$I43 -> 53.03352921 | AN11: =AllowancesFloor!$I34+TaxFloor!$I43 -> 53.03352921 | AO11: =AllowancesFloor!$I34+TaxFloor!$I43 -> 53.03352921 | AP11: =AllowancesFloor!$I34+TaxFloor!$I43 -> 53.03352921 | AQ11: =AllowancesFloor!$I34+TaxFloor!$I43 -> 53.03352921 | AR11: =AllowancesFloor!$I34+TaxFloor!$I43 -> 53.03352921 | AS11: =AllowancesFloor!$I34+TaxFloor!$I43 -> 53.03352921 | AT11: =AllowancesFloor!$I34+TaxFloor!$I43 -> 53.03352921 | AU11: =AllowancesFloor!$I34+TaxFloor!$I43 -> 53.03352921 | AV11: =AllowancesFloor!$I34+TaxFloor!$I43 -> 53.03352921 | AW11: =AllowancesFloor!$I34+TaxFloor!$I43 -> 53.03352921 | AX11: =AllowancesFloor!$I34+TaxFloor!$I43 -> 53.03352921
E13: Cap availability incentive rate | G13: scalar | H13: AICt | W13: =W43 -> 1.02 | X13: =X43 -> 1.02 | Y13: 1.02 | Z13: 1.02 | AA13: 1.02 | AB13: 1.02 | AC13: 1.02 | AD13: 1.02 | AE13: 1.02 | AF13: 1.02 | AG13: 1.02 | AH13: 1.02 | AI13: 1.02 | AJ13: 1.02 | AK13: 1.02 | AL13: 1.02 | AM13: 1.02 | AN13: 1.02 | AO13: 1.02 | AP13: 1.02 | AQ13: 1.02 | AR13: 1.02 | AS13: 1.02 | AT13: 1.02 | AU13: 1.02 | AV13: 0 | AW13: 0 | AX13: 0
E14: Floor availability incentive rate | G14: scalar | H14: AIFt | W14: =W57 -> 1 | X14: 1 | Y14: 1 | Z14: 1 | AA14: 1 | AB14: 1 | AC14: 1 | AD14: 1 | AE14: 1 | AF14: 1 | AG14: 1 | AH14: 1 | AI14: 1 | AJ14: 1 | AK14: 1 | AL14: 1 | AM14: 1 | AN14: 1 | AO14: 1 | AP14: 1 | AQ14: 1 | AR14: 1 | AS14: 1 | AT14: 1 | AU14: =AU57 -> 1 | AV14: =AV57 -> 0 | AW14: 0 | AX14: 0
E16: Cap (post-availability incentive) | G16: £m 15/16 prices | W16: =W10 *W13 -> 96.06917918 | X16: =X10 *X13 -> 96.06917918 | Y16: 96.06917918 | Z16: 96.06917918 | AA16: 96.06917918 | AB16: 96.06917918 | AC16: 96.06917918 | AD16: 96.06917918 | AE16: 96.06917918 | AF16: 96.06917918 | AG16: 96.06917918 | AH16: 96.06917918 | AI16: 96.06917918 | AJ16: 96.06917918 | AK16: 96.06917918 | AL16: 96.06917918 | AM16: 96.06917918 | AN16: 96.06917918 | AO16: 96.06917918 | AP16: 96.06917918 | AQ16: 96.06917918 | AR16: 96.06917918 | AS16: 96.06917918 | AT16: 96.06917918 | AU16: 96.06917918 | AV16: 0 | AW16: 0 | AX16: 0
E17: Floor (post-availability incentive) | G17: £m 15/16 prices | W17: =W11 *W14 -> 53.03352921 | X17: =X11 *X14 -> 53.03352921 | Y17: 53.03352921 | Z17: 53.03352921 | AA17: 53.03352921 | AB17: 53.03352921 | AC17: 53.03352921 | AD17: 53.03352921 | AE17: 53.03352921 | AF17: 53.03352921 | AG17: 53.03352921 | AH17: 53.03352921 | AI17: 53.03352921 | AJ17: 53.03352921 | AK17: 53.03352921 | AL17: 53.03352921 | AM17: 53.03352921 | AN17: 53.03352921 | AO17: 53.03352921 | AP17: 53.03352921 | AQ17: 53.03352921 | AR17: 53.03352921 | AS17: 53.03352921 | AT17: 53.03352921 | AU17: 53.03352921 | AV17: 0 | AW17: 0 | AX17: 0
D21: Upper and lower availability limits
E23: =Input!E89 -> Number of operational years | G23: =Input!G89 -> full years | I23: =Input!I89 -> 25
E24: Year is within operational period | G24: flag | W24: =AND(W3 > 0, W3<= $I23) -> TRUE | X24: TRUE | Y24: TRUE | Z24: TRUE | AA24: TRUE | AB24: TRUE | AC24: TRUE | AD24: TRUE | AE24: TRUE | AF24: TRUE | AG24: TRUE | AH24: TRUE | AI24: TRUE | AJ24: TRUE | AK24: TRUE | AL24: TRUE | AM24: TRUE | AN24: TRUE | AO24: TRUE | AP24: TRUE | AQ24: TRUE | AR24: TRUE | AS24: TRUE | AT24: TRUE | AU24: TRUE | AV24: FALSE | AW24: FALSE | AX24: FALSE
E26: Interconnector Rated Capacity | G26: MW | H26: RC | I26: =Input!I52 -> 1400
E27: Number of Hours in Relevant Year | G27: hours pa | I27: =Input!I53 -> 8766
D29: Cap incentive rate
E31: =Input!E56 -> Cap availability incentive target | G31: =Input!G56 -> % | I31: =Input!I56 -> 0.93
E33: Maximum Possible Availability | G33: MWh | H33: MPA | W33: =$I$26*$I$27*W24 -> 12272400 | X33: =$I$26*$I$27*X24 -> 12272400 | Y33: =$I$26*$I$27*Y24 -> 12272400 | Z33: 12272400 | AA33: 12272400 | AB33: 12272400 | AC33: 12272400 | AD33: 12272400 | AE33: 12272400 | AF33: 12272400 | AG33: 12272400 | AH33: 12272400 | AI33: 12272400 | AJ33: 12272400 | AK33: 12272400 | AL33: 12272400 | AM33: 12272400 | AN33: 12272400 | AO33: 12272400 | AP33: 12272400 | AQ33: 12272400 | AR33: 12272400 | AS33: 12272400 | AT33: 12272400 | AU33: 12272400 | AV33: 0 | AW33: 0 | AX33: 0
E34: Total Interconnector Outages less Allowed Outages during Active Cap Period | G34: MWh | H34: IOt | W34: =Input!W62 -> 0 | X34: =Input!X62 -> 0 | Y34: =Input!Y62 -> 0 | Z34: =Input!Z62 -> 0 | AA34: =Input!AA62 -> 0 | AB34: =Input!AB62 -> 0 | AC34: =Input!AC62 -> 0 | AD34: =Input!AD62 -> 0 | AE34: =Input!AE62 -> 0 | AF34: =Input!AF62 -> 0 | AG34: =Input!AG62 -> 0 | AH34: =Input!AH62 -> 0 | AI34: =Input!AI62 -> 0 | AJ34: =Input!AJ62 -> 0 | AK34: =Input!AK62 -> 0 | AL34: =Input!AL62 -> 0 | AM34: =Input!AM62 -> 0 | AN34: =Input!AN62 -> 0 | AO34: =Input!AO62 -> 0 | AP34: =Input!AP62 -> 0 | AQ34: =Input!AQ62 -> 0 | AR34: =Input!AR62 -> 0 | AS34: =Input!AS62 -> 0 | AT34: =Input!AT62 -> 0 | AU34: =Input!AU62 -> 0 | AV34: =Input!AV62 -> 0 | AW34: =Input!AW62 -> 0 | AX34: =Input!AX62 -> 0
E35: Actual Availability for Cap | G35: MWh | H35: AACt (AAt) | W35: =W33-W34 -> 12272400 | X35: =X33-X34 -> 12272400 | Y35: =Y33-Y34 -> 12272400 | Z35: 12272400 | AA35: 12272400 | AB35: 12272400 | AC35: 12272400 | AD35: 12272400 | AE35: 12272400 | AF35: 12272400 | AG35: 12272400 | AH35: 12272400 | AI35: 12272400 | AJ35: 12272400 | AK35: 12272400 | AL35: 12272400 | AM35: 12272400 | AN35: 12272400 | AO35: 12272400 | AP35: 12272400 | AQ35: 12272400 | AR35: 12272400 | AS35: 12272400 | AT35: 12272400 | AU35: 12272400 | AV35: 0 | AW35: 0 | AX35: 0
E36: Availability Target | G36: MWh | H36: AT | W36: =$I27*$I26*$I31*W24 -> 11413332 | X36: =$I27*$I26*$I31*X24 -> 11413332 | Y36: 11413332 | Z36: 11413332 | AA36: 11413332 | AB36: 11413332 | AC36: 11413332 | AD36: 11413332 | AE36: 11413332 | AF36: 11413332 | AG36: 11413332 | AH36: 11413332 | AI36: 11413332 | AJ36: 11413332 | AK36: 11413332 | AL36: 11413332 | AM36: 11413332 | AN36: 11413332 | AO36: 11413332 | AP36: 11413332 | AQ36: 11413332 | AR36: 11413332 | AS36: 11413332 | AT36: 11413332 | AU36: 11413332 | AV36: 0 | AW36: 0 | AX36: 0
E37: Availability Performance at Cap | G37: scalar | H37: APCt | W37: =IF(W36=0,0,W35/W36) -> 1.075268817 | X37: =IF(X36=0,0,X35/X36) -> 1.075268817 | Y37: =IF(Y36=0,0,Y35/Y36) -> 1.075268817 | Z37: 1.075268817 | AA37: 1.075268817 | AB37: 1.075268817 | AC37: 1.075268817 | AD37: 1.075268817 | AE37: 1.075268817 | AF37: 1.075268817 | AG37: 1.075268817 | AH37: 1.075268817 | AI37: 1.075268817 | AJ37: 1.075268817 | AK37: 1.075268817 | AL37: 1.075268817 | AM37: 1.075268817 | AN37: 1.075268817 | AO37: 1.075268817 | AP37: 1.075268817 | AQ37: 1.075268817 | AR37: 1.075268817 | AS37: 1.075268817 | AT37: 1.075268817 | AU37: 1.075268817 | AV37: 0 | AW37: 0 | AX37: 0
E39: =Input!E57 -> Cap availability incentive upper limit | G39: =Input!G57 -> scalar | I39: =Input!I57 -> 1.02
E40: =Input!E58 -> Cap availability incentive lower limit | G40: =Input!G58 -> scalar | I40: =Input!I58 -> 0.98
E43: Cap availability incentive rate | G43: scalar | H43: AICt | W43: =IF(W37>$I39,$I39,IF(W37<$I40,$I40,W37))*W24 -> 1.02 | X43: 1.02 | Y43: 1.02 | Z43: 1.02 | AA43: 1.02 | AB43: 1.02 | AC43: 1.02 | AD43: 1.02 | AE43: 1.02 | AF43: 1.02 | AG43: 1.02 | AH43: 1.02 | AI43: 1.02 | AJ43: 1.02 | AK43: 1.02 | AL43: 1.02 | AM43: 1.02 | AN43: 1.02 | AO43: 1.02 | AP43: 1.02 | AQ43: 1.02 | AR43: 1.02 | AS43: 1.02 | AT43: 1.02 | AU43: 1.02 | AV43: 0 | AW43: 0 | AX43: 0
C45: Floor incentive rate
E48: Floor availability incentive target | G48: % | I48: =Input!I68 -> 0.8
E49: Maximum Possible Availability | G49: MWh | H49: MPA | W49: =$I$26*$I$27*W24 -> 12272400 | X49: 12272400 | Y49: 12272400 | Z49: 12272400 | AA49: 12272400 | AB49: 12272400 | AC49: 12272400 | AD49: 12272400 | AE49: 12272400 | AF49: 12272400 | AG49: 12272400 | AH49: 12272400 | AI49: 12272400 | AJ49: 12272400 | AK49: 12272400 | AL49: 12272400 | AM49: 12272400 | AN49: 12272400 | AO49: 12272400 | AP49: 12272400 | AQ49: 12272400 | AR49: 12272400 | AS49: 12272400 | AT49: 12272400 | AU49: =$I$26*$I$27*AU24 -> 12272400 | AV49: =$I$26*$I$27*AV24 -> 0 | AW49: 0 | AX49: 0
E50: Total Interconnector Outages less Allowed Outages during Active Floor Period | G50: MWh | H50: IOt | W50: =Input!W65 -> 0 | X50: =Input!X65 -> 0 | Y50: =Input!Y65 -> 0 | Z50: =Input!Z65 -> 0 | AA50: =Input!AA65 -> 0 | AB50: =Input!AB65 -> 0 | AC50: =Input!AC65 -> 0 | AD50: =Input!AD65 -> 0 | AE50: =Input!AE65 -> 0 | AF50: =Input!AF65 -> 0 | AG50: =Input!AG65 -> 0 | AH50: =Input!AH65 -> 0 | AI50: =Input!AI65 -> 0 | AJ50: =Input!AJ65 -> 0 | AK50: =Input!AK65 -> 0 | AL50: =Input!AL65 -> 0 | AM50: =Input!AM65 -> 0 | AN50: =Input!AN65 -> 0 | AO50: =Input!AO65 -> 0 | AP50: =Input!AP65 -> 0 | AQ50: =Input!AQ65 -> 0 | AR50: =Input!AR65 -> 0 | AS50: =Input!AS65 -> 0 | AT50: =Input!AT65 -> 0 | AU50: =Input!AU65 -> 0 | AV50: =Input!AV65 -> 0 | AW50: =Input!AW65 -> 0 | AX50: =Input!AX65 -> 0
E51: Outages associated with Exceptional Events | G51: MWh | W51: =Input!W66 -> 0 | X51: =Input!X66 -> 0 | Y51: =Input!Y66 -> 0 | Z51: =Input!Z66 -> 0 | AA51: =Input!AA66 -> 0 | AB51: =Input!AB66 -> 0 | AC51: =Input!AC66 -> 0 | AD51: =Input!AD66 -> 0 | AE51: =Input!AE66 -> 0 | AF51: =Input!AF66 -> 0 | AG51: =Input!AG66 -> 0 | AH51: =Input!AH66 -> 0 | AI51: =Input!AI66 -> 0 | AJ51: =Input!AJ66 -> 0 | AK51: =Input!AK66 -> 0 | AL51: =Input!AL66 -> 0 | AM51: =Input!AM66 -> 0 | AN51: =Input!AN66 -> 0 | AO51: =Input!AO66 -> 0 | AP51: =Input!AP66 -> 0 | AQ51: =Input!AQ66 -> 0 | AR51: =Input!AR66 -> 0 | AS51: =Input!AS66 -> 0 | AT51: =Input!AT66 -> 0 | AU51: =Input!AU66 -> 0 | AV51: =Input!AV66 -> 0 | AW51: =Input!AW66 -> 0 | AX51: =Input!AX66 -> 0
E52: Actual Availability for Floor | G52: MWh | H52: AAFt (AAt) | W52: =W49-W50+W51 -> 12272400 | X52: =X49-X50+X51 -> 12272400 | Y52: 12272400 | Z52: 12272400 | AA52: 12272400 | AB52: 12272400 | AC52: 12272400 | AD52: 12272400 | AE52: 12272400 | AF52: 12272400 | AG52: 12272400 | AH52: 12272400 | AI52: 12272400 | AJ52: 12272400 | AK52: 12272400 | AL52: 12272400 | AM52: 12272400 | AN52: 12272400 | AO52: 12272400 | AP52: 12272400 | AQ52: 12272400 | AR52: 12272400 | AS52: 12272400 | AT52: 12272400 | AU52: 12272400 | AV52: 0 | AW52: 0 | AX52: 0
E53: Minimum Availability Target | G53: MWh | H53: MAT | W53: =$I27*$I26*$I48*W$24 -> 9817920 | X53: =$I27*$I26*$I48*X$24 -> 9817920 | Y53: 9817920 | Z53: 9817920 | AA53: 9817920 | AB53: 9817920 | AC53: 9817920 | AD53: 9817920 | AE53: 9817920 | AF53: 9817920 | AG53: 9817920 | AH53: 9817920 | AI53: 9817920 | AJ53: 9817920 | AK53: 9817920 | AL53: 9817920 | AM53: 9817920 | AN53: 9817920 | AO53: 9817920 | AP53: 9817920 | AQ53: 9817920 | AR53: 9817920 | AS53: 9817920 | AT53: 9817920 | AU53: 9817920 | AV53: 0 | AW53: 0 | AX53: 0
E54: Availability Performance at Floor | G54: scalar | H54: APFt | W54: =IF(W53=0,0,W52/W53) -> 1.25 | X54: =IF(X53=0,0,X52/X53) -> 1.25 | Y54: 1.25 | Z54: 1.25 | AA54: 1.25 | AB54: 1.25 | AC54: 1.25 | AD54: 1.25 | AE54: 1.25 | AF54: 1.25 | AG54: 1.25 | AH54: 1.25 | AI54: 1.25 | AJ54: 1.25 | AK54: 1.25 | AL54: 1.25 | AM54: 1.25 | AN54: 1.25 | AO54: 1.25 | AP54: 1.25 | AQ54: 1.25 | AR54: 1.25 | AS54: 1.25 | AT54: 1.25 | AU54: 1.25 | AV54: 0 | AW54: 0 | AX54: 0
E57: Floor availability incentive rate | G57: =G54 -> scalar | H57: AIFt | W57: =IF(W54<1,0,1) -> 1 | X57: =IF(X54<1,0,1) -> 1 | Y57: 1 | Z57: 1 | AA57: 1 | AB57: 1 | AC57: 1 | AD57: 1 | AE57: 1 | AF57: 1 | AG57: 1 | AH57: 1 | AI57: 1 | AJ57: 1 | AK57: 1 | AL57: 1 | AM57: 1 | AN57: 1 | AO57: 1 | AP57: 1 | AQ57: 1 | AR57: 1 | AS57: 1 | AT57: 1 | AU57: 1 | AV57: 0 | AW57: 0 | AX57: 0
B59: End of sheet

Sheet Assessment
A1: Assessment | H1: Licence
E2: Parameter | G2: Units | H2: Terminology | I2: Constant | K2: Annual values
E3: Project year | K3: =Input!K3 -> -11 | L3: =K3 + 1 -> -10 | M3: -9 | N3: -8 | O3: -7 | P3: -6 | Q3: -5 | R3: -4 | S3: -3 | T3: -2 | U3: -1 | V3: 0 | W3: 1 | X3: 2 | Y3: 3 | Z3: 4 | AA3: 5 | AB3: 6 | AC3: 7 | AD3: 8 | AE3: 9 | AF3: 10 | AG3: 11 | AH3: 12 | AI3: 13 | AJ3: 14 | AK3: 15 | AL3: 16 | AM3: 17 | AN3: 18 | AO3: 19 | AP3: 20 | AQ3: 21 | AR3: 22 | AS3: 23 | AT3: 24 | AU3: 25 | AV3: 26 | AW3: 27 | AX3: 28
E4: Year ending | K4: =Input!K4 -> 2010-12-31 | L4: =DATE(YEAR(K4) + 1, MONTH(K4), DAY(K4)) -> 2011-12-31 | M4: 2012-12-31 | N4: 2013-12-31 | O4: 2014-12-31 | P4: 2015-12-31 | Q4: 2016-12-31 | R4: 2017-12-31 | S4: 2018-12-31 | T4: 2019-12-31 | U4: 2020-12-31 | V4: 2021-12-31 | W4: 2022-12-31 | X4: 2023-12-31 | Y4: 2024-12-31 | Z4: 2025-12-31 | AA4: 2026-12-31 | AB4: 2027-12-31 | AC4: 2028-12-31 | AD4: 2029-12-31 | AE4: 2030-12-31 | AF4: 2031-12-31 | AG4: 2032-12-31 | AH4: 2033-12-31 | AI4: 2034-12-31 | AJ4: 2035-12-31 | AK4: 2036-12-31 | AL4: 2037-12-31 | AM4: 2038-12-31 | AN4: 2039-12-31 | AO4: 2040-12-31 | AP4: 2041-12-31 | AQ4: 2042-12-31 | AR4: 2043-12-31 | AS4: 2044-12-31 | AT4: 2045-12-31 | AU4: 2046-12-31 | AV4: 2047-12-31 | AW4: 2048-12-31 | AX4: 2049-12-31
B6: Assessment
C8: NPVs
D10: NPV factors
H11: =RPI!E10 -> 2015/16 RPI inflation index value (CHAW)
E12: RPI index | G12: scalar | H12: Jan 1987 = 100 | I12: =RPI!I10 -> 259.217 | V12: =Input!V81 -> 304.3265589 | W12: =Input!W81 -> 312.5738087 | X12: =Input!X81 -> 321.0445589 | Y12: =Input!Y81 -> 329.7448664 | Z12: =Input!Z81 -> 338.6809523 | AA12: =Input!AA81 -> 347.8592061 | AB12: =Input!AB81 -> 357.2861906 | AC12: =Input!AC81 -> 366.9686464 | AD12: =Input!AD81 -> 376.9134967 | AE12: =Input!AE81 -> 387.1278525 | AF12: =Input!AF81 -> 397.6190173 | AG12: =Input!AG81 -> 408.3944926 | AH12: =Input!AH81 -> 419.4619834 | AI12: =Input!AI81 -> 430.8294031 | AJ12: =Input!AJ81 -> 442.50488 | AK12: =Input!AK81 -> 454.4967622 | AL12: =Input!AL81 -> 466.8136245 | AM12: =Input!AM81 -> 479.4642737 | AN12: =Input!AN81 -> 492.4577555 | AO12: =Input!AO81 -> 505.8033607 | AP12: =Input!AP81 -> 519.5106317 | AQ12: =Input!AQ81 -> 533.5893699 | AR12: =Input!AR81 -> 548.0496418 | AS12: =Input!AS81 -> 562.9017871 | AT12: =Input!AT81 -> 578.1564255 | AU12: =Input!AU81 -> 593.8244646 | AV12: =Input!AV81 -> 609.9171076 | AW12: =Input!AW81 -> 626.4458613 | AX12: =Input!AX81 -> 643.4225441
E13: RPI index increase | G13: annual % | W13: =W12/V12-1 -> 0.0271 | X13: =X12/W12-1 -> 0.0271 | Y13: =Y12/X12-1 -> 0.0271 | Z13: 0.0271 | AA13: =AA12/Z12-1 -> 0.0271 | AB13: 0.0271 | AC13: 0.0271 | AD13: 0.0271 | AE13: 0.0271 | AF13: 0.0271 | AG13: 0.0271 | AH13: 0.0271 | AI13: 0.0271 | AJ13: 0.0271 | AK13: 0.0271 | AL13: 0.0271 | AM13: 0.0271 | AN13: 0.0271 | AO13: 0.0271 | AP13: 0.0271 | AQ13: 0.0271 | AR13: 0.0271 | AS13: 0.0271 | AT13: 0.0271 | AU13: 0.0271 | AV13: 0.0271 | AW13: 0.0271 | AX13: 0.0271
E14: =Input!E41 -> Operational discount rate | G14: =Input!G41 -> real annual % | H14: ODRt | I14: =Input!I41 -> 0.044275
E15: Operational discount rate | G15: nominal % | H15: NODRt | W15: =(1+$I14)*(1+W13)-1 -> 0.0725748525 | X15: =(1+$I14)*(1+X13)-1 -> 0.0725748525 | Y15: 0.0725748525 | Z15: 0.0725748525 | AA15: 0.0725748525 | AB15: 0.0725748525 | AC15: 0.0725748525 | AD15: 0.0725748525 | AE15: 0.0725748525 | AF15: 0.0725748525 | AG15: 0.0725748525 | AH15: 0.0725748525 | AI15: 0.0725748525 | AJ15: 0.0725748525 | AK15: 0.0725748525 | AL15: 0.0725748525 | AM15: 0.0725748525 | AN15: 0.0725748525 | AO15: 0.0725748525 | AP15: 0.0725748525 | AQ15: 0.0725748525 | AR15: 0.0725748525 | AS15: 0.0725748525 | AT15: 0.0725748525 | AU15: 0.0725748525 | AV15: 0.0725748525 | AW15: 0.0725748525 | AX15: 0.0725748525
E17: Five year uplift factor | G17: scalar | H17: UFt1 | I17: =(1 + $I$14) * I18 -> 1.189212661 | W17: 0 | X17: 0 | Y17: 0 | Z17: 0 | AA17: =(1+X15)*(1+Y15)*(1+Z15)*(1+AA15) -> 1.323458846 | AB17: 0 | AC17: 0 | AD17: 0 | AE17: 0 | AF17: =(1+AC15)*(1+AD15)*(1+AE15)*(1+AF15) -> 1.323458846 | AG17: 0 | AH17: 0 | AI17: 0 | AJ17: 0 | AK17: =(1+AH15)*(1+AI15)*(1+AJ15)*(1+AK15) -> 1.323458846 | AL17: 0 | AM17: 0 | AN17: 0 | AO17: 0 | AP17: =(1+AM15)*(1+AN15)*(1+AO15)*(1+AP15) -> 1.323458846 | AQ17: 0 | AR17: 0 | AS17: 0 | AT17: 0 | AU17: =(1+AR15)*(1+AS15)*(1+AT15)*(1+AU15) -> 1.323458846 | AV17: 0 | AW17: 0 | AX17: 0 | AZ17: =(1+AW15)*(1+AX15)*(1+AY15)*(1+AZ15) -> 1.150416814
E18: Four year uplift factor | G18: scalar | H18: UFt2 | I18: 1.138792618 | W18: 0 | X18: 0 | Y18: 0 | Z18: =(1+X15)*(1+Y15)*(1+Z15) -> 1.233908145 | AA18: =(1+Y15)*(1+Z15)*(1+AA15) -> 1.233908145 | AB18: 0 | AC18: 0 | AD18: 0 | AE18: =(1+AC15)*(1+AD15)*(1+AE15) -> 1.233908145 | AF18: =(1+AD15)*(1+AE15)*(1+AF15) -> 1.233908145 | AG18: 0 | AH18: 0 | AI18: 0 | AJ18: =(1+AH15)*(1+AI15)*(1+AJ15) -> 1.233908145 | AK18: =(1+AI15)*(1+AJ15)*(1+AK15) -> 1.233908145 | AL18: 0 | AM18: 0 | AN18: 0 | AO18: =(1+AM15)*(1+AN15)*(1+AO15) -> 1.233908145 | AP18: =(1+AN15)*(1+AO15)*(1+AP15) -> 1.233908145 | AQ18: 0 | AR18: 0 | AS18: 0 | AT18: =(1+AR15)*(1+AS15)*(1+AT15) -> 1.233908145 | AU18: =(1+AS15)*(1+AT15)*(1+AU15) -> 1.233908145 | AV18: 0 | AW18: 0 | AX18: 0 | AZ18: =(1+AX15)*(1+AY15)*(1+AZ15) -> 1.072574853
E19: Three year uplift factor | G19: scalar | H19: UFt3 | I19: 1.090510276 | W19: 0 | X19: 0 | Y19: =(1+X15)*(1+Y15) -> 1.150416814 | Z19: =(1+Y15)*(1+Z15) -> 1.150416814 | AA19: =(1+Z15)*(1+AA15) -> 1.150416814 | AB19: 0 | AC19: 0 | AD19: =(1+AC15)*(1+AD15) -> 1.150416814 | AE19: =(1+AD15)*(1+AE15) -> 1.150416814 | AF19: =(1+AE15)*(1+AF15) -> 1.150416814 | AG19: 0 | AH19: 0 | AI19: =(1+AH15)*(1+AI15) -> 1.150416814 | AJ19: =(1+AI15)*(1+AJ15) -> 1.150416814 | AK19: =(1+AJ15)*(1+AK15) -> 1.150416814 | AL19: 0 | AM19: 0 | AN19: =(1+AM15)*(1+AN15) -> 1.150416814 | AO19: =(1+AN15)*(1+AO15) -> 1.150416814 | AP19: =(1+AO15)*(1+AP15) -> 1.150416814 | AQ19: 0 | AR19: 0 | AS19: =(1+AR15)*(1+AS15) -> 1.150416814 | AT19: =(1+AS15)*(1+AT15) -> 1.150416814 | AU19: =(1+AT15)*(1+AU15) -> 1.150416814 | AV19: 0 | AW19: 0 | AX19: =(1+AW15)*(1+AX15) -> 1.150416814 | AZ19: =(1+AY15)*(1+AZ15) -> 1
E20: Two year uplift factor | G20: scalar | H20: UFt4 | I20: =(1 + $I$14) * I21 -> 1.044275 | W20: 0 | X20: =(1+X15) -> 1.072574853 | Y20: =(1+Y15) -> 1.072574853 | Z20: =(1+Z15) -> 1.072574853 | AA20: =(1+AA15) -> 1.072574853 | AB20: 0 | AC20: =(1+AC15) -> 1.072574853 | AD20: =(1+AD15) -> 1.072574853 | AE20: =(1+AE15) -> 1.072574853 | AF20: =(1+AF15) -> 1.072574853 | AG20: 0 | AH20: =(1+AH15) -> 1.072574853 | AI20: =(1+AI15) -> 1.072574853 | AJ20: =(1+AJ15) -> 1.072574853 | AK20: =(1+AK15) -> 1.072574853 | AL20: 0 | AM20: =(1+AM15) -> 1.072574853 | AN20: =(1+AN15) -> 1.072574853 | AO20: =(1+AO15) -> 1.072574853 | AP20: =(1+AP15) -> 1.072574853 | AQ20: 0 | AR20: =(1+AR15) -> 1.072574853 | AS20: =(1+AS15) -> 1.072574853 | AT20: =(1+AT15) -> 1.072574853 | AU20: =(1+AU15) -> 1.072574853 | AV20: 0 | AW20: =(1+AW15) -> 1.072574853 | AX20: =(1+AX15) -> 1.072574853 | AZ20: =(1+AZ15) -> 1
E21: One year uplift factor | G21: scalar | H21: UFt5 | I21: 1 | W21: =$I21 -> 1 | X21: =$I21 -> 1 | Y21: =$I21 -> 1 | Z21: 1 | AA21: 1 | AB21: =$I21 -> 1 | AC21: =$I21 -> 1 | AD21: =$I21 -> 1 | AE21: 1 | AF21: 1 | AG21: =$I21 -> 1 | AH21: =$I21 -> 1 | AI21: =$I21 -> 1 | AJ21: 1 | AK21: 1 | AL21: =$I21 -> 1 | AM21: =$I21 -> 1 | AN21: =$I21 -> 1 | AO21: 1 | AP21: 1 | AQ21: =$I21 -> 1 | AR21: =$I21 -> 1 | AS21: =$I21 -> 1 | AT21: 1 | AU21: 1 | AV21: =$I21 -> 1 | AW21: =$I21 -> 1 | AX21: =$I21 -> 1 | AZ21: 1
D23: Revenues and WPA's
E25: =Input!E24 -> Gross congestion revenues (net of market-related costs) | G25: £m nominal | H25: NARt | W25: =Input!W24 -> 88.76116001 | X25: =Input!X24 -> 91.16658744 | Y25: =Input!Y24 -> 93.63720196 | Z25: =Input!Z24 -> 96.17477013 | AA25: =Input!AA24 -> 98.78110641 | AB25: =Input!AB24 -> 101.4580744 | AC25: =Input!AC24 -> 104.2075882 | AD25: =Input!AD24 -> 107.0316138 | AE25: =Input!AE24 -> 109.9321706 | AF25: =Input!AF24 -> 112.9113324 | AG25: =Input!AG24 -> 115.9712295 | AH25: =Input!AH24 -> 119.1140498 | AI25: =Input!AI24 -> 122.3420406 | AJ25: =Input!AJ24 -> 125.6575099 | AK25: =Input!AK24 -> 129.0628284 | AL25: =Input!AL24 -> 132.560431 | AM25: =Input!AM24 -> 136.1528187 | AN25: =Input!AN24 -> 139.8425601 | AO25: =Input!AO24 -> 143.6322935 | AP25: =Input!AP24 -> 147.5247287 | AQ25: =Input!AQ24 -> 151.5226488 | AR25: =Input!AR24 -> 155.6289126 | AS25: =Input!AS24 -> 159.8464561 | AT25: =Input!AT24 -> 164.1782951 | AU25: =Input!AU24 -> 168.6275269
E26: Notional Floor (pre-availability incentive) | G26: £m nominal | H26: NFLt | W26: =Availability!W11*W12/$I$12 -> 63.94986522 | X26: =Availability!X11*X12/$I$12 -> 65.68290657 | Y26: =Availability!Y11*Y12/$I$12 -> 67.46291334 | Z26: =Availability!Z11*Z12/$I$12 -> 69.29115829 | AA26: =Availability!AA11*AA12/$I$12 -> 71.16894868 | AB26: =Availability!AB11*AB12/$I$12 -> 73.09762719 | AC26: =Availability!AC11*AC12/$I$12 -> 75.07857289 | AD26: =Availability!AD11*AD12/$I$12 -> 77.11320221 | AE26: =Availability!AE11*AE12/$I$12 -> 79.20296999 | AF26: =Availability!AF11*AF12/$I$12 -> 81.34937048 | AG26: =Availability!AG11*AG12/$I$12 -> 83.55393842 | AH26: =Availability!AH11*AH12/$I$12 -> 85.81825015 | AI26: =Availability!AI11*AI12/$I$12 -> 88.14392473 | AJ26: =Availability!AJ11*AJ12/$I$12 -> 90.53262509 | AK26: =Availability!AK11*AK12/$I$12 -> 92.98605923 | AL26: =Availability!AL11*AL12/$I$12 -> 95.50598143 | AM26: =Availability!AM11*AM12/$I$12 -> 98.09419353 | AN26: =Availability!AN11*AN12/$I$12 -> 100.7525462 | AO26: =Availability!AO11*AO12/$I$12 -> 103.4829402 | AP26: =Availability!AP11*AP12/$I$12 -> 106.2873279 | AQ26: =Availability!AQ11*AQ12/$I$12 -> 109.1677144 | AR26: =Availability!AR11*AR12/$I$12 -> 112.1261595 | AS26: =Availability!AS11*AS12/$I$12 -> 115.1647784 | AT26: =Availability!AT11*AT12/$I$12 -> 118.2857439 | AU26: =Availability!AU11*AU12/$I$12 -> 121.4912876
E27: Floor (post availability incentive) | G27: £m nominal | H27: FLt | W27: =Availability!W17*W12/$I$12 -> 63.94986522 | X27: =Availability!X17*X12/$I$12 -> 65.68290657 | Y27: =Availability!Y17*Y12/$I$12 -> 67.46291334 | Z27: =Availability!Z17*Z12/$I$12 -> 69.29115829 | AA27: =Availability!AA17*AA12/$I$12 -> 71.16894868 | AB27: =Availability!AB17*AB12/$I$12 -> 73.09762719 | AC27: =Availability!AC17*AC12/$I$12 -> 75.07857289 | AD27: =Availability!AD17*AD12/$I$12 -> 77.11320221 | AE27: =Availability!AE17*AE12/$I$12 -> 79.20296999 | AF27: =Availability!AF17*AF12/$I$12 -> 81.34937048 | AG27: =Availability!AG17*AG12/$I$12 -> 83.55393842 | AH27: =Availability!AH17*AH12/$I$12 -> 85.81825015 | AI27: =Availability!AI17*AI12/$I$12 -> 88.14392473 | AJ27: =Availability!AJ17*AJ12/$I$12 -> 90.53262509 | AK27: =Availability!AK17*AK12/$I$12 -> 92.98605923 | AL27: =Availability!AL17*AL12/$I$12 -> 95.50598143 | AM27: =Availability!AM17*AM12/$I$12 -> 98.09419353 | AN27: =Availability!AN17*AN12/$I$12 -> 100.7525462 | AO27: =Availability!AO17*AO12/$I$12 -> 103.4829402 | AP27: =Availability!AP17*AP12/$I$12 -> 106.2873279 | AQ27: =Availability!AQ17*AQ12/$I$12 -> 109.1677144 | AR27: =Availability!AR17*AR12/$I$12 -> 112.1261595 | AS27: =Availability!AS17*AS12/$I$12 -> 115.1647784 | AT27: =Availability!AT17*AT12/$I$12 -> 118.2857439 | AU27: =Availability!AU17*AU12/$I$12 -> 121.4912876 | AV27: =Availability!AV17*AV12/$I$12 -> 0 | AW27: =Availability!AW17*AW12/$I$12 -> 0 | AX27: =Availability!AX17*AX12/$I$12 -> 0
E29: Notional Surplus Assessed Revenue | G29: £m nominal | H29: NSARt | W29: =IF(W27=0,W25-W26,0) -> 0 | X29: 0 | Y29: 0 | Z29: 0 | AA29: 0 | AB29: 0 | AC29: 0 | AD29: 0 | AE29: 0 | AF29: 0 | AG29: 0 | AH29: 0 | AI29: 0 | AJ29: 0 | AK29: 0 | AL29: 0 | AM29: 0 | AN29: 0 | AO29: 0 | AP29: 0 | AQ29: 0 | AR29: 0 | AS29: 0 | AT29: 0 | AU29: 0 | AV29: 0 | AW29: 0 | AX29: 0
E30: Surplus Assessed Revenue | G30: £m nominal | H30: SARt | W30: =IF(W29>0,W29,0) -> 0 | X30: =IF(X29>0,X29,0) -> 0 | Y30: 0 | Z30: 0 | AA30: 0 | AB30: 0 | AC30: 0 | AD30: 0 | AE30: 0 | AF30: 0 | AG30: 0 | AH30: 0 | AI30: 0 | AJ30: 0 | AK30: 0 | AL30: 0 | AM30: 0 | AN30: 0 | AO30: 0 | AP30: 0 | AQ30: 0 | AR30: 0 | AS30: 0 | AT30: 0 | AU30: 0 | AV30: 0 | AW30: 0 | AX30: 0
E32: =Availability!E16 -> Cap (post-availability incentive) | G32: £m nominal | H32: CLt | S32: 0 | T32: 0 | U32: 0 | V32: 0 | W32: =Availability!W16*W12/$I$12 -> 115.8439039 | X32: =Availability!X16*X12/$I$12 -> 118.9832737 | Y32: =Availability!Y16*Y12/$I$12 -> 122.2077204 | Z32: =Availability!Z16*Z12/$I$12 -> 125.5195496 | AA32: =Availability!AA16*AA12/$I$12 -> 128.9211294 | AB32: =Availability!AB16*AB12/$I$12 -> 132.414892 | AC32: =Availability!AC16*AC12/$I$12 -> 136.0033356 | AD32: =Availability!AD16*AD12/$I$12 -> 139.689026 | AE32: =Availability!AE16*AE12/$I$12 -> 143.4745986 | AF32: =Availability!AF16*AF12/$I$12 -> 147.3627602 | AG32: =Availability!AG16*AG12/$I$12 -> 151.356291 | AH32: =Availability!AH16*AH12/$I$12 -> 155.4580465 | AI32: =Availability!AI16*AI12/$I$12 -> 159.6709596 | AJ32: =Availability!AJ16*AJ12/$I$12 -> 163.9980426 | AK32: =Availability!AK16*AK12/$I$12 -> 168.4423895 | AL32: =Availability!AL16*AL12/$I$12 -> 173.0071783 | AM32: =Availability!AM16*AM12/$I$12 -> 177.6956728 | AN32: =Availability!AN16*AN12/$I$12 -> 182.5112255 | AO32: =Availability!AO16*AO12/$I$12 -> 187.4572798 | AP32: =Availability!AP16*AP12/$I$12 -> 192.537372 | AQ32: =Availability!AQ16*AQ12/$I$12 -> 197.7551348 | AR32: =Availability!AR16*AR12/$I$12 -> 203.114299 | AS32: =Availability!AS16*AS12/$I$12 -> 208.6186965 | AT32: =Availability!AT16*AT12/$I$12 -> 214.2722631 | AU32: =Availability!AU16*AU12/$I$12 -> 220.0790415
E33: Revenue assessed for cap | G33: £m nominal | H33: =H25 -> NARt | S33: 0 | T33: 0 | U33: 0 | V33: 0 | W33: =W25 -> 88.76116001 | X33: 91.16658744 | Y33: 93.63720196 | Z33: 96.17477013 | AA33: 98.78110641 | AB33: 101.4580744 | AC33: 104.2075882 | AD33: 107.0316138 | AE33: 109.9321706 | AF33: 112.9113324 | AG33: 115.9712295 | AH33: 119.1140498 | AI33: 122.3420406 | AJ33: 125.6575099 | AK33: 129.0628284 | AL33: 132.560431 | AM33: 136.1528187 | AN33: 139.8425601 | AO33: 143.6322935 | AP33: 147.5247287 | AQ33: 151.5226488 | AR33: 155.6289126 | AS33: 159.8464561 | AT33: 164.1782951 | AU33: 168.6275269
E34: =Availability!E17 -> Floor (post-availability incentive) | G34: £m nominal | H34: FLt | S34: 0 | T34: 0 | U34: 0 | V34: 0 | W34: =W27 -> 63.94986522 | X34: =X27 -> 65.68290657 | Y34: 67.46291334 | Z34: 69.29115829 | AA34: 71.16894868 | AB34: 73.09762719 | AC34: 75.07857289 | AD34: 77.11320221 | AE34: 79.20296999 | AF34: 81.34937048 | AG34: 83.55393842 | AH34: 85.81825015 | AI34: 88.14392473 | AJ34: 90.53262509 | AK34: 92.98605923 | AL34: 95.50598143 | AM34: 98.09419353 | AN34: 100.7525462 | AO34: 103.4829402 | AP34: 106.2873279 | AQ34: 109.1677144 | AR34: 112.1261595 | AS34: 115.1647784 | AT34: 118.2857439 | AU34: 121.4912876 | AV34: 0 | AW34: 0 | AX34: 0
E35: Revenue assessed for floor | G35: £m nominal | H35: Choice of SARt or NARt | S35: 0 | T35: 0 | U35: 0 | V35: 0 | W35: =IF(W27=0,W30,W25) -> 88.76116001 | X35: 91.16658744 | Y35: 93.63720196 | Z35: 96.17477013 | AA35: 98.78110641 | AB35: 101.4580744 | AC35: 104.2075882 | AD35: 107.0316138 | AE35: 109.9321706 | AF35: 112.9113324 | AG35: 115.9712295 | AH35: 119.1140498 | AI35: 122.3420406 | AJ35: 125.6575099 | AK35: 129.0628284 | AL35: 132.560431 | AM35: 136.1528187 | AN35: 139.8425601 | AO35: 143.6322935 | AP35: 147.5247287 | AQ35: 151.5226488 | AR35: 155.6289126 | AS35: 159.8464561 | AT35: 164.1782951 | AU35: 168.6275269 | AV35: 0 | AW35: 0 | AX35: 0
E36: Within-period adjustment (assessed) | G36: £m nominal | H36: WPAt | S36: 0 | T36: 0 | U36: 0 | V36: 0 | W36: =Input!W25 -> 0 | X36: =Input!X25 -> 0 | Y36: =Input!Y25 -> 0 | Z36: =Input!Z25 -> 0 | AA36: =Input!AA25 -> 0 | AB36: =Input!AB25 -> 0 | AC36: =Input!AC25 -> 0 | AD36: =Input!AD25 -> 0 | AE36: =Input!AE25 -> 0 | AF36: =Input!AF25 -> 0 | AG36: =Input!AG25 -> 0 | AH36: =Input!AH25 -> 0 | AI36: =Input!AI25 -> 0 | AJ36: =Input!AJ25 -> 0 | AK36: =Input!AK25 -> 0 | AL36: =Input!AL25 -> 0 | AM36: =Input!AM25 -> 0 | AN36: =Input!AN25 -> 0 | AO36: =Input!AO25 -> 0 | AP36: =Input!AP25 -> 0 | AQ36: =Input!AQ25 -> 0 | AR36: =Input!AR25 -> 0 | AS36: =Input!AS25 -> 0 | AT36: =Input!AT25 -> 0 | AU36: =Input!AU25 -> 0
D38: NPV
E40: =E32 &" NPV" -> Cap (post-availability incentive) NPV | G40: £m nominal | H40: CLNap | W40: =MMULT(S32:W32,W$17:W$21) -> 115.8439039 | X40: =MMULT(T32:X32,X$17:X$21) -> 243.2345318 | Y40: 383.0949625 | Z40: 536.4175725 | AA40: 704.2691281 | AB40: 132.414892 | AC40: 278.0282189 | AD40: 437.8951018 | AE40: 613.1498729 | AF40: =MMULT(AB32:AF32,AF$17:AF$21) -> 805.0118946 | AG40: 151.356291 | AH40: 317.798998 | AI40: 500.534173 | AJ40: 700.8584093 | AK40: 920.1654945 | AL40: 173.0071783 | AM40: 363.2588215 | AN40: 572.1335025 | AO40: 801.1132868 | AP40: 1051.791337 | AQ40: 197.7551348 | AR40: 415.2214835 | AS40: 653.9748179 | AT40: 915.709207 | AU40: 1202.245709
E41: =E33 &" NPV" -> Revenue assessed for cap NPV | G41: £m nominal | H41: ARNap | W41: =MMULT(S33:W33,W$17:W$21) -> 88.76116001 | X41: =MMULT(T33:X33,X$17:X$21) -> 186.3695755 | Y41: 293.532522 | Z41: 411.0103716 | AA41: 539.6204951 | AB41: 101.4580744 | AC41: 213.0289674 | AD41: 335.5211271 | AE41: 469.803694 | AF41: =MMULT(AB33:AF33,AF$17:AF$21) -> 616.8109602 | AG41: 115.9712295 | AH41: 243.5018742 | AI41: 383.5160274 | AJ41: 537.0071564 | AK41: 705.0432 | AL41: 132.560431 | AM41: 278.3338035 | AN41: 438.3763984 | AO41: 613.8237943 | AP41: 805.8966943 | AQ41: 151.5226488 | AR41: 318.1482953 | AS41: 501.084317 | AT41: 701.6287324 | AU41: 921.1768611
E42: =E34 &" NPV" -> Floor (post-availability incentive) NPV | G42: £m nominal | H42: FLNap | W42: =MMULT(S34:W34,W$17:W$21) -> 63.94986522 | X42: =MMULT(T34:X34,X$17:X$21) -> 134.2739238 | Y42: 211.4817474 | Z42: 296.1211623 | AA42: 388.7810607 | AB42: 73.09762719 | AC42: 153.4812496 | AD42: 241.7333309 | AE42: 338.4800617 | AF42: =MMULT(AB34:AF34,AF$17:AF$21) -> 444.3945727 | AG42: 83.55393842 | AH42: 175.4361033 | AI42: 276.3122774 | AJ42: 386.8982252 | AK42: 507.9633661 | AL42: 95.50598143 | AM42: 200.5315075 | AN42: 315.8375982 | AO42: 442.2424055 | AP42: 580.6254107 | AQ42: 109.1677144 | AR42: 229.2167047 | AS42: 361.0168517 | AT42: 505.5033404 | AU42: 663.6814583
E43: =E35 &" NPV" -> Revenue assessed for floor NPV | G43: £m nominal | H43: ARNap | W43: =MMULT(S35:W35,W$17:W$21) -> 88.76116001 | X43: =MMULT(T35:X35,X$17:X$21) -> 186.3695755 | Y43: 293.532522 | Z43: 411.0103716 | AA43: 539.6204951 | AB43: 101.4580744 | AC43: 213.0289674 | AD43: 335.5211271 | AE43: 469.803694 | AF43: =MMULT(AB35:AF35,AF$17:AF$21) -> 616.8109602 | AG43: 115.9712295 | AH43: 243.5018742 | AI43: 383.5160274 | AJ43: 537.0071564 | AK43: 705.0432 | AL43: 132.560431 | AM43: 278.3338035 | AN43: 438.3763984 | AO43: 613.8237943 | AP43: 805.8966943 | AQ43: 151.5226488 | AR43: 318.1482953 | AS43: 501.084317 | AT43: 701.6287324 | AU43: 921.1768611
E44: NPV within-period adjustments (assessed) | G44: £m nominal | H44: WPANap | W44: =MMULT(S36:W36,W$17:W$21) -> 0 | X44: =MMULT(T36:X36,X$17:X$21) -> 0 | Y44: 0 | Z44: 0 | AA44: 0 | AB44: 0 | AC44: 0 | AD44: 0 | AE44: 0 | AF44: =MMULT(AB36:AF36,AF$17:AF$21) -> 0 | AG44: 0 | AH44: 0 | AI44: 0 | AJ44: 0 | AK44: 0 | AL44: 0 | AM44: 0 | AN44: 0 | AO44: 0 | AP44: 0 | AQ44: 0 | AR44: 0 | AS44: 0 | AT44: 0 | AU44: 0
A45: `
C46: Assessment
D48: Assessed adjustment
E50: =Input!E90 -> Assessment period length | G50: =Input!G90 -> full years | I50: =Input!I90 -> 5
E51: Assessment year flag | G51: flag | W51: =AND(MOD(W3,$I50)=0,W3>=$I50) -> FALSE | X51: FALSE | Y51: FALSE | Z51: FALSE | AA51: TRUE | AB51: FALSE | AC51: FALSE | AD51: FALSE | AE51: FALSE | AF51: TRUE | AG51: FALSE | AH51: FALSE | AI51: FALSE | AJ51: FALSE | AK51: TRUE | AL51: FALSE | AM51: FALSE | AN51: FALSE | AO51: FALSE | AP51: TRUE | AQ51: FALSE | AR51: FALSE | AS51: FALSE | AT51: FALSE | AU51: TRUE | AV51: FALSE | AW51: FALSE | AX51: FALSE
E53: Relevant Revenue at Cap | G53: £m nominal | H53: RRACap | W53: =W41-W40 -> -27.08274388 | X53: =X41-X40 -> -56.86495626 | Y53: -89.5624405 | Z53: -125.4072009 | AA53: -164.648633 | AB53: -30.95681763 | AC53: -64.99925149 | AD53: -102.3739747 | AE53: -143.3461789 | AF53: =AF41-AF40 -> -188.2009344 | AG53: -35.3850615 | AH53: -74.2971238 | AI53: -117.0181456 | AJ53: -163.8512529 | AK53: -215.1222946 | AL53: -40.44674723 | AM53: -84.92501802 | AN53: -133.7571041 | AO53: -187.2894925 | AP53: -245.8946431 | AQ53: -46.23248602 | AR53: -97.07318826 | AS53: -152.8905009 | AT53: -214.0804746 | AU53: -281.068848 | AV53: 0 | AW53: 0 | AX53: 0
E54: Revenue Excess at Cap | G54: £m nominal | H54: RECap | W54: =IF(W53>0,W53,0) -> 0 | X54: =IF(X53>0,X53,0) -> 0 | Y54: 0 | Z54: 0 | AA54: 0 | AB54: 0 | AC54: 0 | AD54: 0 | AE54: 0 | AF54: 0 | AG54: 0 | AH54: 0 | AI54: 0 | AJ54: 0 | AK54: 0 | AL54: 0 | AM54: 0 | AN54: 0 | AO54: 0 | AP54: 0 | AQ54: 0 | AR54: 0 | AS54: 0 | AT54: 0 | AU54: 0 | AV54: 0 | AW54: 0 | AX54: 0
E56: Relevant Revenue at Floor | G56: £m nominal | H56: RRAFap | W56: =W42-W43 -> -24.81129478 | X56: =X42-X43 -> -52.09565171 | Y56: -82.05077457 | Z56: -114.8892093 | AA56: -150.8394344 | AB56: -28.3604472 | AC56: -59.54771779 | AD56: -93.78779626 | AE56: -131.3236323 | AF56: -172.4163875 | AG56: -32.41729109 | AH56: -68.06577089 | AI56: -107.20375 | AJ56: -150.1089312 | AK56: -197.0798339 | AL56: -37.05444961 | AM56: -77.80229603 | AN56: -122.5388001 | AO56: -171.5813888 | AP56: -225.2712836 | AQ56: -42.35493436 | AR56: -88.93159055 | AS56: -140.0674653 | AT56: -196.1253921 | AU56: -257.4954028 | AV56: 0 | AW56: 0 | AX56: 0
E57: Revenue Shortfall at Floor | G57: £m nominal | H57: RSFap | W57: =IF(W56>0,W56,0) -> 0 | X57: =IF(X56>0,X56,0) -> 0 | Y57: 0 | Z57: 0 | AA57: 0 | AB57: 0 | AC57: =IF(AC56>0,AC56,0) -> 0 | AD57: 0 | AE57: 0 | AF57: 0 | AG57: 0 | AH57: 0 | AI57: 0 | AJ57: 0 | AK57: 0 | AL57: 0 | AM57: 0 | AN57: 0 | AO57: 0 | AP57: 0 | AQ57: 0 | AR57: 0 | AS57: 0 | AT57: 0 | AU57: 0 | AV57: 0 | AW57: 0 | AX57: 0
E59: NPV within-period adjustments (assessed) | G59: £m nominal | H59: =H44 -> WPANap | W59: =W44 -> 0 | X59: =X44 -> 0 | Y59: 0 | Z59: 0 | AA59: 0 | AB59: 0 | AC59: 0 | AD59: 0 | AE59: 0 | AF59: 0 | AG59: 0 | AH59: 0 | AI59: 0 | AJ59: 0 | AK59: 0 | AL59: 0 | AM59: 0 | AN59: 0 | AO59: 0 | AP59: 0 | AQ59: 0 | AR59: 0 | AS59: 0 | AT59: 0 | AU59: 0 | AV59: 0 | AW59: 0 | AX59: 0
E61: End of Period Cap and Floor Revenue Adjustment - Unadjusted for End of Period | G61: £m nominal | W61: =IF(ABS(W54)>0,-W54-W59,IF(ABS(W57)>0,W57-W59,IF(AND(W54=0,W57=0,ABS(W59)>0),-W59,0))) -> 0 | X61: =IF(ABS(X54)>0,-X54-X59,IF(ABS(X57)>0,X57-X59,IF(AND(X54=0,X57=0,ABS(X59)>0),-X59,0))) -> 0 | Y61: 0 | Z61: 0 | AA61: =IF(ABS(AA54)>0,-AA54-AA59,IF(ABS(AA57)>0,AA57-AA59,IF(AND(AA54=0,AA57=0,ABS(AA59)>0),-AA59,0))) -> 0 | AB61: 0 | AC61: 0 | AD61: 0 | AE61: 0 | AF61: =IF(ABS(AF54)>0,-AF54-AF59,IF(ABS(AF57)>0,AF57-AF59,IF(AND(AF54=0,AF57=0,ABS(AF59)>0),-AF59,0))) -> 0 | AG61: 0 | AH61: 0 | AI61: 0 | AJ61: 0 | AK61: 0 | AL61: 0 | AM61: 0 | AN61: 0 | AO61: 0 | AP61: 0 | AQ61: 0 | AR61: 0 | AS61: 0 | AT61: 0 | AU61: =IF(ABS(AU54)>0,-AU54-AU59,IF(ABS(AU57)>0,AU57-AU59,IF(AND(AU54=0,AU57=0,ABS(AU59)>0),-AU59,0))) -> 0 | AV61: =IF(ABS(AV54)>0,-AV54-AV59,IF(ABS(AV57)>0,AV57-AV59,IF(AND(AV54=0,AV57=0,ABS(AV59)>0),-AV59,0))) -> 0 | AW61: =IF(ABS(AW54)>0,-AW54-AW59,IF(ABS(AW57)>0,AW57-AW59,IF(AND(AW54=0,AW57=0,ABS(AW59)>0),-AW59,0))) -> 0 | AX61: 0
E63: End of Period Cap and Floor Revenue Adjustment | G63: £m nominal | H63: CFAap | W63: =W61*W51 -> 0 | X63: =X61*X51 -> 0 | Y63: 0 | Z63: 0 | AA63: 0 | AB63: 0 | AC63: 0 | AD63: 0 | AE63: 0 | AF63: 0 | AG63: 0 | AH63: 0 | AI63: 0 | AJ63: 0 | AK63: 0 | AL63: 0 | AM63: 0 | AN63: 0 | AO63: 0 | AP63: 0 | AQ63: 0 | AR63: 0 | AS63: 0 | AT63: 0 | AU63: 0 | AV63: 0 | AW63: 0 | AX63: 0
B66: Revenue adjustment for changes from cost base case
E68: RPI index | G68: scalar | V68: =V12/$I12 -> 1.174022379 | W68: =W12/$I12 -> 1.205838385 | X68: =X12/$I12 -> 1.238516605 | Y68: 1.272080405 | Z68: 1.306553784 | AA68: 1.341961392 | AB68: 1.378328546 | AC68: 1.415681249 | AD68: 1.454046211 | AE68: 1.493450863 | AF68: 1.533923382 | AG68: 1.575492705 | AH68: 1.618188558 | AI68: 1.662041468 | AJ68: 1.707082791 | AK68: 1.753344735 | AL68: 1.800860377 | AM68: 1.849663694 | AN68: 1.89978958 | AO68: 1.951273877 | AP68: 2.004153399 | AQ68: 2.058465957 | AR68: 2.114250384 | AS68: 2.171546569 | AT68: 2.230395481 | AU68: 2.290839199 | AV68: 2.352920941 | AW68: 2.416685099 | AX68: 2.482177265
E70: =Input!E18 -> Non-controllable opex (actual) | G70: £m nominal | H70: ONCOCt | W70: =Input!W18*W68 -> 0 | X70: =Input!X18*X68 -> 0 | Y70: =Input!Y18*Y68 -> 0 | Z70: =Input!Z18*Z68 -> 0 | AA70: =Input!AA18*AA68 -> 0 | AB70: =Input!AB18*AB68 -> 0 | AC70: =Input!AC18*AC68 -> 0 | AD70: =Input!AD18*AD68 -> 0 | AE70: =Input!AE18*AE68 -> 0 | AF70: =Input!AF18*AF68 -> 0 | AG70: =Input!AG18*AG68 -> 0 | AH70: =Input!AH18*AH68 -> 0 | AI70: =Input!AI18*AI68 -> 0 | AJ70: =Input!AJ18*AJ68 -> 0 | AK70: =Input!AK18*AK68 -> 0 | AL70: =Input!AL18*AL68 -> 0 | AM70: =Input!AM18*AM68 -> 0 | AN70: =Input!AN18*AN68 -> 0 | AO70: =Input!AO18*AO68 -> 0 | AP70: =Input!AP18*AP68 -> 0 | AQ70: =Input!AQ18*AQ68 -> 0 | AR70: =Input!AR18*AR68 -> 0 | AS70: =Input!AS18*AS68 -> 0 | AT70: =Input!AT18*AT68 -> 0 | AU70: =Input!AU18*AU68 -> 0 | AV70: =Input!AV18*AV68 -> 0 | AW70: =Input!AW18*AW68 -> 0 | AX70: =Input!AX18*AX68 -> 0
E71: Less non-controllable opex (baseline) | G71: £m nominal | H71: BNCOCt | W71: =-Input!W32*W68 -> 0 | X71: =-Input!X32*X68 -> 0 | Y71: =-Input!Y32*Y68 -> 0 | Z71: =-Input!Z32*Z68 -> 0 | AA71: =-Input!AA32*AA68 -> 0 | AB71: =-Input!AB32*AB68 -> 0 | AC71: =-Input!AC32*AC68 -> 0 | AD71: =-Input!AD32*AD68 -> 0 | AE71: =-Input!AE32*AE68 -> 0 | AF71: =-Input!AF32*AF68 -> 0 | AG71: =-Input!AG32*AG68 -> 0 | AH71: =-Input!AH32*AH68 -> 0 | AI71: =-Input!AI32*AI68 -> 0 | AJ71: =-Input!AJ32*AJ68 -> 0 | AK71: =-Input!AK32*AK68 -> 0 | AL71: =-Input!AL32*AL68 -> 0 | AM71: =-Input!AM32*AM68 -> 0 | AN71: =-Input!AN32*AN68 -> 0 | AO71: =-Input!AO32*AO68 -> 0 | AP71: =-Input!AP32*AP68 -> 0 | AQ71: =-Input!AQ32*AQ68 -> 0 | AR71: =-Input!AR32*AR68 -> 0 | AS71: =-Input!AS32*AS68 -> 0 | AT71: =-Input!AT32*AT68 -> 0 | AU71: =-Input!AU32*AU68 -> 0 | AV71: =-Input!AV32*AV68 -> 0 | AW71: =-Input!AW32*AW68 -> 0 | AX71: =-Input!AX32*AX68 -> 0
E72: Non-controllable costs (changes from baseline estimate) | G72: £m nominal | H72: DNCOCt | W72: =SUM(W70:W71) -> 0 | X72: =SUM(X70:X71) -> 0 | Y72: 0 | Z72: 0 | AA72: 0 | AB72: 0 | AC72: 0 | AD72: 0 | AE72: 0 | AF72: 0 | AG72: 0 | AH72: 0 | AI72: 0 | AJ72: 0 | AK72: 0 | AL72: 0 | AM72: 0 | AN72: 0 | AO72: 0 | AP72: 0 | AQ72: 0 | AR72: 0 | AS72: 0 | AT72: 0 | AU72: =SUM(AU70:AU71) -> 0 | AV72: 0 | AW72: 0 | AX72: 0
E76: Total changes from baseline estimates | G76: £m nominal | H76: NCOCt | S76: 0 | T76: 0 | U76: 0 | V76: 0 | W76: =+ W72 -> 0 | X76: 0 | Y76: =+ Y72 -> 0 | Z76: 0 | AA76: 0 | AB76: 0 | AC76: 0 | AD76: 0 | AE76: 0 | AF76: 0 | AG76: 0 | AH76: 0 | AI76: 0 | AJ76: 0 | AK76: 0 | AL76: 0 | AM76: 0 | AN76: 0 | AO76: 0 | AP76: 0 | AQ76: 0 | AR76: 0 | AS76: 0 | AT76: 0 | AU76: 0 | AV76: 0 | AW76: 0 | AX76: 0
E77: Pass through revenue adjustment (assessed) - Unadjusted for End of Period | G77: £m nominal | W77: =MMULT(S76:W76,W$17:W$21) -> 0 | X77: 0 | Y77: 0 | Z77: 0 | AA77: 0 | AB77: 0 | AC77: 0 | AD77: 0 | AE77: 0 | AF77: 0 | AG77: 0 | AH77: 0 | AI77: 0 | AJ77: 0 | AK77: 0 | AL77: 0 | AM77: 0 | AN77: 0 | AO77: 0 | AP77: 0 | AQ77: 0 | AR77: 0 | AS77: 0 | AT77: 0 | AU77: 0 | AV77: 0 | AW77: 0 | AX77: 0
E79: End of Period Pass through revenue adjustment (assessed) | G79: £m nominal | H79: PTAap | W79: =W77*W51 -> 0 | X79: 0 | Y79: 0 | Z79: 0 | AA79: 0 | AB79: 0 | AC79: 0 | AD79: 0 | AE79: 0 | AF79: 0 | AG79: 0 | AH79: 0 | AI79: 0 | AJ79: 0 | AK79: 0 | AL79: 0 | AM79: 0 | AN79: 0 | AO79: 0 | AP79: 0 | AQ79: 0 | AR79: 0 | AS79: 0 | AT79: 0 | AU79: 0 | AV79: 0 | AW79: 0 | AX79: 0
B81: End of sheet

Sheet Output
A1: Output | H1: Licence
E2: Parameter | G2: Units | H2: Terminology | I2: Constant | K2: Annual values
E3: Project year | K3: =Input!K3 -> -11 | L3: =K3 + 1 -> -10 | M3: =L3 + 1 -> -9 | N3: =M3 + 1 -> -8 | O3: =N3 + 1 -> -7 | P3: =O3 + 1 -> -6 | Q3: =P3 + 1 -> -5 | R3: =Q3 + 1 -> -4 | S3: =R3 + 1 -> -3 | T3: =S3 + 1 -> -2 | U3: =T3 + 1 -> -1 | V3: =U3 + 1 -> 0 | W3: =V3 + 1 -> 1 | X3: =W3 + 1 -> 2 | Y3: =X3 + 1 -> 3 | Z3: =Y3 + 1 -> 4 | AA3: =Z3 + 1 -> 5 | AB3: =AA3 + 1 -> 6 | AC3: =AB3 + 1 -> 7 | AD3: =AC3 + 1 -> 8 | AE3: =AD3 + 1 -> 9 | AF3: =AE3 + 1 -> 10 | AG3: =AF3 + 1 -> 11 | AH3: =AG3 + 1 -> 12 | AI3: =AH3 + 1 -> 13 | AJ3: =AI3 + 1 -> 14 | AK3: =AJ3 + 1 -> 15 | AL3: =AK3 + 1 -> 16 | AM3: =AL3 + 1 -> 17 | AN3: =AM3 + 1 -> 18 | AO3: =AN3 + 1 -> 19 | AP3: =AO3 + 1 -> 20 | AQ3: =AP3 + 1 -> 21 | AR3: =AQ3 + 1 -> 22 | AS3: =AR3 + 1 -> 23 | AT3: =AS3 + 1 -> 24 | AU3: =AT3 + 1 -> 25 | AV3: =AU3 + 1 -> 26 | AW3: =AV3 + 1 -> 27 | AX3: =AW3 + 1 -> 28
E4: Year ending | K4: =Input!K4 -> 2010-12-31 | L4: =DATE(YEAR(K4) + 1, MONTH(K4), DAY(K4)) -> 2011-12-31 | M4: =DATE(YEAR(L4) + 1, MONTH(L4), DAY(L4)) -> 2012-12-31 | N4: =DATE(YEAR(M4) + 1, MONTH(M4), DAY(M4)) -> 2013-12-31 | O4: =DATE(YEAR(N4) + 1, MONTH(N4), DAY(N4)) -> 2014-12-31 | P4: =DATE(YEAR(O4) + 1, MONTH(O4), DAY(O4)) -> 2015-12-31 | Q4: =DATE(YEAR(P4) + 1, MONTH(P4), DAY(P4)) -> 2016-12-31 | R4: =DATE(YEAR(Q4) + 1, MONTH(Q4), DAY(Q4)) -> 2017-12-31 | S4: =DATE(YEAR(R4) + 1, MONTH(R4), DAY(R4)) -> 2018-12-31 | T4: =DATE(YEAR(S4) + 1, MONTH(S4), DAY(S4)) -> 2019-12-31 | U4: =DATE(YEAR(T4) + 1, MONTH(T4), DAY(T4)) -> 2020-12-31 | V4: =DATE(YEAR(U4) + 1, MONTH(U4), DAY(U4)) -> 2021-12-31 | W4: =DATE(YEAR(V4) + 1, MONTH(V4), DAY(V4)) -> 2022-12-31 | X4: =DATE(YEAR(W4) + 1, MONTH(W4), DAY(W4)) -> 2023-12-31 | Y4: =DATE(YEAR(X4) + 1, MONTH(X4), DAY(X4)) -> 2024-12-31 | Z4: =DATE(YEAR(Y4) + 1, MONTH(Y4), DAY(Y4)) -> 2025-12-31 | AA4: =DATE(YEAR(Z4) + 1, MONTH(Z4), DAY(Z4)) -> 2026-12-31 | AB4: =DATE(YEAR(AA4) + 1, MONTH(AA4), DAY(AA4)) -> 2027-12-31 | AC4: =DATE(YEAR(AB4) + 1, MONTH(AB4), DAY(AB4)) -> 2028-12-31 | AD4: =DATE(YEAR(AC4) + 1, MONTH(AC4), DAY(AC4)) -> 2029-12-31 | AE4: =DATE(YEAR(AD4) + 1, MONTH(AD4), DAY(AD4)) -> 2030-12-31 | AF4: =DATE(YEAR(AE4) + 1, MONTH(AE4), DAY(AE4)) -> 2031-12-31 | AG4: =DATE(YEAR(AF4) + 1, MONTH(AF4), DAY(AF4)) -> 2032-12-31 | AH4: =DATE(YEAR(AG4) + 1, MONTH(AG4), DAY(AG4)) -> 2033-12-31 | AI4: =DATE(YEAR(AH4) + 1, MONTH(AH4), DAY(AH4)) -> 2034-12-31 | AJ4: =DATE(YEAR(AI4) + 1, MONTH(AI4), DAY(AI4)) -> 2035-12-31 | AK4: =DATE(YEAR(AJ4) + 1, MONTH(AJ4), DAY(AJ4)) -> 2036-12-31 | AL4: =DATE(YEAR(AK4) + 1, MONTH(AK4), DAY(AK4)) -> 2037-12-31 | AM4: =DATE(YEAR(AL4) + 1, MONTH(AL4), DAY(AL4)) -> 2038-12-31 | AN4: =DATE(YEAR(AM4) + 1, MONTH(AM4), DAY(AM4)) -> 2039-12-31 | AO4: =DATE(YEAR(AN4) + 1, MONTH(AN4), DAY(AN4)) -> 2040-12-31 | AP4: =DATE(YEAR(AO4) + 1, MONTH(AO4), DAY(AO4)) -> 2041-12-31 | AQ4: =DATE(YEAR(AP4) + 1, MONTH(AP4), DAY(AP4)) -> 2042-12-31 | AR4: =DATE(YEAR(AQ4) + 1, MONTH(AQ4), DAY(AQ4)) -> 2043-12-31 | AS4: =DATE(YEAR(AR4) + 1, MONTH(AR4), DAY(AR4)) -> 2044-12-31 | AT4: =DATE(YEAR(AS4) + 1, MONTH(AS4), DAY(AS4)) -> 2045-12-31 | AU4: =DATE(YEAR(AT4) + 1, MONTH(AT4), DAY(AT4)) -> 2046-12-31 | AV4: =DATE(YEAR(AU4) + 1, MONTH(AU4), DAY(AU4)) -> 2047-12-31 | AW4: =DATE(YEAR(AV4) + 1, MONTH(AV4), DAY(AV4)) -> 2048-12-31 | AX4: =DATE(YEAR(AW4) + 1, MONTH(AW4), DAY(AW4)) -> 2049-12-31
B6: Model outputs
C8: Cap and floor levels
E10: Cap | G10: £m nominal | W10: =Availability!W16*Assessment!W12/Assessment!$I12 -> 115.8439039 | X10: =Availability!X16*Assessment!X12/Assessment!$I12 -> 118.9832737 | Y10: =Availability!Y16*Assessment!Y12/Assessment!$I12 -> 122.2077204 | Z10: =Availability!Z16*Assessment!Z12/Assessment!$I12 -> 125.5195496 | AA10: =Availability!AA16*Assessment!AA12/Assessment!$I12 -> 128.9211294 | AB10: =Availability!AB16*Assessment!AB12/Assessment!$I12 -> 132.414892 | AC10: =Availability!AC16*Assessment!AC12/Assessment!$I12 -> 136.0033356 | AD10: =Availability!AD16*Assessment!AD12/Assessment!$I12 -> 139.689026 | AE10: =Availability!AE16*Assessment!AE12/Assessment!$I12 -> 143.4745986 | AF10: =Availability!AF16*Assessment!AF12/Assessment!$I12 -> 147.3627602 | AG10: =Availability!AG16*Assessment!AG12/Assessment!$I12 -> 151.356291 | AH10: =Availability!AH16*Assessment!AH12/Assessment!$I12 -> 155.4580465 | AI10: =Availability!AI16*Assessment!AI12/Assessment!$I12 -> 159.6709596 | AJ10: =Availability!AJ16*Assessment!AJ12/Assessment!$I12 -> 163.9980426 | AK10: =Availability!AK16*Assessment!AK12/Assessment!$I12 -> 168.4423895 | AL10: =Availability!AL16*Assessment!AL12/Assessment!$I12 -> 173.0071783 | AM10: =Availability!AM16*Assessment!AM12/Assessment!$I12 -> 177.6956728 | AN10: =Availability!AN16*Assessment!AN12/Assessment!$I12 -> 182.5112255 | AO10: =Availability!AO16*Assessment!AO12/Assessment!$I12 -> 187.4572798 | AP10: =Availability!AP16*Assessment!AP12/Assessment!$I12 -> 192.537372 | AQ10: =Availability!AQ16*Assessment!AQ12/Assessment!$I12 -> 197.7551348 | AR10: =Availability!AR16*Assessment!AR12/Assessment!$I12 -> 203.114299 | AS10: =Availability!AS16*Assessment!AS12/Assessment!$I12 -> 208.6186965 | AT10: =Availability!AT16*Assessment!AT12/Assessment!$I12 -> 214.2722631 | AU10: =Availability!AU16*Assessment!AU12/Assessment!$I12 -> 220.0790415 | AV10: =Availability!AV16*Assessment!AV12/Assessment!$I12 -> 0 | AW10: =Availability!AW16*Assessment!AW12/Assessment!$I12 -> 0 | AX10: =Availability!AX16*Assessment!AX12/Assessment!$I12 -> 0
E11: Floor | G11: £m nominal | W11: =Availability!W17*Assessment!W12/Assessment!$I12 -> 63.94986522 | X11: =Availability!X17*Assessment!X12/Assessment!$I12 -> 65.68290657 | Y11: =Availability!Y17*Assessment!Y12/Assessment!$I12 -> 67.46291334 | Z11: =Availability!Z17*Assessment!Z12/Assessment!$I12 -> 69.29115829 | AA11: =Availability!AA17*Assessment!AA12/Assessment!$I12 -> 71.16894868 | AB11: =Availability!AB17*Assessment!AB12/Assessment!$I12 -> 73.09762719 | AC11: =Availability!AC17*Assessment!AC12/Assessment!$I12 -> 75.07857289 | AD11: =Availability!AD17*Assessment!AD12/Assessment!$I12 -> 77.11320221 | AE11: =Availability!AE17*Assessment!AE12/Assessment!$I12 -> 79.20296999 | AF11: =Availability!AF17*Assessment!AF12/Assessment!$I12 -> 81.34937048 | AG11: =Availability!AG17*Assessment!AG12/Assessment!$I12 -> 83.55393842 | AH11: =Availability!AH17*Assessment!AH12/Assessment!$I12 -> 85.81825015 | AI11: =Availability!AI17*Assessment!AI12/Assessment!$I12 -> 88.14392473 | AJ11: =Availability!AJ17*Assessment!AJ12/Assessment!$I12 -> 90.53262509 | AK11: =Availability!AK17*Assessment!AK12/Assessment!$I12 -> 92.98605923 | AL11: =Availability!AL17*Assessment!AL12/Assessment!$I12 -> 95.50598143 | AM11: =Availability!AM17*Assessment!AM12/Assessment!$I12 -> 98.09419353 | AN11: =Availability!AN17*Assessment!AN12/Assessment!$I12 -> 100.7525462 | AO11: =Availability!AO17*Assessment!AO12/Assessment!$I12 -> 103.4829402 | AP11: =Availability!AP17*Assessment!AP12/Assessment!$I12 -> 106.2873279 | AQ11: =Availability!AQ17*Assessment!AQ12/Assessment!$I12 -> 109.1677144 | AR11: =Availability!AR17*Assessment!AR12/Assessment!$I12 -> 112.1261595 | AS11: =Availability!AS17*Assessment!AS12/Assessment!$I12 -> 115.1647784 | AT11: =Availability!AT17*Assessment!AT12/Assessment!$I12 -> 118.2857439 | AU11: =Availability!AU17*Assessment!AU12/Assessment!$I12 -> 121.4912876 | AV11: =Availability!AV17*Assessment!AV12/Assessment!$I12 -> 0 | AW11: =Availability!AW17*Assessment!AW12/Assessment!$I12 -> 0 | AX11: =Availability!AX17*Assessment!AX12/Assessment!$I12 -> 0
C13: Amounts due to or from Consumers - £m nominal
E17: Interconnector Cap and Floor Revenue Adjustment for Assessment Periods | G17: £m nominal | H17: ICFap | W17: =Assessment!W63+Assessment!W79 -> 0 | X17: =Assessment!X63+Assessment!X79 -> 0 | Y17: =Assessment!Y63+Assessment!Y79 -> 0 | Z17: =Assessment!Z63+Assessment!Z79 -> 0 | AA17: =Assessment!AA63+Assessment!AA79 -> 0 | AB17: =Assessment!AB63+Assessment!AB79 -> 0 | AC17: =Assessment!AC63+Assessment!AC79 -> 0 | AD17: =Assessment!AD63+Assessment!AD79 -> 0 | AE17: =Assessment!AE63+Assessment!AE79 -> 0 | AF17: =Assessment!AF63+Assessment!AF79 -> 0 | AG17: =Assessment!AG63+Assessment!AG79 -> 0 | AH17: =Assessment!AH63+Assessment!AH79 -> 0 | AI17: =Assessment!AI63+Assessment!AI79 -> 0 | AJ17: =Assessment!AJ63+Assessment!AJ79 -> 0 | AK17: =Assessment!AK63+Assessment!AK79 -> 0 | AL17: =Assessment!AL63+Assessment!AL79 -> 0 | AM17: =Assessment!AM63+Assessment!AM79 -> 0 | AN17: =Assessment!AN63+Assessment!AN79 -> 0 | AO17: =Assessment!AO63+Assessment!AO79 -> 0 | AP17: =Assessment!AP63+Assessment!AP79 -> 0 | AQ17: =Assessment!AQ63+Assessment!AQ79 -> 0 | AR17: =Assessment!AR63+Assessment!AR79 -> 0 | AS17: =Assessment!AS63+Assessment!AS79 -> 0 | AT17: =Assessment!AT63+Assessment!AT79 -> 0 | AU17: =Assessment!AU63+Assessment!AU79 -> 0 | AV17: =Assessment!AV63+Assessment!AV79 -> 0 | AW17: =Assessment!AW63+Assessment!AW79 -> 0 | AX17: =Assessment!AX63+Assessment!AX79 -> 0
E19: Interconnector Cap and Floor Revenue Adjustment for Partial Assessment Periods | G19: £m nominal | H19: ICFpap | W19: =Assessment!W36 -> 0 | X19: =Assessment!X36 -> 0 | Y19: =Assessment!Y36 -> 0 | Z19: =Assessment!Z36 -> 0 | AA19: =Assessment!AA36 -> 0 | AB19: =Assessment!AB36 -> 0 | AC19: =Assessment!AC36 -> 0 | AD19: =Assessment!AD36 -> 0 | AE19: =Assessment!AE36 -> 0 | AF19: =Assessment!AF36 -> 0 | AG19: =Assessment!AG36 -> 0 | AH19: =Assessment!AH36 -> 0 | AI19: =Assessment!AI36 -> 0 | AJ19: =Assessment!AJ36 -> 0 | AK19: =Assessment!AK36 -> 0 | AL19: =Assessment!AL36 -> 0 | AM19: =Assessment!AM36 -> 0 | AN19: =Assessment!AN36 -> 0 | AO19: =Assessment!AO36 -> 0 | AP19: =Assessment!AP36 -> 0 | AQ19: =Assessment!AQ36 -> 0 | AR19: =Assessment!AR36 -> 0 | AS19: =Assessment!AS36 -> 0 | AT19: =Assessment!AT36 -> 0 | AU19: =Assessment!AU36 -> 0 | AV19: =Assessment!AV36 -> 0 | AW19: =Assessment!AW36 -> 0 | AX19: =Assessment!AX36 -> 0
B21: End of sheet

Sheet download from BoE
A1: SERIES | B1: DESCRIPTION
A2: IUDMIZC | B2: Yield from British Government Securities - 10 year Inflation Zero Coupon
A4: DATE | B4: IUDMIZC | D4: DATE | E4: IUDMIZC | G4: DATE | H4: IUDMIZC
A5: 2015-02-26 | B5: 2.7347 | D5: 2015-02-26 | E5: 2.7347 | G5: 2015-01-29 | H5: 2.4863
A6: 2015-02-27 | B6: 2.7756 | D6: 2015-02-27 | E6: 2.7756 | G6: 2015-01-30 | H6: 2.4335
A7: 2015-03-02 | B7: 2.7719 | D7: 2015-03-02 | E7: 2.7719 | G7: 2015-02-02 | H7: 2.4704
A8: 2015-03-03 | B8: 2.766 | D8: 2015-03-03 | E8: 2.766 | G8: 2015-02-03 | H8: 2.5188
A9: 2015-03-04 | B9: 2.7438 | D9: 2015-03-04 | E9: 2.7438 | G9: 2015-02-04 | H9: 2.5581
A10: 2015-03-05 | B10: 2.7187 | D10: 2015-03-05 | E10: 2.7187 | G10: 2015-02-05 | H10: 2.545
A11: 2015-03-06 | B11: 2.779 | D11: 2015-03-06 | E11: 2.779 | G11: 2015-02-06 | H11: 2.5532
A12: 2015-03-09 | B12: 2.7612 | D12: 2015-03-09 | E12: 2.7612 | G12: 2015-02-09 | H12: 2.5296
A13: 2015-03-10 | B13: 2.7175 | D13: 2015-03-10 | E13: 2.7175 | G13: 2015-02-10 | H13: 2.5207
A14: 2015-03-11 | B14: 2.7122 | D14: 2015-03-11 | E14: 2.7122 | G14: 2015-02-11 | H14: 2.5068
A15: 2015-03-12 | B15: 2.6773 | D15: 2015-03-12 | E15: 2.6773 | G15: 2015-02-12 | H15: 2.509
A16: 2015-03-13 | B16: 2.6344 | D16: 2015-03-13 | E16: 2.6344 | G16: 2015-02-13 | H16: 2.5317
A17: 2015-03-16 | B17: 2.6067 | D17: 2015-03-16 | E17: 2.6067 | G17: 2015-02-16 | H17: 2.5499
A18: 2015-03-17 | B18: 2.624 | D18: 2015-03-17 | E18: 2.624 | G18: 2015-02-17 | H18: 2.6951
A19: 2015-03-18 | B19: 2.6597 | D19: 2015-03-18 | E19: 2.6597 | G19: 2015-02-18 | H19: 2.7482
A20: 2015-03-19 | B20: 2.6851 | D20: 2015-03-19 | E20: 2.6851 | G20: 2015-02-19 | H20: 2.7477
A21: 2015-03-20 | B21: 2.735 | D21: 2015-03-20 | E21: 2.735 | G21: 2015-02-20 | H21: 2.7454
A22: 2015-03-23 | B22: 2.7113 | D22: 2015-03-23 | E22: 2.7113 | G22: 2015-02-23 | H22: 2.7618
A23: 2015-03-24 | B23: 2.6979 | D23: 2015-03-24 | E23: 2.6979 | G23: 2015-02-24 | H23: 2.7438
A24: 2015-03-25 | B24: 2.6952 | D24: 2015-03-25 | E24: 2.6952 | G24: 2015-02-25 | H24: 2.7198

Sheet download from iBoxx
A59: DATE | B59: FIXINGFLAG | C59: Years to Maturity / Expected Remaining Life | D59: Price Return Index Level | E59: Total Return Index Level | F59: Gross Price Index Level | G59: Coupon Income Index Level | H59: Redemption Income Index Level | I59: Income Index Level | J59: Market Value | K59: Nominal Value | L59: Base Market Value | M59: Annual Yield in % | N59: Annual Modified Duration | O59: Index Asset Swap Margin | Q59: Fixing | R59: EU_EOD | S59: 2015-04-20
A60: 2015-03-25 | B60: EOD | C60: 17.78 | D60: 134.58 | E60: 389.7943 | F60: 121 | G60: 1.23 | H60: 0 | I60: 1.23 | J60: 4.641253171e+10 | K60: 36031274000 | L60: 4.54822168e+10 | M60: 3.5 | N60: 11.47 | O60: 193.37 | Q60: Index | R60: iBoxx £ Non-Financials BBB 10+
A61: 2015-03-24 | B61: EOD | C61: 17.79 | D61: 134.18 | E61: 388.6417 | F61: 120.79 | G61: 1.09 | H61: 0 | I61: 1.09 | J61: 4.632943761e+10 | K61: 36031274000 | L61: 4.54822168e+10 | M61: 3.52 | N61: 11.44 | O61: 192.41 | Q61: ISIN TRi | R61: DE000A0JZAH1
A62: 2015-03-23 | B62: EOD | C62: 17.79 | D62: 134.3 | E62: 388.9382 | F62: 120.88 | G62: 1.09 | H62: 0 | I62: 1.09 | J62: 4.636486824e+10 | K62: 36031274000 | L62: 4.54822168e+10 | M62: 3.52 | N62: 11.45 | O62: 191.97 | Q62: Total Return Index Level | R62: 385.67
A63: 2015-03-20 | B63: EOD | C63: 17.8 | D63: 134.23 | E63: 388.5897 | F63: 120.86 | G63: 1 | H63: 0 | I63: 1 | J63: 4.635747983e+10 | K63: 36031274000 | L63: 4.54822168e+10 | M63: 3.52 | N63: 11.45 | O63: 193.44 | Q63: Price Index Level | R63: 132.7
A64: 2015-03-19 | B64: EOD | C64: 17.8 | D64: 134.04 | E64: 388.0022 | F64: 120.68 | G64: 1 | H64: 0 | I64: 1 | J64: 4.628728894e+10 | K64: 36031274000 | L64: 4.54822168e+10 | M64: 3.53 | N64: 11.44 | O64: 192.66
A65: 2015-03-18 | B65: EOD | C65: 17.8 | D65: 132.82 | E65: 384.5276 | F65: 119.6 | G65: 1 | H65: 0 | I65: 1 | J65: 4.587214055e+10 | K65: 36031274000 | L65: 4.54822168e+10 | M65: 3.61 | N65: 11.4 | O65: 191.16
A66: 2015-03-17 | B66: EOD | C66: 17.81 | D66: 132.07 | E66: 382.3587 | F66: 118.92 | G66: 1 | H66: 0 | I66: 1 | J66: 4.561300286e+10 | K66: 36031274000 | L66: 4.54822168e+10 | M66: 3.66 | N66: 11.37 | O66: 187.61
A67: 2015-03-16 | B67: EOD | C67: 17.81 | D67: 132 | E67: 382.1174 | F67: 118.85 | G67: 1 | H67: 0 | I67: 1 | J67: 4.558417456e+10 | K67: 36031274000 | L67: 4.54822168e+10 | M67: 3.66 | N67: 11.37 | O67: 189.51
A68: 2015-03-13 | B68: EOD | C68: 17.82 | D68: 131.57 | E68: 380.7553 | F68: 118.51 | G68: 0.91 | H68: 0 | I68: 0.91 | J68: 4.545442806e+10 | K68: 36031274000 | L68: 4.54822168e+10 | M68: 3.69 | N68: 11.35 | O68: 189.24
A69: 2015-03-12 | B69: EOD | C69: 17.82 | D69: 131.38 | E69: 380.1858 | F69: 118.33 | G69: 0.91 | H69: 0 | I69: 0.91 | J69: 4.538638519e+10 | K69: 36031274000 | L69: 4.54822168e+10 | M69: 3.71 | N69: 11.35 | O69: 184.07
A70: 2015-03-11 | B70: EOD | C70: 17.82 | D70: 130.5 | E70: 377.6391 | F70: 117.54 | G70: 0.91 | H70: 0 | I70: 0.91 | J70: 4.508211323e+10 | K70: 36031274000 | L70: 4.54822168e+10 | M70: 3.76 | N70: 11.32 | O70: 179.36
A71: 2015-03-10 | B71: EOD | C71: 17.83 | D71: 130.51 | E71: 377.6355 | F71: 117.53 | G71: 0.91 | H71: 0 | I71: 0.91 | J71: 4.508167371e+10 | K71: 36031274000 | L71: 4.54822168e+10 | M71: 3.76 | N71: 11.32 | O71: 177.52
A72: 2015-03-09 | B72: EOD | C72: 17.83 | D72: 129.09 | E72: 373.5839 | F72: 116.27 | G72: 0.91 | H72: 0 | I72: 0.91 | J72: 4.459760128e+10 | K72: 36031274000 | L72: 4.54822168e+10 | M72: 3.86 | N72: 11.28 | O72: 174.74
A73: 2015-03-06 | B73: EOD | C73: 17.84 | D73: 128.98 | E73: 373.132 | F73: 116.13 | G73: 0.91 | H73: 0 | I73: 0.91 | J73: 4.454360941e+10 | K73: 36031274000 | L73: 4.54822168e+10 | M73: 3.86 | N73: 11.28 | O73: 174.73
A74: 2015-03-05 | B74: EOD | C74: 17.84 | D74: 130.12 | E74: 376.3118 | F74: 117.12 | G74: 0.91 | H74: 0 | I74: 0.91 | J74: 4.492352685e+10 | K74: 36031274000 | L74: 4.54822168e+10 | M74: 3.79 | N74: 11.33 | O74: 176.7
A75: 2015-03-04 | B75: EOD | C75: 17.84 | D75: 129.88 | E75: 375.5673 | F75: 116.89 | G75: 0.91 | H75: 0 | I75: 0.91 | J75: 4.483457253e+10 | K75: 36031274000 | L75: 4.54822168e+10 | M75: 3.81 | N75: 11.32 | O75: 176.21
A76: 2015-03-03 | B76: EOD | C76: 17.85 | D76: 130.4 | E76: 377.0091 | F76: 117.34 | G76: 0.91 | H76: 0 | I76: 0.91 | J76: 4.500683798e+10 | K76: 36031274000 | L76: 4.54822168e+10 | M76: 3.77 | N76: 11.34 | O76: 176.04
A77: 2015-03-02 | B77: EOD | C77: 17.85 | D77: 131.5 | E77: 380.0478 | F77: 118.29 | G77: 0.91 | H77: 0 | I77: 0.91 | J77: 4.536989631e+10 | K77: 36031274000 | L77: 4.54822168e+10 | M77: 3.7 | N77: 11.39 | O77: 178.22
A78: 2015-02-28 | B78: EOD | C78: 16.84 | D78: 131.75 | E78: 380.6709 | F78: 118.58 | G78: 0.81 | H78: 0 | I78: 0.81 | J78: 4.19919363e+10 | K78: 33831274000 | L78: 4.389738897e+10 | M78: 3.77 | N78: 11 | O78: 187.21
A79: 2015-02-27 | B79: EOD | C79: 16.84 | D79: 131.75 | E79: 380.6239 | F79: 118.56 | G79: 0.81 | H79: 0 | I79: 0.81 | J79: 4.198674202e+10 | K79: 33831274000 | L79: 4.389738897e+10 | M79: 3.77 | N79: 11.01 | O79: 187.24
A80: 2015-02-26 | B80: EOD | C80: 16.85 | D80: 132.55 | E80: 382.8155 | F80: 119.25 | G80: 0.81 | H80: 0 | I80: 0.81 | J80: 4.22288953e+10 | K80: 33831274000 | L80: 4.389738897e+10 | M80: 3.72 | N80: 11.04 | O80: 186.36
A88: DATE | B88: FIXINGFLAG | C88: Years to Maturity / Expected Remaining Life | D88: Price Return Index Level | E88: Total Return Index Level | F88: Gross Price Index Level | G88: Coupon Income Index Level | H88: Redemption Income Index Level | I88: Income Index Level | J88: Market Value | K88: Nominal Value | L88: Base Market Value | M88: Annual Yield in % | N88: Annual Modified Duration | O88: Index Asset Swap Margin | Q88: Fixing | R88: EU_EOD | S88: 2015-04-20
A89: 2015-03-25 | B89: EOD | C89: 22.76 | D89: 142.47 | E89: 383.2726 | F89: 144.17 | G89: 0.81 | H89: 0 | I89: 0.81 | J89: 6.213904227e+10 | K89: 46881056000 | L89: 6.07573573e+10 | M89: 3.37 | N89: 13.04 | O89: 180.12 | Q89: Index | R89: iBoxx £ Non-Financials A 10+
A90: 2015-03-24 | B90: EOD | C90: 22.77 | D90: 142.04 | E90: 382.1136 | F90: 143.73 | G90: 0.81 | H90: 0 | I90: 0.81 | J90: 6.195084065e+10 | K90: 46881056000 | L90: 6.07573573e+10 | M90: 3.39 | N90: 13.02 | O90: 178.74 | Q90: ISIN TRi | R90: DE000A0JY837
A91: 2015-03-23 | B91: EOD | C91: 22.77 | D91: 142.04 | E91: 382.0616 | F91: 143.71 | G91: 0.81 | H91: 0 | I91: 0.81 | J91: 6.194239911e+10 | K91: 46881056000 | L91: 6.07573573e+10 | M91: 3.39 | N91: 13.02 | O91: 178.98 | Q91: Total Return Index Level | R91: 378.72
A92: 2015-03-20 | B92: EOD | C92: 22.78 | D92: 142 | E92: 381.839 | F92: 143.63 | G92: 0.81 | H92: 0 | I92: 0.81 | J92: 6.190625957e+10 | K92: 46881056000 | L92: 6.07573573e+10 | M92: 3.39 | N92: 13.03 | O92: 180.53 | Q92: Price Index Level | R92: 140.31
A93: 2015-03-19 | B93: EOD | C93: 22.78 | D93: 141.82 | E93: 381.3121 | F93: 143.43 | G93: 0.81 | H93: 0 | I93: 0.81 | J93: 6.182069526e+10 | K93: 46881056000 | L93: 6.07573573e+10 | M93: 3.4 | N93: 13.03 | O93: 179.35
A94: 2015-03-18 | B94: EOD | C94: 22.78 | D94: 140.36 | E94: 377.4235 | F94: 141.97 | G94: 0.81 | H94: 0 | I94: 0.81 | J94: 6.118928139e+10 | K94: 46881056000 | L94: 6.07573573e+10 | M94: 3.48 | N94: 12.95 | O94: 177.48
A95: 2015-03-17 | B95: EOD | C95: 22.78 | D95: 139.46 | E95: 375.0107 | F95: 141.06 | G95: 0.81 | H95: 0 | I95: 0.81 | J95: 6.079748105e+10 | K95: 46881056000 | L95: 6.07573573e+10 | M95: 3.53 | N95: 12.91 | O95: 173.81
A96: 2015-03-16 | B96: EOD | C96: 22.79 | D96: 139.4 | E96: 374.8056 | F96: 140.98 | G96: 0.81 | H96: 0 | I96: 0.81 | J96: 6.076417805e+10 | K96: 46881056000 | L96: 6.07573573e+10 | M96: 3.53 | N96: 12.91 | O96: 175.82
A97: 2015-03-13 | B97: EOD | C97: 22.8 | D97: 138.92 | E97: 373.4244 | F97: 140.46 | G97: 0.81 | H97: 0 | I97: 0.81 | J97: 6.053991126e+10 | K97: 46881056000 | L97: 6.07573573e+10 | M97: 3.56 | N97: 12.89 | O97: 175.09
A98: 2015-03-12 | B98: EOD | C98: 22.8 | D98: 138.79 | E98: 373.0371 | F98: 140.39 | G98: 0.74 | H98: 0 | I98: 0.74 | J98: 6.050983301e+10 | K98: 46881056000 | L98: 6.07573573e+10 | M98: 3.57 | N98: 12.89 | O98: 169.57
A99: 2015-03-11 | B99: EOD | C99: 22.8 | D99: 137.66 | E99: 370.0119 | F99: 139.25 | G99: 0.74 | H99: 0 | I99: 0.74 | J99: 6.001860773e+10 | K99: 46881056000 | L99: 6.07573573e+10 | M99: 3.63 | N99: 12.83 | O99: 164.62
A100: 2015-03-10 | B100: EOD | C100: 22.8 | D100: 137.61 | E100: 369.8422 | F100: 139.19 | G100: 0.74 | H100: 0 | I100: 0.74 | J100: 5.999105302e+10 | K100: 46881056000 | L100: 6.07573573e+10 | M100: 3.63 | N100: 12.83 | O100: 163.24
A101: 2015-03-09 | B101: EOD | C101: 22.81 | D101: 136.08 | E101: 365.766 | F101: 137.68 | G101: 0.71 | H101: 0 | I101: 0.71 | J101: 5.933990424e+10 | K101: 46881056000 | L101: 6.07573573e+10 | M101: 3.72 | N101: 12.76 | O101: 159.65
A102: 2015-03-06 | B102: EOD | C102: 22.81 | D102: 136.02 | E102: 365.484 | F102: 137.67 | G102: 0.61 | H102: 0 | I102: 0.61 | J102: 5.933875032e+10 | K102: 46881056000 | L102: 6.07573573e+10 | M102: 3.72 | N102: 12.75 | O102: 159.23
A103: 2015-03-05 | B103: EOD | C103: 22.82 | D103: 137.33 | E103: 368.8815 | F103: 138.95 | G103: 0.61 | H103: 0 | I103: 0.61 | J103: 5.989042114e+10 | K103: 46881056000 | L103: 6.07573573e+10 | M103: 3.65 | N103: 12.82 | O103: 161.7
A104: 2015-03-04 | B104: EOD | C104: 22.82 | D104: 137.17 | E104: 368.4287 | F104: 138.78 | G104: 0.61 | H104: 0 | I104: 0.61 | J104: 5.981689188e+10 | K104: 46881056000 | L104: 6.07573573e+10 | M104: 3.66 | N104: 12.82 | O104: 160.44
A105: 2015-03-03 | B105: EOD | C105: 22.82 | D105: 137.8 | E105: 370.0369 | F105: 139.39 | G105: 0.61 | H105: 0 | I105: 0.61 | J105: 6.007803939e+10 | K105: 46881056000 | L105: 6.07573573e+10 | M105: 3.62 | N105: 12.85 | O105: 160.23
A106: 2015-03-02 | B106: EOD | C106: 22.83 | D106: 139.06 | E106: 373.3078 | F106: 140.62 | G106: 0.61 | H106: 0 | I106: 0.61 | J106: 6.060916595e+10 | K106: 46881056000 | L106: 6.07573573e+10 | M106: 3.55 | N106: 12.93 | O106: 162.98
A107: 2015-02-28 | B107: EOD | C107: 23.01 | D107: 139.42 | E107: 374.1708 | F107: 140.96 | G107: 0.59 | H107: 0 | I107: 0.59 | J107: 6.581565992e+10 | K107: 50899279000 | L107: 6.949802736e+10 | M107: 3.57 | N107: 13.02 | O107: 169.06
A108: 2015-02-27 | B108: EOD | C108: 23.01 | D108: 139.42 | E108: 374.1276 | F108: 140.96 | G108: 0.57 | H108: 0 | I108: 0.57 | J108: 6.581554415e+10 | K108: 50899279000 | L108: 6.949802736e+10 | M108: 3.57 | N108: 13.03 | O108: 169.08
A109: 2015-02-26 | B109: EOD | C109: 23.02 | D109: 140.5 | E109: 376.9328 | F109: 142.02 | G109: 0.57 | H109: 0 | I109: 0.57 | J109: 6.630963282e+10 | K109: 50899279000 | L109: 6.949802736e+10 | M109: 3.51 | N109: 13.09 | O109: 168.04

Sheet Market data
A1: TEMPORARY 1
E2: Parameter | G2: Units | I2: Constant | K2: Annual values
E3: Project year | K3: =Input!K3 -> -11 | L3: =K3 + 1 -> -10 | M3: -9 | N3: -8 | O3: -7 | P3: -6 | Q3: -5 | R3: -4 | S3: -3 | T3: -2 | U3: -1 | V3: 0 | W3: 1 | X3: 2 | Y3: 3 | Z3: 4 | AA3: 5 | AB3: 6 | AC3: 7 | AD3: 8 | AE3: 9 | AF3: 10 | AG3: 11 | AH3: 12 | AI3: 13 | AJ3: 14 | AK3: 15 | AL3: 16 | AM3: 17 | AN3: 18 | AO3: 19 | AP3: 20 | AQ3: 21 | AR3: 22 | AS3: 23 | AT3: 24 | AU3: 25 | AV3: 26 | AW3: 27 | AX3: 28
E4: Year ending | K4: =Input!K4 -> 2010-12-31 | L4: =DATE(YEAR(K4) + 1, MONTH(K4), DAY(K4)) -> 2011-12-31 | M4: 2012-12-31 | N4: 2013-12-31 | O4: 2014-12-31 | P4: 2015-12-31 | Q4: 2016-12-31 | R4: 2017-12-31 | S4: 2018-12-31 | T4: 2019-12-31 | U4: 2020-12-31 | V4: 2021-12-31 | W4: 2022-12-31 | X4: 2023-12-31 | Y4: 2024-12-31 | Z4: 2025-12-31 | AA4: 2026-12-31 | AB4: 2027-12-31 | AC4: 2028-12-31 | AD4: 2029-12-31 | AE4: 2030-12-31 | AF4: 2031-12-31 | AG4: 2032-12-31 | AH4: 2033-12-31 | AI4: 2034-12-31 | AJ4: 2035-12-31 | AK4: 2036-12-31 | AL4: 2037-12-31 | AM4: 2038-12-31 | AN4: 2039-12-31 | AO4: 2040-12-31 | AP4: 2041-12-31 | AQ4: 2042-12-31 | AR4: 2043-12-31 | AS4: 2044-12-31 | AT4: 2045-12-31 | AU4: 2046-12-31 | AV4: 2047-12-31 | AW4: 2048-12-31 | AX4: 2049-12-31
B6: Returns
C8: Cap
D10: Beta
E12: Drax asset beta (2yr daily returns delevered with net debt & market cap) | G12: scalar | I12: =I14 / 2 -> 0.625
E13: Notional gearing | G13: % | I13: 0.5
E14: Relevered equity beta | G14: scalar | I14: 1.25
D16: CAPM
E18: GB risk-free rate | G18: real annual % | I18: 0.016
E21: UK total market returns (latest DMS aritmentic mean of equity market returns since 1900) | G21: real annual % | I21: 0.071
E22: UK RPI adjusment | G22: annual % | I22: 0.004
E24: GB market risk premium | G24: real annual % | I24: =I21 - I18 - I22 -> 0.051
E27: UK cap returns | G27: real annual % | I27: =I18 + I24 * I$14 -> 0.07975
E30: Cap returns (rounded to 2dp) | G30: real annual % | I30: =I27 -> 0.07975
C32: Floor
D34: GB
E36: Date | K36: =TRANSPOSE('Market data'!K326:K345) -> 2015-02-26 | L36: 2015-02-27 | M36: 2015-03-02 | N36: 2015-03-03 | O36: 2015-03-04 | P36: 2015-03-05 | Q36: 2015-03-06 | R36: 2015-03-09 | S36: 2015-03-10 | T36: 2015-03-11 | U36: 2015-03-12 | V36: 2015-03-13 | W36: 2015-03-16 | X36: 2015-03-17 | Y36: 2015-03-18 | Z36: 2015-03-19 | AA36: 2015-03-20 | AB36: 2015-03-23 | AC36: 2015-03-24 | AD36: 2015-03-25
E37: UK iBoxx non-financials 10+ broad A rating | G37: ppts | K37: =INDEX('Market data'!$W$166:$W$187, MATCH('Market data'!K$36, 'Market data'!$K$166:$K$187, 0), 0) -> 3.51 | L37: =INDEX('Market data'!$W$166:$W$187, MATCH('Market data'!L$36, 'Market data'!$K$166:$K$187, 0), 0) -> 3.57 | M37: =INDEX('Market data'!$W$166:$W$187, MATCH('Market data'!M$36, 'Market data'!$K$166:$K$187, 0), 0) -> 3.55 | N37: =INDEX('Market data'!$W$166:$W$187, MATCH('Market data'!N$36, 'Market data'!$K$166:$K$187, 0), 0) -> 3.62 | O37: =INDEX('Market data'!$W$166:$W$187, MATCH('Market data'!O$36, 'Market data'!$K$166:$K$187, 0), 0) -> 3.66 | P37: =INDEX('Market data'!$W$166:$W$187, MATCH('Market data'!P$36, 'Market data'!$K$166:$K$187, 0), 0) -> 3.65 | Q37: =INDEX('Market data'!$W$166:$W$187, MATCH('Market data'!Q$36, 'Market data'!$K$166:$K$187, 0), 0) -> 3.72 | R37: =INDEX('Market data'!$W$166:$W$187, MATCH('Market data'!R$36, 'Market data'!$K$166:$K$187, 0), 0) -> 3.72 | S37: =INDEX('Market data'!$W$166:$W$187, MATCH('Market data'!S$36, 'Market data'!$K$166:$K$187, 0), 0) -> 3.63 | T37: =INDEX('Market data'!$W$166:$W$187, MATCH('Market data'!T$36, 'Market data'!$K$166:$K$187, 0), 0) -> 3.63 | U37: =INDEX('Market data'!$W$166:$W$187, MATCH('Market data'!U$36, 'Market data'!$K$166:$K$187, 0), 0) -> 3.57 | V37: =INDEX('Market data'!$W$166:$W$187, MATCH('Market data'!V$36, 'Market data'!$K$166:$K$187, 0), 0) -> 3.56 | W37: =INDEX('Market data'!$W$166:$W$187, MATCH('Market data'!W$36, 'Market data'!$K$166:$K$187, 0), 0) -> 3.53 | X37: =INDEX('Market data'!$W$166:$W$187, MATCH('Market data'!X$36, 'Market data'!$K$166:$K$187, 0), 0) -> 3.53 | Y37: =INDEX('Market data'!$W$166:$W$187, MATCH('Market data'!Y$36, 'Market data'!$K$166:$K$187, 0), 0) -> 3.48 | Z37: =INDEX('Market data'!$W$166:$W$187, MATCH('Market data'!Z$36, 'Market data'!$K$166:$K$187, 0), 0) -> 3.4 | AA37: =INDEX('Market data'!$W$166:$W$187, MATCH('Market data'!AA$36, 'Market data'!$K$166:$K$187, 0), 0) -> 3.39 | AB37: =INDEX('Market data'!$W$166:$W$187, MATCH('Market data'!AB$36, 'Market data'!$K$166:$K$187, 0), 0) -> 3.39 | AC37: =INDEX('Market data'!$W$166:$W$187, MATCH('Market data'!AC$36, 'Market data'!$K$166:$K$187, 0), 0) -> 3.39 | AD37: =INDEX('Market data'!$W$166:$W$187, MATCH('Market data'!AD$36, 'Market data'!$K$166:$K$187, 0), 0) -> 3.37
E38: UK iBoxx non-financials 10+ broad BBB rating | G38: ppts | K38: =INDEX('Market data'!$W$136:$W$157, MATCH('Market data'!K$36, 'Market data'!$K$136:$K$157, 0), 0) -> 3.72 | L38: =INDEX('Market data'!$W$136:$W$157, MATCH('Market data'!L$36, 'Market data'!$K$136:$K$157, 0), 0) -> 3.77 | M38: =INDEX('Market data'!$W$136:$W$157, MATCH('Market data'!M$36, 'Market data'!$K$136:$K$157, 0), 0) -> 3.7 | N38: =INDEX('Market data'!$W$136:$W$157, MATCH('Market data'!N$36, 'Market data'!$K$136:$K$157, 0), 0) -> 3.77 | O38: =INDEX('Market data'!$W$136:$W$157, MATCH('Market data'!O$36, 'Market data'!$K$136:$K$157, 0), 0) -> 3.81 | P38: =INDEX('Market data'!$W$136:$W$157, MATCH('Market data'!P$36, 'Market data'!$K$136:$K$157, 0), 0) -> 3.79 | Q38: =INDEX('Market data'!$W$136:$W$157, MATCH('Market data'!Q$36, 'Market data'!$K$136:$K$157, 0), 0) -> 3.86 | R38: =INDEX('Market data'!$W$136:$W$157, MATCH('Market data'!R$36, 'Market data'!$K$136:$K$157, 0), 0) -> 3.86 | S38: =INDEX('Market data'!$W$136:$W$157, MATCH('Market data'!S$36, 'Market data'!$K$136:$K$157, 0), 0) -> 3.76 | T38: =INDEX('Market data'!$W$136:$W$157, MATCH('Market data'!T$36, 'Market data'!$K$136:$K$157, 0), 0) -> 3.76 | U38: =INDEX('Market data'!$W$136:$W$157, MATCH('Market data'!U$36, 'Market data'!$K$136:$K$157, 0), 0) -> 3.71 | V38: =INDEX('Market data'!$W$136:$W$157, MATCH('Market data'!V$36, 'Market data'!$K$136:$K$157, 0), 0) -> 3.69 | W38: =INDEX('Market data'!$W$136:$W$157, MATCH('Market data'!W$36, 'Market data'!$K$136:$K$157, 0), 0) -> 3.66 | X38: =INDEX('Market data'!$W$136:$W$157, MATCH('Market data'!X$36, 'Market data'!$K$136:$K$157, 0), 0) -> 3.66 | Y38: =INDEX('Market data'!$W$136:$W$157, MATCH('Market data'!Y$36, 'Market data'!$K$136:$K$157, 0), 0) -> 3.61 | Z38: =INDEX('Market data'!$W$136:$W$157, MATCH('Market data'!Z$36, 'Market data'!$K$136:$K$157, 0), 0) -> 3.53 | AA38: =INDEX('Market data'!$W$136:$W$157, MATCH('Market data'!AA$36, 'Market data'!$K$136:$K$157, 0), 0) -> 3.52 | AB38: =INDEX('Market data'!$W$136:$W$157, MATCH('Market data'!AB$36, 'Market data'!$K$136:$K$157, 0), 0) -> 3.52 | AC38: =INDEX('Market data'!$W$136:$W$157, MATCH('Market data'!AC$36, 'Market data'!$K$136:$K$157, 0), 0) -> 3.52 | AD38: =INDEX('Market data'!$W$136:$W$157, MATCH('Market data'!AD$36, 'Market data'!$K$136:$K$157, 0), 0) -> 3.5
E39: Yield from British Government Securities, 10 year Inflation Zero Coupon (IUDMIZC) | G39: ppts | K39: =INDEX('Market data'!$L$326:$L$345, MATCH(K36, 'Market data'!$K$326:$K$345, 0), 0) -> 2.7347 | L39: =INDEX('Market data'!$L$326:$L$345, MATCH(L36, 'Market data'!$K$326:$K$345, 0), 0) -> 2.7756 | M39: =INDEX('Market data'!$L$326:$L$345, MATCH(M36, 'Market data'!$K$326:$K$345, 0), 0) -> 2.7719 | N39: =INDEX('Market data'!$L$326:$L$345, MATCH(N36, 'Market data'!$K$326:$K$345, 0), 0) -> 2.766 | O39: =INDEX('Market data'!$L$326:$L$345, MATCH(O36, 'Market data'!$K$326:$K$345, 0), 0) -> 2.7438 | P39: =INDEX('Market data'!$L$326:$L$345, MATCH(P36, 'Market data'!$K$326:$K$345, 0), 0) -> 2.7187 | Q39: =INDEX('Market data'!$L$326:$L$345, MATCH(Q36, 'Market data'!$K$326:$K$345, 0), 0) -> 2.779 | R39: =INDEX('Market data'!$L$326:$L$345, MATCH(R36, 'Market data'!$K$326:$K$345, 0), 0) -> 2.7612 | S39: =INDEX('Market data'!$L$326:$L$345, MATCH(S36, 'Market data'!$K$326:$K$345, 0), 0) -> 2.7175 | T39: =INDEX('Market data'!$L$326:$L$345, MATCH(T36, 'Market data'!$K$326:$K$345, 0), 0) -> 2.7122 | U39: =INDEX('Market data'!$L$326:$L$345, MATCH(U36, 'Market data'!$K$326:$K$345, 0), 0) -> 2.6773 | V39: =INDEX('Market data'!$L$326:$L$345, MATCH(V36, 'Market data'!$K$326:$K$345, 0), 0) -> 2.6344 | W39: =INDEX('Market data'!$L$326:$L$345, MATCH(W36, 'Market data'!$K$326:$K$345, 0), 0) -> 2.6067 | X39: =INDEX('Market data'!$L$326:$L$345, MATCH(X36, 'Market data'!$K$326:$K$345, 0), 0) -> 2.624 | Y39: =INDEX('Market data'!$L$326:$L$345, MATCH(Y36, 'Market data'!$K$326:$K$345, 0), 0) -> 2.6597 | Z39: =INDEX('Market data'!$L$326:$L$345, MATCH(Z36, 'Market data'!$K$326:$K$345, 0), 0) -> 2.6851 | AA39: =INDEX('Market data'!$L$326:$L$345, MATCH(AA36, 'Market data'!$K$326:$K$345, 0), 0) -> 2.735 | AB39: =INDEX('Market data'!$L$326:$L$345, MATCH(AB36, 'Market data'!$K$326:$K$345, 0), 0) -> 2.7113 | AC39: =INDEX('Market data'!$L$326:$L$345, MATCH(AC36, 'Market data'!$K$326:$K$345, 0), 0) -> 2.6979 | AD39: =INDEX('Market data'!$L$326:$L$345, MATCH(AD36, 'Market data'!$K$326:$K$345, 0), 0) -> 2.6952
E41: Nominal cost of debt (UK) | G41: ppts | K41: =(K37 + K38) / 2 -> 3.615 | L41: 3.67 | M41: 3.625 | N41: 3.695 | O41: 3.735 | P41: 3.72 | Q41: 3.79 | R41: 3.79 | S41: 3.695 | T41: 3.695 | U41: 3.64 | V41: 3.625 | W41: 3.595 | X41: 3.595 | Y41: 3.545 | Z41: 3.465 | AA41: 3.455 | AB41: 3.455 | AC41: 3.455 | AD41: 3.435
E42: Real cost of debt (UK) | G42: real annual % | K42: =((1+K41/100)/(1+K39/100)-1) -> 0.008568672513 | L42: 0.008702454668 | M42: 0.008300907155 | N42: 0.009039954849 | O42: 0.009647297452 | P42: 0.009747981624 | Q42: 0.00983663978 | R42: 0.01001156078 | S42: 0.009516392046 | T42: 0.009568483588 | U42: 0.009375976969 | V42: 0.009651734701 | W42: 0.009631924621 | X42: 0.009461724353 | Y42: 0.008623637123 | Z42: 0.007595064912 | AA42: 0.007008322383 | AB42: 0.007240683352 | AC42: 0.007372107901 | AD42: 0.007203842049
E43: GB deflated floor (20 day average) | G43: real annual % | I43: =AVERAGE(K42:AD42) -> 0.008805268141
D45: This interconnector
E47: Floor returns | G47: real annual % | I47: =I43 -> 0.008805268141
E48: Floor returns (rounded to 2dp) | G48: real annual % | I48: =ROUND(I47,4) -> 0.0088
E50: GB inflation forecast | G50: % | I50: =AVERAGE(K39:AD39) / 100 -> 0.0271036
E53: GB inflation forecast (rounded to 2dp) | G53: % | I53: =ROUND(AVERAGE(K39:AD39) / 100, 4) -> 0.0271
C56: IDC
D58: GB
E60: Cost of debt (real) | G60: real annual % | I60: =I43 -> 0.008805268141
E61: Risk-free rate (real) | G61: real annual % | I61: =AVERAGE('Market data'!N199:N318) / 100 -> 0.006024966667
E62: Market risk premium | G62: real annual % | I62: =I21-I22-I61 -> 0.06097503333
E63: Equity beta | G63: scalar | I63: 1.04
E64: Cost of equity (real) | G64: real annual % | I64: =I61 + I62 * I63 -> 0.06943900133
E65: Gearing | G65: % | I65: 0.3341
E66: Vanilla WACC (national basis) | G66: real annual % | I66: =I60 * I65 + I64 * (1 - I65) -> 0.04918127107
D68: This interconnector
E70: Average vanilla WACC | G70: real annual % | I70: =I66 -> 0.04918127107
E71: Development risk premium uplift % | G71: real annual % | I71: 0.0054
E72: Construction risk premium uplift % | G72: real annual % | I72: 0.0091
E73: IDC | G73: real annual % | I73: =I70 + I71 + I72 -> 0.06368127107
E74: IDC (rounded 2dp) | G74: real annual % | I74: =ROUND(I73, 4) -> 0.0637
E76: Pre-operational gearing (rounded to 2dp) | G76: % | I76: =ROUND(I65, 4) -> 0.3341
C80: Depreciation chart
E81: Note: illustrations below focus just on depreciation and return. They do not include opex, tax, passthroughs etc.
V82: Depreciation (RAV) | W82: =AllowancesFloor!W12 -> 29.3580796 | X82: =AllowancesFloor!X12 -> 30.75855174 | Y82: =AllowancesFloor!Y12 -> 30.75855174 | Z82: =AllowancesFloor!Z12 -> 30.75855174 | AA82: =AllowancesFloor!AA12 -> 30.75855174 | AB82: =AllowancesFloor!AB12 -> 30.75855174 | AC82: =AllowancesFloor!AC12 -> 30.75855174 | AD82: =AllowancesFloor!AD12 -> 30.75855174 | AE82: =AllowancesFloor!AE12 -> 30.75855174 | AF82: =AllowancesFloor!AF12 -> 30.75855174 | AG82: =AllowancesFloor!AG12 -> 30.75855174 | AH82: =AllowancesFloor!AH12 -> 30.75855174 | AI82: =AllowancesFloor!AI12 -> 30.75855174 | AJ82: =AllowancesFloor!AJ12 -> 30.75855174 | AK82: =AllowancesFloor!AK12 -> 30.75855174 | AL82: =AllowancesFloor!AL12 -> 32.25855174 | AM82: =AllowancesFloor!AM12 -> 32.25855174 | AN82: =AllowancesFloor!AN12 -> 32.25855174 | AO82: =AllowancesFloor!AO12 -> 32.25855174 | AP82: =AllowancesFloor!AP12 -> 32.25855174 | AQ82: =AllowancesFloor!AQ12 -> 32.25855174 | AR82: =AllowancesFloor!AR12 -> 32.25855174 | AS82: =AllowancesFloor!AS12 -> 32.25855174 | AT82: =AllowancesFloor!AT12 -> 32.25855174 | AU82: =AllowancesFloor!AU12 -> 32.25855174
V83: Floor return (RAV) | W83: =AllowancesFloor!W13 -> 6.449157851 | X83: =AllowancesFloor!X13 -> 6.333715114 | Y83: =AllowancesFloor!Y13 -> 6.06422044 | Z83: =AllowancesFloor!Z13 -> 5.794725767 | AA83: =AllowancesFloor!AA13 -> 5.525231094 | AB83: =AllowancesFloor!AB13 -> 5.25573642 | AC83: =AllowancesFloor!AC13 -> 4.986241747 | AD83: =AllowancesFloor!AD13 -> 4.716747074 | AE83: =AllowancesFloor!AE13 -> 4.447252401 | AF83: =AllowancesFloor!AF13 -> 4.177757727 | AG83: =AllowancesFloor!AG13 -> 3.908263054 | AH83: =AllowancesFloor!AH13 -> 3.638768381 | AI83: =AllowancesFloor!AI13 -> 3.369273707 | AJ83: =AllowancesFloor!AJ13 -> 3.099779034 | AK83: =AllowancesFloor!AK13 -> 2.895708627 | AL83: =AllowancesFloor!AL13 -> 2.685671527 | AM83: =AllowancesFloor!AM13 -> 2.403034427 | AN83: =AllowancesFloor!AN13 -> 2.120397327 | AO83: =AllowancesFloor!AO13 -> 1.837760227 | AP83: =AllowancesFloor!AP13 -> 1.555123127 | AQ83: =AllowancesFloor!AQ13 -> 1.272486027 | AR83: =AllowancesFloor!AR13 -> 0.9898489275 | AS83: =AllowancesFloor!AS13 -> 0.7072118276 | AT83: =AllowancesFloor!AT13 -> 0.4245747276 | AU83: =AllowancesFloor!AU13 -> 0.1419376277
V84: Depreciation (annuity) | W84: =$W95 - W85 -> 27.93042414 | X84: 28.17621187 | Y84: 28.42416254 | Z84: 28.67429517 | AA84: 28.92662896 | AB84: 29.1811833 | AC84: 29.43797771 | AD84: 29.69703192 | AE84: 29.9583658 | AF84: 30.22199942 | AG84: 30.48795301 | AH84: 30.756247 | AI84: 31.02690197 | AJ84: 31.29993871 | AK84: 31.57537817 | AL84: 31.8532415 | AM84: 32.13355002 | AN84: 32.41632526 | AO84: 32.70158892 | AP84: 32.98936291 | AQ84: 33.2796693 | AR84: 33.57253039 | AS84: 33.86796866 | AT84: 34.16600678 | AU84: 34.46666764
V85: Floor return (annuity) | W85: =W89 * $W96 -> 6.839550177 | X85: 6.593762445 | Y85: 6.34581178 | Z85: 6.09567915 | AA85: 5.843345353 | AB85: 5.588791018 | AC85: 5.331996605 | AD85: 5.072942401 | AE85: 4.81160852 | AF85: 4.547974901 | AG85: 4.282021306 | AH85: 4.01372732 | AI85: 3.743072346 | AJ85: 3.470035609 | AK85: 3.194596148 | AL85: 2.91673282 | AM85: 2.636424295 | AN85: 2.353649055 | AO85: 2.068385392 | AP85: 1.78061141 | AQ85: 1.490305016 | AR85: 1.197443927 | AS85: 0.9020056591 | AT85: 0.6039675349 | AU85: 0.3033066752
V87: =AllowancesFloor!E25 -> Discount factor to start of operational period (floor) | W87: =AllowancesFloor!W25 -> 0.9912767645 | X87: =AllowancesFloor!X25 -> 0.9826296238 | Y87: =AllowancesFloor!Y25 -> 0.9740579141 | Z87: =AllowancesFloor!Z25 -> 0.9655609775 | AA87: =AllowancesFloor!AA25 -> 0.9571381617 | AB87: =AllowancesFloor!AB25 -> 0.9487888201 | AC87: =AllowancesFloor!AC25 -> 0.9405123118 | AD87: =AllowancesFloor!AD25 -> 0.9323080013 | AE87: =AllowancesFloor!AE25 -> 0.9241752591 | AF87: =AllowancesFloor!AF25 -> 0.9161134606 | AG87: =AllowancesFloor!AG25 -> 0.9081219871 | AH87: =AllowancesFloor!AH25 -> 0.9002002251 | AI87: =AllowancesFloor!AI25 -> 0.8923475666 | AJ87: =AllowancesFloor!AJ25 -> 0.8845634086 | AK87: =AllowancesFloor!AK25 -> 0.8768471536 | AL87: =AllowancesFloor!AL25 -> 0.8691982094 | AM87: =AllowancesFloor!AM25 -> 0.8616159887 | AN87: =AllowancesFloor!AN25 -> 0.8540999095 | AO87: =AllowancesFloor!AO25 -> 0.8466493948 | AP87: =AllowancesFloor!AP25 -> 0.8392638727 | AQ87: =AllowancesFloor!AQ25 -> 0.8319427763 | AR87: =AllowancesFloor!AR25 -> 0.8246855435 | AS87: =AllowancesFloor!AS25 -> 0.8174916173 | AT87: =AllowancesFloor!AT25 -> 0.8103604453 | AU87: =AllowancesFloor!AU25 -> 0.8032914803
V89: Opening net book value (annuity) | W89: =W93 -> 777.2216111 | X89: =W91 -> 749.2911869 | Y89: =X91 -> 721.114975 | Z89: 692.6908125 | AA89: 664.0165173 | AB89: 635.0898884 | AC89: 605.9087051 | AD89: 576.4707274 | AE89: 546.7736954 | AF89: 516.8153297 | AG89: 486.5933302 | AH89: 456.1053772 | AI89: 425.3491302 | AJ89: 394.3222283 | AK89: 363.0222895 | AL89: 331.4469114 | AM89: 299.5936699 | AN89: 267.4601199 | AO89: 235.0437946 | AP89: 202.3422057 | AQ89: 169.3528428 | AR89: 136.0731735 | AS89: 102.5006431 | AT89: 68.63267442 | AU89: 34.46666764
V90: =V84 -> Depreciation (annuity) | W90: =-W84 -> -27.93042414 | X90: =-X84 -> -28.17621187 | Y90: -28.42416254 | Z90: -28.67429517 | AA90: -28.92662896 | AB90: -29.1811833 | AC90: -29.43797771 | AD90: -29.69703192 | AE90: -29.9583658 | AF90: -30.22199942 | AG90: -30.48795301 | AH90: -30.756247 | AI90: -31.02690197 | AJ90: -31.29993871 | AK90: -31.57537817 | AL90: -31.8532415 | AM90: -32.13355002 | AN90: -32.41632526 | AO90: -32.70158892 | AP90: -32.98936291 | AQ90: -33.2796693 | AR90: -33.57253039 | AS90: -33.86796866 | AT90: -34.16600678 | AU90: -34.46666764
V91: Closing net book value (annuity) | W91: =SUM(W89:W90) -> 749.2911869 | X91: =SUM(X89:X90) -> 721.114975 | Y91: 692.6908125 | Z91: 664.0165173 | AA91: 635.0898884 | AB91: 605.9087051 | AC91: 576.4707274 | AD91: 546.7736954 | AE91: 516.8153297 | AF91: 486.5933302 | AG91: 456.1053772 | AH91: 425.3491302 | AI91: 394.3222283 | AJ91: 363.0222895 | AK91: 331.4469114 | AL91: 299.5936699 | AM91: 267.4601199 | AN91: 235.0437946 | AO91: 202.3422057 | AP91: 169.3528428 | AQ91: 136.0731735 | AR91: 102.5006431 | AS91: 68.63267442 | AT91: 34.46666764 | AU91: -4.753530902e-12
V93: NPV (RAV) | W93: =SUMPRODUCT(W87:AU87, W82:AU82 ) + SUMPRODUCT(W87:AU87, W83:AU83) -> 777.2216111
V94: =AllowancesFloor!E22 -> Annuity factor (floor) | W94: =AllowancesFloor!I22 -> 0.0447362423
V95: Annuity | W95: =W93 * W94 -> 34.76997432
V96: =AllowancesFloor!E20 -> Floor returns | W96: =AllowancesFloor!I20 -> 0.0088
V97: NPV (annuity) | W97: =SUMPRODUCT(W84:AU84, W87:AU87) + SUMPRODUCT(W87:AU87, W85:AU85) -> 777.2216111
V98: NPVs are equal? | W98: =ROUND(W97 - W93, 5) = 0 -> TRUE
V104: Depreciation (RAV) | W104: =AllowancesCap!W12 -> 29.3580796 | X104: =AllowancesCap!X12 -> 30.75855174 | Y104: =AllowancesCap!Y12 -> 30.75855174 | Z104: =AllowancesCap!Z12 -> 30.75855174 | AA104: =AllowancesCap!AA12 -> 30.75855174 | AB104: =AllowancesCap!AB12 -> 30.75855174 | AC104: =AllowancesCap!AC12 -> 30.75855174 | AD104: =AllowancesCap!AD12 -> 30.75855174 | AE104: =AllowancesCap!AE12 -> 30.75855174 | AF104: =AllowancesCap!AF12 -> 30.75855174 | AG104: =AllowancesCap!AG12 -> 30.75855174 | AH104: =AllowancesCap!AH12 -> 30.75855174 | AI104: =AllowancesCap!AI12 -> 30.75855174 | AJ104: =AllowancesCap!AJ12 -> 30.75855174 | AK104: =AllowancesCap!AK12 -> 30.75855174 | AL104: =AllowancesCap!AL12 -> 32.25855174 | AM104: =AllowancesCap!AM12 -> 32.25855174 | AN104: =AllowancesCap!AN12 -> 32.25855174 | AO104: =AllowancesCap!AO12 -> 32.25855174 | AP104: =AllowancesCap!AP12 -> 32.25855174 | AQ104: =AllowancesCap!AQ12 -> 32.25855174 | AR104: =AllowancesCap!AR12 -> 32.25855174 | AS104: =AllowancesCap!AS12 -> 32.25855174 | AT104: =AllowancesCap!AT12 -> 32.25855174 | AU104: =AllowancesCap!AU12 -> 32.25855174
V105: Cap return (RAV) | W105: =AllowancesCap!W13 -> 56.52814066 | X105: =AllowancesCap!X13 -> 55.56183053 | Y105: =AllowancesCap!Y13 -> 53.19942474 | Z105: =AllowancesCap!Z13 -> 50.83701894 | AA105: =AllowancesCap!AA13 -> 48.47461315 | AB105: =AllowancesCap!AB13 -> 46.11220735 | AC105: =AllowancesCap!AC13 -> 43.74980156 | AD105: =AllowancesCap!AD13 -> 41.38739576 | AE105: =AllowancesCap!AE13 -> 39.02498997 | AF105: =AllowancesCap!AF13 -> 36.66258417 | AG105: =AllowancesCap!AG13 -> 34.30017838 | AH105: =AllowancesCap!AH13 -> 31.93777258 | AI105: =AllowancesCap!AI13 -> 29.57536679 | AJ105: =AllowancesCap!AJ13 -> 27.21296099 | AK105: =AllowancesCap!AK13 -> 25.40450287 | AL105: =AllowancesCap!AL13 -> 23.58482731 | AM105: =AllowancesCap!AM13 -> 21.10721425 | AN105: =AllowancesCap!AN13 -> 18.62960119 | AO105: =AllowancesCap!AO13 -> 16.15198812 | AP105: =AllowancesCap!AP13 -> 13.67437506 | AQ105: =AllowancesCap!AQ13 -> 11.196762 | AR105: =AllowancesCap!AR13 -> 8.719148937 | AS105: =AllowancesCap!AS13 -> 6.241535875 | AT105: =AllowancesCap!AT13 -> 3.763922813 | AU105: =AllowancesCap!AU13 -> 1.286309751
V106: Depreciation (annuity) | W106: =$W117 - W107 -> 10.19667639 | X106: 11.00986133 | Y106: 11.88789777 | Z106: 12.83595762 | AA106: 13.85962524 | AB106: 14.96493035 | AC106: 16.15838355 | AD106: 17.44701464 | AE106: 18.83841405 | AF106: 20.34077757 | AG106: 21.96295459 | AH106: 23.71450021 | AI106: 25.60573161 | AJ106: 27.6477887 | AK106: 29.85269985 | AL106: 32.23345266 | AM106: 34.80407051 | AN106: 37.57969514 | AO106: 40.57667583 | AP106: 43.81266572 | AQ106: 47.30672581 | AR106: 51.0794372 | AS106: 55.15302231 | AT106: 59.55147584 | AU106: 64.30070604
V107: Cap return (annuity) | W107: =W111 * $W118 -> 59.23201096 | X107: 58.41882602 | Y107: 57.54078958 | Z107: 56.59272973 | AA107: 55.56906211 | AB107: 54.463757 | AC107: 53.2703038 | AD107: 51.98167271 | AE107: 50.5902733 | AF107: 49.08790977 | AG107: 47.46573276 | AH107: 45.71418713 | AI107: 43.82295574 | AJ107: 41.78089865 | AK107: 39.5759875 | AL107: 37.19523468 | AM107: 34.62461683 | AN107: 31.84899221 | AO107: 28.85201152 | AP107: 25.61602163 | AQ107: 22.12196154 | AR107: 18.34925015 | AS107: 14.27566503 | AT107: 9.877211505 | AU107: 5.127981307
V109: =AllowancesCap!E25 -> Discount factor to start of operational period (cap) | W109: =AllowancesCap!W25 -> 0.9261403103 | X109: =AllowancesCap!X25 -> 0.8577358743 | Y109: =AllowancesCap!Y25 -> 0.7943837687 | Z109: =AllowancesCap!Z25 -> 0.73571083 | AA109: =AllowancesCap!AA25 -> 0.6813714564 | AB109: =AllowancesCap!AB25 -> 0.631045572 | AC109: =AllowancesCap!AC25 -> 0.5844367419 | AD109: =AllowancesCap!AD25 -> 0.5412704254 | AE109: =AllowancesCap!AE25 -> 0.5012923597 | AF109: =AllowancesCap!AF25 -> 0.4642670616 | AG109: =AllowancesCap!AG25 -> 0.4299764405 | AH109: =AllowancesCap!AH25 -> 0.398218514 | AI109: =AllowancesCap!AI25 -> 0.3688062181 | AJ109: =AllowancesCap!AJ25 -> 0.3415663052 | AK109: =AllowancesCap!AK25 -> 0.3163383239 | AL109: =AllowancesCap!AL25 -> 0.2929736734 | AM109: =AllowancesCap!AM25 -> 0.2713347288 | AN109: =AllowancesCap!AN25 -> 0.2512940299 | AO109: =AllowancesCap!AO25 -> 0.2327335308 | AP109: =AllowancesCap!AP25 -> 0.2155439045 | AQ109: =AllowancesCap!AQ25 -> 0.1996238986 | AR109: =AllowancesCap!AR25 -> 0.1848797393 | AS109: =AllowancesCap!AS25 -> 0.1712245792 | AT109: =AllowancesCap!AT25 -> 0.1585779849 | AU109: =AllowancesCap!AU25 -> 0.1468654641
V111: Opening net book value (annuity) | W111: =W115 -> 742.7211406 | X111: =W113 -> 732.5244642 | Y111: =X113 -> 721.5146028 | Z111: 709.6267051 | AA111: 696.7907474 | AB111: 682.9311222 | AC111: 667.9661919 | AD111: 651.8078083 | AE111: 634.3607937 | AF111: 615.5223796 | AG111: 595.181602 | AH111: 573.2186475 | AI111: 549.5041472 | AJ111: 523.8984156 | AK111: 496.2506269 | AL111: 466.3979271 | AM111: 434.1644744 | AN111: 399.3604039 | AO111: 361.7807088 | AP111: 321.2040329 | AQ111: 277.3913672 | AR111: 230.0846414 | AS111: 179.0052042 | AT111: 123.8521819 | AU111: 64.30070604
V112: =V106 -> Depreciation (annuity) | W112: =-W106 -> -10.19667639 | X112: =-X106 -> -11.00986133 | Y112: -11.88789777 | Z112: -12.83595762 | AA112: -13.85962524 | AB112: -14.96493035 | AC112: -16.15838355 | AD112: -17.44701464 | AE112: -18.83841405 | AF112: -20.34077757 | AG112: -21.96295459 | AH112: -23.71450021 | AI112: -25.60573161 | AJ112: -27.6477887 | AK112: -29.85269985 | AL112: -32.23345266 | AM112: -34.80407051 | AN112: -37.57969514 | AO112: -40.57667583 | AP112: -43.81266572 | AQ112: -47.30672581 | AR112: -51.0794372 | AS112: -55.15302231 | AT112: -59.55147584 | AU112: -64.30070604
V113: Closing net book value (annuity) | W113: =SUM(W111:W112) -> 732.5244642 | X113: =SUM(X111:X112) -> 721.5146028 | Y113: =SUM(Y111:Y112) -> 709.6267051 | Z113: =SUM(Z111:Z112) -> 696.7907474 | AA113: =SUM(AA111:AA112) -> 682.9311222 | AB113: =SUM(AB111:AB112) -> 667.9661919 | AC113: =SUM(AC111:AC112) -> 651.8078083 | AD113: =SUM(AD111:AD112) -> 634.3607937 | AE113: =SUM(AE111:AE112) -> 615.5223796 | AF113: =SUM(AF111:AF112) -> 595.181602 | AG113: =SUM(AG111:AG112) -> 573.2186475 | AH113: =SUM(AH111:AH112) -> 549.5041472 | AI113: =SUM(AI111:AI112) -> 523.8984156 | AJ113: =SUM(AJ111:AJ112) -> 496.2506269 | AK113: =SUM(AK111:AK112) -> 466.3979271 | AL113: =SUM(AL111:AL112) -> 434.1644744 | AM113: =SUM(AM111:AM112) -> 399.3604039 | AN113: =SUM(AN111:AN112) -> 361.7807088 | AO113: =SUM(AO111:AO112) -> 321.2040329 | AP113: =SUM(AP111:AP112) -> 277.3913672 | AQ113: =SUM(AQ111:AQ112) -> 230.0846414 | AR113: =SUM(AR111:AR112) -> 179.0052042 | AS113: =SUM(AS111:AS112) -> 123.8521819 | AT113: =SUM(AT111:AT112) -> 64.30070604 | AU113: =SUM(AU111:AU112) -> 3.694822226e-13
V115: NPV (RAV) | W115: =SUMPRODUCT(W109:AU109, W104:AU104 ) + SUMPRODUCT(W109:AU109, W105:AU105) -> 742.7211406
V116: =AllowancesCap!E22 -> Annuity factor (cap) | W116: =AllowancesCap!I22 -> 0.09347880861
V117: Annuity | W117: =W115 * W116 -> 69.42868735
V118: =AllowancesCap!E20 -> Cap returns | W118: =AllowancesCap!I20 -> 0.07975
V119: NPV (annuity) | W119: =SUMPRODUCT(W106:AU106, W109:AU109) + SUMPRODUCT(W109:AU109, W107:AU107) -> 742.7211406
V120: NPVs are equal? | W120: =ROUND(W119 - W115, 5) = 0 -> TRUE
B127: Data
D129: iBoxx £ Non-Financials BBB 10+
E131: Fixing | G131: EU_EOD | I131: =K136 -> 2015-03-25
E132: Index | I132: iBoxx £ Non-Financials BBB 10+
E133: ISIN TRi | I133: DE000A0JZAH1
I134: DE000A0JZAH1
I135: iBoxx € Non-Financials BBB 10+ | K135: DATE | L135: FIXINGFLAG | M135: Years to Maturity / Expected Remaining Life | N135: Price Return Index Level | O135: Total Return Index Level | P135: Gross Price Index Level | Q135: Coupon Income Index Level | R135: Redemption Income Index Level | S135: Income Index Level | T135: Market Value | U135: Nominal Value | V135: Base Market Value | W135: Annual Yield in % | X135: Annual Modified Duration | Y135: Index Asset Swap Margin
K136: ='download from iBoxx'!A60 -> 2015-03-25 | L136: ='download from iBoxx'!B60 -> EOD | M136: ='download from iBoxx'!C60 -> 17.78 | N136: ='download from iBoxx'!D60 -> 134.58 | O136: ='download from iBoxx'!E60 -> 389.7943 | P136: ='download from iBoxx'!F60 -> 121 | Q136: ='download from iBoxx'!G60 -> 1.23 | R136: ='download from iBoxx'!H60 -> 0 | S136: ='download from iBoxx'!I60 -> 1.23 | T136: ='download from iBoxx'!J60 -> 4.641253171e+10 | U136: ='download from iBoxx'!K60 -> 36031274000 | V136: ='download from iBoxx'!L60 -> 4.54822168e+10 | W136: ='download from iBoxx'!M60 -> 3.5 | X136: ='download from iBoxx'!N60 -> 11.47 | Y136: ='download from iBoxx'!O60 -> 193.37
K137: ='download from iBoxx'!A61 -> 2015-03-24 | L137: ='download from iBoxx'!B61 -> EOD | M137: ='download from iBoxx'!C61 -> 17.79 | N137: ='download from iBoxx'!D61 -> 134.18 | O137: ='download from iBoxx'!E61 -> 388.6417 | P137: ='download from iBoxx'!F61 -> 120.79 | Q137: ='download from iBoxx'!G61 -> 1.09 | R137: ='download from iBoxx'!H61 -> 0 | S137: ='download from iBoxx'!I61 -> 1.09 | T137: ='download from iBoxx'!J61 -> 4.632943761e+10 | U137: ='download from iBoxx'!K61 -> 36031274000 | V137: ='download from iBoxx'!L61 -> 4.54822168e+10 | W137: ='download from iBoxx'!M61 -> 3.52 | X137: ='download from iBoxx'!N61 -> 11.44 | Y137: ='download from iBoxx'!O61 -> 192.41
K138: ='download from iBoxx'!A62 -> 2015-03-23 | L138: ='download from iBoxx'!B62 -> EOD | M138: ='download from iBoxx'!C62 -> 17.79 | N138: ='download from iBoxx'!D62 -> 134.3 | O138: ='download from iBoxx'!E62 -> 388.9382 | P138: ='download from iBoxx'!F62 -> 120.88 | Q138: ='download from iBoxx'!G62 -> 1.09 | R138: ='download from iBoxx'!H62 -> 0 | S138: ='download from iBoxx'!I62 -> 1.09 | T138: ='download from iBoxx'!J62 -> 4.636486824e+10 | U138: ='download from iBoxx'!K62 -> 36031274000 | V138: ='download from iBoxx'!L62 -> 4.54822168e+10 | W138: ='download from iBoxx'!M62 -> 3.52 | X138: ='download from iBoxx'!N62 -> 11.45 | Y138: ='download from iBoxx'!O62 -> 191.97
K139: ='download from iBoxx'!A63 -> 2015-03-20 | L139: ='download from iBoxx'!B63 -> EOD | M139: ='download from iBoxx'!C63 -> 17.8 | N139: ='download from iBoxx'!D63 -> 134.23 | O139: ='download from iBoxx'!E63 -> 388.5897 | P139: ='download from iBoxx'!F63 -> 120.86 | Q139: ='download from iBoxx'!G63 -> 1 | R139: ='download from iBoxx'!H63 -> 0 | S139: ='download from iBoxx'!I63 -> 1 | T139: ='download from iBoxx'!J63 -> 4.635747983e+10 | U139: ='download from iBoxx'!K63 -> 36031274000 | V139: ='download from iBoxx'!L63 -> 4.54822168e+10 | W139: ='download from iBoxx'!M63 -> 3.52 | X139: ='download from iBoxx'!N63 -> 11.45 | Y139: ='download from iBoxx'!O63 -> 193.44
K140: ='download from iBoxx'!A64 -> 2015-03-19 | L140: ='download from iBoxx'!B64 -> EOD | M140: ='download from iBoxx'!C64 -> 17.8 | N140: ='download from iBoxx'!D64 -> 134.04 | O140: ='download from iBoxx'!E64 -> 388.0022 | P140: ='download from iBoxx'!F64 -> 120.68 | Q140: ='download from iBoxx'!G64 -> 1 | R140: ='download from iBoxx'!H64 -> 0 | S140: ='download from iBoxx'!I64 -> 1 | T140: ='download from iBoxx'!J64 -> 4.628728894e+10 | U140: ='download from iBoxx'!K64 -> 36031274000 | V140: ='download from iBoxx'!L64 -> 4.54822168e+10 | W140: ='download from iBoxx'!M64 -> 3.53 | X140: ='download from iBoxx'!N64 -> 11.44 | Y140: ='download from iBoxx'!O64 -> 192.66
K141: ='download from iBoxx'!A65 -> 2015-03-18 | L141: ='download from iBoxx'!B65 -> EOD | M141: ='download from iBoxx'!C65 -> 17.8 | N141: ='download from iBoxx'!D65 -> 132.82 | O141: ='download from iBoxx'!E65 -> 384.5276 | P141: ='download from iBoxx'!F65 -> 119.6 | Q141: ='download from iBoxx'!G65 -> 1 | R141: ='download from iBoxx'!H65 -> 0 | S141: ='download from iBoxx'!I65 -> 1 | T141: ='download from iBoxx'!J65 -> 4.587214055e+10 | U141: ='download from iBoxx'!K65 -> 36031274000 | V141: ='download from iBoxx'!L65 -> 4.54822168e+10 | W141: ='download from iBoxx'!M65 -> 3.61 | X141: ='download from iBoxx'!N65 -> 11.4 | Y141: ='download from iBoxx'!O65 -> 191.16
K142: ='download from iBoxx'!A66 -> 2015-03-17 | L142: ='download from iBoxx'!B66 -> EOD | M142: ='download from iBoxx'!C66 -> 17.81 | N142: ='download from iBoxx'!D66 -> 132.07 | O142: ='download from iBoxx'!E66 -> 382.3587 | P142: ='download from iBoxx'!F66 -> 118.92 | Q142: ='download from iBoxx'!G66 -> 1 | R142: ='download from iBoxx'!H66 -> 0 | S142: ='download from iBoxx'!I66 -> 1 | T142: ='download from iBoxx'!J66 -> 4.561300286e+10 | U142: ='download from iBoxx'!K66 -> 36031274000 | V142: ='download from iBoxx'!L66 -> 4.54822168e+10 | W142: ='download from iBoxx'!M66 -> 3.66 | X142: ='download from iBoxx'!N66 -> 11.37 | Y142: ='download from iBoxx'!O66 -> 187.61
K143: ='download from iBoxx'!A67 -> 2015-03-16 | L143: ='download from iBoxx'!B67 -> EOD | M143: ='download from iBoxx'!C67 -> 17.81 | N143: ='download from iBoxx'!D67 -> 132 | O143: ='download from iBoxx'!E67 -> 382.1174 | P143: ='download from iBoxx'!F67 -> 118.85 | Q143: ='download from iBoxx'!G67 -> 1 | R143: ='download from iBoxx'!H67 -> 0 | S143: ='download from iBoxx'!I67 -> 1 | T143: ='download from iBoxx'!J67 -> 4.558417456e+10 | U143: ='download from iBoxx'!K67 -> 36031274000 | V143: ='download from iBoxx'!L67 -> 4.54822168e+10 | W143: ='download from iBoxx'!M67 -> 3.66 | X143: ='download from iBoxx'!N67 -> 11.37 | Y143: ='download from iBoxx'!O67 -> 189.51
K144: ='download from iBoxx'!A68 -> 2015-03-13 | L144: ='download from iBoxx'!B68 -> EOD | M144: ='download from iBoxx'!C68 -> 17.82 | N144: ='download from iBoxx'!D68 -> 131.57 | O144: ='download from iBoxx'!E68 -> 380.7553 | P144: ='download from iBoxx'!F68 -> 118.51 | Q144: ='download from iBoxx'!G68 -> 0.91 | R144: ='download from iBoxx'!H68 -> 0 | S144: ='download from iBoxx'!I68 -> 0.91 | T144: ='download from iBoxx'!J68 -> 4.545442806e+10 | U144: ='download from iBoxx'!K68 -> 36031274000 | V144: ='download from iBoxx'!L68 -> 4.54822168e+10 | W144: ='download from iBoxx'!M68 -> 3.69 | X144: ='download from iBoxx'!N68 -> 11.35 | Y144: ='download from iBoxx'!O68 -> 189.24
K145: ='download from iBoxx'!A69 -> 2015-03-12 | L145: ='download from iBoxx'!B69 -> EOD | M145: ='download from iBoxx'!C69 -> 17.82 | N145: ='download from iBoxx'!D69 -> 131.38 | O145: ='download from iBoxx'!E69 -> 380.1858 | P145: ='download from iBoxx'!F69 -> 118.33 | Q145: ='download from iBoxx'!G69 -> 0.91 | R145: ='download from iBoxx'!H69 -> 0 | S145: ='download from iBoxx'!I69 -> 0.91 | T145: ='download from iBoxx'!J69 -> 4.538638519e+10 | U145: ='download from iBoxx'!K69 -> 36031274000 | V145: ='download from iBoxx'!L69 -> 4.54822168e+10 | W145: ='download from iBoxx'!M69 -> 3.71 | X145: ='download from iBoxx'!N69 -> 11.35 | Y145: ='download from iBoxx'!O69 -> 184.07
K146: ='download from iBoxx'!A70 -> 2015-03-11 | L146: ='download from iBoxx'!B70 -> EOD | M146: ='download from iBoxx'!C70 -> 17.82 | N146: ='download from iBoxx'!D70 -> 130.5 | O146: ='download from iBoxx'!E70 -> 377.6391 | P146: ='download from iBoxx'!F70 -> 117.54 | Q146: ='download from iBoxx'!G70 -> 0.91 | R146: ='download from iBoxx'!H70 -> 0 | S146: ='download from iBoxx'!I70 -> 0.91 | T146: ='download from iBoxx'!J70 -> 4.508211323e+10 | U146: ='download from iBoxx'!K70 -> 36031274000 | V146: ='download from iBoxx'!L70 -> 4.54822168e+10 | W146: ='download from iBoxx'!M70 -> 3.76 | X146: ='download from iBoxx'!N70 -> 11.32 | Y146: ='download from iBoxx'!O70 -> 179.36
K147: ='download from iBoxx'!A71 -> 2015-03-10 | L147: ='download from iBoxx'!B71 -> EOD | M147: ='download from iBoxx'!C71 -> 17.83 | N147: ='download from iBoxx'!D71 -> 130.51 | O147: ='download from iBoxx'!E71 -> 377.6355 | P147: ='download from iBoxx'!F71 -> 117.53 | Q147: ='download from iBoxx'!G71 -> 0.91 | R147: ='download from iBoxx'!H71 -> 0 | S147: ='download from iBoxx'!I71 -> 0.91 | T147: ='download from iBoxx'!J71 -> 4.508167371e+10 | U147: ='download from iBoxx'!K71 -> 36031274000 | V147: ='download from iBoxx'!L71 -> 4.54822168e+10 | W147: ='download from iBoxx'!M71 -> 3.76 | X147: ='download from iBoxx'!N71 -> 11.32 | Y147: ='download from iBoxx'!O71 -> 177.52
K148: ='download from iBoxx'!A72 -> 2015-03-09 | L148: ='download from iBoxx'!B72 -> EOD | M148: ='download from iBoxx'!C72 -> 17.83 | N148: ='download from iBoxx'!D72 -> 129.09 | O148: ='download from iBoxx'!E72 -> 373.5839 | P148: ='download from iBoxx'!F72 -> 116.27 | Q148: ='download from iBoxx'!G72 -> 0.91 | R148: ='download from iBoxx'!H72 -> 0 | S148: ='download from iBoxx'!I72 -> 0.91 | T148: ='download from iBoxx'!J72 -> 4.459760128e+10 | U148: ='download from iBoxx'!K72 -> 36031274000 | V148: ='download from iBoxx'!L72 -> 4.54822168e+10 | W148: ='download from iBoxx'!M72 -> 3.86 | X148: ='download from iBoxx'!N72 -> 11.28 | Y148: ='download from iBoxx'!O72 -> 174.74
K149: ='download from iBoxx'!A73 -> 2015-03-06 | L149: ='download from iBoxx'!B73 -> EOD | M149: ='download from iBoxx'!C73 -> 17.84 | N149: ='download from iBoxx'!D73 -> 128.98 | O149: ='download from iBoxx'!E73 -> 373.132 | P149: ='download from iBoxx'!F73 -> 116.13 | Q149: ='download from iBoxx'!G73 -> 0.91 | R149: ='download from iBoxx'!H73 -> 0 | S149: ='download from iBoxx'!I73 -> 0.91 | T149: ='download from iBoxx'!J73 -> 4.454360941e+10 | U149: ='download from iBoxx'!K73 -> 36031274000 | V149: ='download from iBoxx'!L73 -> 4.54822168e+10 | W149: ='download from iBoxx'!M73 -> 3.86 | X149: ='download from iBoxx'!N73 -> 11.28 | Y149: ='download from iBoxx'!O73 -> 174.73
K150: ='download from iBoxx'!A74 -> 2015-03-05 | L150: ='download from iBoxx'!B74 -> EOD | M150: ='download from iBoxx'!C74 -> 17.84 | N150: ='download from iBoxx'!D74 -> 130.12 | O150: ='download from iBoxx'!E74 -> 376.3118 | P150: ='download from iBoxx'!F74 -> 117.12 | Q150: ='download from iBoxx'!G74 -> 0.91 | R150: ='download from iBoxx'!H74 -> 0 | S150: ='download from iBoxx'!I74 -> 0.91 | T150: ='download from iBoxx'!J74 -> 4.492352685e+10 | U150: ='download from iBoxx'!K74 -> 36031274000 | V150: ='download from iBoxx'!L74 -> 4.54822168e+10 | W150: ='download from iBoxx'!M74 -> 3.79 | X150: ='download from iBoxx'!N74 -> 11.33 | Y150: ='download from iBoxx'!O74 -> 176.7
K151: ='download from iBoxx'!A75 -> 2015-03-04 | L151: ='download from iBoxx'!B75 -> EOD | M151: ='download from iBoxx'!C75 -> 17.84 | N151: ='download from iBoxx'!D75 -> 129.88 | O151: ='download from iBoxx'!E75 -> 375.5673 | P151: ='download from iBoxx'!F75 -> 116.89 | Q151: ='download from iBoxx'!G75 -> 0.91 | R151: ='download from iBoxx'!H75 -> 0 | S151: ='download from iBoxx'!I75 -> 0.91 | T151: ='download from iBoxx'!J75 -> 4.483457253e+10 | U151: ='download from iBoxx'!K75 -> 36031274000 | V151: ='download from iBoxx'!L75 -> 4.54822168e+10 | W151: ='download from iBoxx'!M75 -> 3.81 | X151: ='download from iBoxx'!N75 -> 11.32 | Y151: ='download from iBoxx'!O75 -> 176.21
K152: ='download from iBoxx'!A76 -> 2015-03-03 | L152: ='download from iBoxx'!B76 -> EOD | M152: ='download from iBoxx'!C76 -> 17.85 | N152: ='download from iBoxx'!D76 -> 130.4 | O152: ='download from iBoxx'!E76 -> 377.0091 | P152: ='download from iBoxx'!F76 -> 117.34 | Q152: ='download from iBoxx'!G76 -> 0.91 | R152: ='download from iBoxx'!H76 -> 0 | S152: ='download from iBoxx'!I76 -> 0.91 | T152: ='download from iBoxx'!J76 -> 4.500683798e+10 | U152: ='download from iBoxx'!K76 -> 36031274000 | V152: ='download from iBoxx'!L76 -> 4.54822168e+10 | W152: ='download from iBoxx'!M76 -> 3.77 | X152: ='download from iBoxx'!N76 -> 11.34 | Y152: ='download from iBoxx'!O76 -> 176.04
K153: ='download from iBoxx'!A77 -> 2015-03-02 | L153: ='download from iBoxx'!B77 -> EOD | M153: ='download from iBoxx'!C77 -> 17.85 | N153: ='download from iBoxx'!D77 -> 131.5 | O153: ='download from iBoxx'!E77 -> 380.0478 | P153: ='download from iBoxx'!F77 -> 118.29 | Q153: ='download from iBoxx'!G77 -> 0.91 | R153: ='download from iBoxx'!H77 -> 0 | S153: ='download from iBoxx'!I77 -> 0.91 | T153: ='download from iBoxx'!J77 -> 4.536989631e+10 | U153: ='download from iBoxx'!K77 -> 36031274000 | V153: ='download from iBoxx'!L77 -> 4.54822168e+10 | W153: ='download from iBoxx'!M77 -> 3.7 | X153: ='download from iBoxx'!N77 -> 11.39 | Y153: ='download from iBoxx'!O77 -> 178.22
K154: ='download from iBoxx'!A78 -> 2015-02-28 | L154: ='download from iBoxx'!B78 -> EOD | M154: ='download from iBoxx'!C78 -> 16.84 | N154: ='download from iBoxx'!D78 -> 131.75 | O154: ='download from iBoxx'!E78 -> 380.6709 | P154: ='download from iBoxx'!F78 -> 118.58 | Q154: ='download from iBoxx'!G78 -> 0.81 | R154: ='download from iBoxx'!H78 -> 0 | S154: ='download from iBoxx'!I78 -> 0.81 | T154: ='download from iBoxx'!J78 -> 4.19919363e+10 | U154: ='download from iBoxx'!K78 -> 33831274000 | V154: ='download from iBoxx'!L78 -> 4.389738897e+10 | W154: ='download from iBoxx'!M78 -> 3.77 | X154: ='download from iBoxx'!N78 -> 11 | Y154: ='download from iBoxx'!O78 -> 187.21
K155: ='download from iBoxx'!A79 -> 2015-02-27 | L155: ='download from iBoxx'!B79 -> EOD | M155: ='download from iBoxx'!C79 -> 16.84 | N155: ='download from iBoxx'!D79 -> 131.75 | O155: ='download from iBoxx'!E79 -> 380.6239 | P155: ='download from iBoxx'!F79 -> 118.56 | Q155: ='download from iBoxx'!G79 -> 0.81 | R155: ='download from iBoxx'!H79 -> 0 | S155: ='download from iBoxx'!I79 -> 0.81 | T155: ='download from iBoxx'!J79 -> 4.198674202e+10 | U155: ='download from iBoxx'!K79 -> 33831274000 | V155: ='download from iBoxx'!L79 -> 4.389738897e+10 | W155: ='download from iBoxx'!M79 -> 3.77 | X155: ='download from iBoxx'!N79 -> 11.01 | Y155: ='download from iBoxx'!O79 -> 187.24
K156: ='download from iBoxx'!A80 -> 2015-02-26 | L156: ='download from iBoxx'!B80 -> EOD | M156: ='download from iBoxx'!C80 -> 16.85 | N156: ='download from iBoxx'!D80 -> 132.55 | O156: ='download from iBoxx'!E80 -> 382.8155 | P156: ='download from iBoxx'!F80 -> 119.25 | Q156: ='download from iBoxx'!G80 -> 0.81 | R156: ='download from iBoxx'!H80 -> 0 | S156: ='download from iBoxx'!I80 -> 0.81 | T156: ='download from iBoxx'!J80 -> 4.22288953e+10 | U156: ='download from iBoxx'!K80 -> 33831274000 | V156: ='download from iBoxx'!L80 -> 4.389738897e+10 | W156: ='download from iBoxx'!M80 -> 3.72 | X156: ='download from iBoxx'!N80 -> 11.04 | Y156: ='download from iBoxx'!O80 -> 186.36
D159: iBoxx £ Non-Financials A 10+
E161: Fixing | G161: EU_EOD | I161: =K166 -> 2015-03-25
E162: Index | I162: iBoxx £ Non-Financials A 10+
E163: ISIN TRi | I163: DE000A0JY837
I164: DE000A0JY837
K165: DATE | L165: FIXINGFLAG | M165: Years to Maturity / Expected Remaining Life | N165: Price Return Index Level | O165: Total Return Index Level | P165: Gross Price Index Level | Q165: Coupon Income Index Level | R165: Redemption Income Index Level | S165: Income Index Level | T165: Market Value | U165: Nominal Value | V165: Base Market Value | W165: Annual Yield in % | X165: Annual Modified Duration | Y165: Index Asset Swap Margin
K166: ='download from iBoxx'!A89 -> 2015-03-25 | L166: ='download from iBoxx'!B89 -> EOD | M166: ='download from iBoxx'!C89 -> 22.76 | N166: ='download from iBoxx'!D89 -> 142.47 | O166: ='download from iBoxx'!E89 -> 383.2726 | P166: ='download from iBoxx'!F89 -> 144.17 | Q166: ='download from iBoxx'!G89 -> 0.81 | R166: ='download from iBoxx'!H89 -> 0 | S166: ='download from iBoxx'!I89 -> 0.81 | T166: ='download from iBoxx'!J89 -> 6.213904227e+10 | U166: ='download from iBoxx'!K89 -> 46881056000 | V166: ='download from iBoxx'!L89 -> 6.07573573e+10 | W166: ='download from iBoxx'!M89 -> 3.37 | X166: ='download from iBoxx'!N89 -> 13.04 | Y166: ='download from iBoxx'!O89 -> 180.12
K167: ='download from iBoxx'!A90 -> 2015-03-24 | L167: ='download from iBoxx'!B90 -> EOD | M167: ='download from iBoxx'!C90 -> 22.77 | N167: ='download from iBoxx'!D90 -> 142.04 | O167: ='download from iBoxx'!E90 -> 382.1136 | P167: ='download from iBoxx'!F90 -> 143.73 | Q167: ='download from iBoxx'!G90 -> 0.81 | R167: ='download from iBoxx'!H90 -> 0 | S167: ='download from iBoxx'!I90 -> 0.81 | T167: ='download from iBoxx'!J90 -> 6.195084065e+10 | U167: ='download from iBoxx'!K90 -> 46881056000 | V167: ='download from iBoxx'!L90 -> 6.07573573e+10 | W167: ='download from iBoxx'!M90 -> 3.39 | X167: ='download from iBoxx'!N90 -> 13.02 | Y167: ='download from iBoxx'!O90 -> 178.74
K168: ='download from iBoxx'!A91 -> 2015-03-23 | L168: ='download from iBoxx'!B91 -> EOD | M168: ='download from iBoxx'!C91 -> 22.77 | N168: ='download from iBoxx'!D91 -> 142.04 | O168: ='download from iBoxx'!E91 -> 382.0616 | P168: ='download from iBoxx'!F91 -> 143.71 | Q168: ='download from iBoxx'!G91 -> 0.81 | R168: ='download from iBoxx'!H91 -> 0 | S168: ='download from iBoxx'!I91 -> 0.81 | T168: ='download from iBoxx'!J91 -> 6.194239911e+10 | U168: ='download from iBoxx'!K91 -> 46881056000 | V168: ='download from iBoxx'!L91 -> 6.07573573e+10 | W168: ='download from iBoxx'!M91 -> 3.39 | X168: ='download from iBoxx'!N91 -> 13.02 | Y168: ='download from iBoxx'!O91 -> 178.98
K169: ='download from iBoxx'!A92 -> 2015-03-20 | L169: ='download from iBoxx'!B92 -> EOD | M169: ='download from iBoxx'!C92 -> 22.78 | N169: ='download from iBoxx'!D92 -> 142 | O169: ='download from iBoxx'!E92 -> 381.839 | P169: ='download from iBoxx'!F92 -> 143.63 | Q169: ='download from iBoxx'!G92 -> 0.81 | R169: ='download from iBoxx'!H92 -> 0 | S169: ='download from iBoxx'!I92 -> 0.81 | T169: ='download from iBoxx'!J92 -> 6.190625957e+10 | U169: ='download from iBoxx'!K92 -> 46881056000 | V169: ='download from iBoxx'!L92 -> 6.07573573e+10 | W169: ='download from iBoxx'!M92 -> 3.39 | X169: ='download from iBoxx'!N92 -> 13.03 | Y169: ='download from iBoxx'!O92 -> 180.53
K170: ='download from iBoxx'!A93 -> 2015-03-19 | L170: ='download from iBoxx'!B93 -> EOD | M170: ='download from iBoxx'!C93 -> 22.78 | N170: ='download from iBoxx'!D93 -> 141.82 | O170: ='download from iBoxx'!E93 -> 381.3121 | P170: ='download from iBoxx'!F93 -> 143.43 | Q170: ='download from iBoxx'!G93 -> 0.81 | R170: ='download from iBoxx'!H93 -> 0 | S170: ='download from iBoxx'!I93 -> 0.81 | T170: ='download from iBoxx'!J93 -> 6.182069526e+10 | U170: ='download from iBoxx'!K93 -> 46881056000 | V170: ='download from iBoxx'!L93 -> 6.07573573e+10 | W170: ='download from iBoxx'!M93 -> 3.4 | X170: ='download from iBoxx'!N93 -> 13.03 | Y170: ='download from iBoxx'!O93 -> 179.35
K171: ='download from iBoxx'!A94 -> 2015-03-18 | L171: ='download from iBoxx'!B94 -> EOD | M171: ='download from iBoxx'!C94 -> 22.78 | N171: ='download from iBoxx'!D94 -> 140.36 | O171: ='download from iBoxx'!E94 -> 377.4235 | P171: ='download from iBoxx'!F94 -> 141.97 | Q171: ='download from iBoxx'!G94 -> 0.81 | R171: ='download from iBoxx'!H94 -> 0 | S171: ='download from iBoxx'!I94 -> 0.81 | T171: ='download from iBoxx'!J94 -> 6.118928139e+10 | U171: ='download from iBoxx'!K94 -> 46881056000 | V171: ='download from iBoxx'!L94 -> 6.07573573e+10 | W171: ='download from iBoxx'!M94 -> 3.48 | X171: ='download from iBoxx'!N94 -> 12.95 | Y171: ='download from iBoxx'!O94 -> 177.48
K172: ='download from iBoxx'!A95 -> 2015-03-17 | L172: ='download from iBoxx'!B95 -> EOD | M172: ='download from iBoxx'!C95 -> 22.78 | N172: ='download from iBoxx'!D95 -> 139.46 | O172: ='download from iBoxx'!E95 -> 375.0107 | P172: ='download from iBoxx'!F95 -> 141.06 | Q172: ='download from iBoxx'!G95 -> 0.81 | R172: ='download from iBoxx'!H95 -> 0 | S172: ='download from iBoxx'!I95 -> 0.81 | T172: ='download from iBoxx'!J95 -> 6.079748105e+10 | U172: ='download from iBoxx'!K95 -> 46881056000 | V172: ='download from iBoxx'!L95 -> 6.07573573e+10 | W172: ='download from iBoxx'!M95 -> 3.53 | X172: ='download from iBoxx'!N95 -> 12.91 | Y172: ='download from iBoxx'!O95 -> 173.81
K173: ='download from iBoxx'!A96 -> 2015-03-16 | L173: ='download from iBoxx'!B96 -> EOD | M173: ='download from iBoxx'!C96 -> 22.79 | N173: ='download from iBoxx'!D96 -> 139.4 | O173: ='download from iBoxx'!E96 -> 374.8056 | P173: ='download from iBoxx'!F96 -> 140.98 | Q173: ='download from iBoxx'!G96 -> 0.81 | R173: ='download from iBoxx'!H96 -> 0 | S173: ='download from iBoxx'!I96 -> 0.81 | T173: ='download from iBoxx'!J96 -> 6.076417805e+10 | U173: ='download from iBoxx'!K96 -> 46881056000 | V173: ='download from iBoxx'!L96 -> 6.07573573e+10 | W173: ='download from iBoxx'!M96 -> 3.53 | X173: ='download from iBoxx'!N96 -> 12.91 | Y173: ='download from iBoxx'!O96 -> 175.82
K174: ='download from iBoxx'!A97 -> 2015-03-13 | L174: ='download from iBoxx'!B97 -> EOD | M174: ='download from iBoxx'!C97 -> 22.8 | N174: ='download from iBoxx'!D97 -> 138.92 | O174: ='download from iBoxx'!E97 -> 373.4244 | P174: ='download from iBoxx'!F97 -> 140.46 | Q174: ='download from iBoxx'!G97 -> 0.81 | R174: ='download from iBoxx'!H97 -> 0 | S174: ='download from iBoxx'!I97 -> 0.81 | T174: ='download from iBoxx'!J97 -> 6.053991126e+10 | U174: ='download from iBoxx'!K97 -> 46881056000 | V174: ='download from iBoxx'!L97 -> 6.07573573e+10 | W174: ='download from iBoxx'!M97 -> 3.56 | X174: ='download from iBoxx'!N97 -> 12.89 | Y174: ='download from iBoxx'!O97 -> 175.09
K175: ='download from iBoxx'!A98 -> 2015-03-12 | L175: ='download from iBoxx'!B98 -> EOD | M175: ='download from iBoxx'!C98 -> 22.8 | N175: ='download from iBoxx'!D98 -> 138.79 | O175: ='download from iBoxx'!E98 -> 373.0371 | P175: ='download from iBoxx'!F98 -> 140.39 | Q175: ='download from iBoxx'!G98 -> 0.74 | R175: ='download from iBoxx'!H98 -> 0 | S175: ='download from iBoxx'!I98 -> 0.74 | T175: ='download from iBoxx'!J98 -> 6.050983301e+10 | U175: ='download from iBoxx'!K98 -> 46881056000 | V175: ='download from iBoxx'!L98 -> 6.07573573e+10 | W175: ='download from iBoxx'!M98 -> 3.57 | X175: ='download from iBoxx'!N98 -> 12.89 | Y175: ='download from iBoxx'!O98 -> 169.57
K176: ='download from iBoxx'!A99 -> 2015-03-11 | L176: ='download from iBoxx'!B99 -> EOD | M176: ='download from iBoxx'!C99 -> 22.8 | N176: ='download from iBoxx'!D99 -> 137.66 | O176: ='download from iBoxx'!E99 -> 370.0119 | P176: ='download from iBoxx'!F99 -> 139.25 | Q176: ='download from iBoxx'!G99 -> 0.74 | R176: ='download from iBoxx'!H99 -> 0 | S176: ='download from iBoxx'!I99 -> 0.74 | T176: ='download from iBoxx'!J99 -> 6.001860773e+10 | U176: ='download from iBoxx'!K99 -> 46881056000 | V176: ='download from iBoxx'!L99 -> 6.07573573e+10 | W176: ='download from iBoxx'!M99 -> 3.63 | X176: ='download from iBoxx'!N99 -> 12.83 | Y176: ='download from iBoxx'!O99 -> 164.62
K177: ='download from iBoxx'!A100 -> 2015-03-10 | L177: ='download from iBoxx'!B100 -> EOD | M177: ='download from iBoxx'!C100 -> 22.8 | N177: ='download from iBoxx'!D100 -> 137.61 | O177: ='download from iBoxx'!E100 -> 369.8422 | P177: ='download from iBoxx'!F100 -> 139.19 | Q177: ='download from iBoxx'!G100 -> 0.74 | R177: ='download from iBoxx'!H100 -> 0 | S177: ='download from iBoxx'!I100 -> 0.74 | T177: ='download from iBoxx'!J100 -> 5.999105302e+10 | U177: ='download from iBoxx'!K100 -> 46881056000 | V177: ='download from iBoxx'!L100 -> 6.07573573e+10 | W177: ='download from iBoxx'!M100 -> 3.63 | X177: ='download from iBoxx'!N100 -> 12.83 | Y177: ='download from iBoxx'!O100 -> 163.24
K178: ='download from iBoxx'!A101 -> 2015-03-09 | L178: ='download from iBoxx'!B101 -> EOD | M178: ='download from iBoxx'!C101 -> 22.81 | N178: ='download from iBoxx'!D101 -> 136.08 | O178: ='download from iBoxx'!E101 -> 365.766 | P178: ='download from iBoxx'!F101 -> 137.68 | Q178: ='download from iBoxx'!G101 -> 0.71 | R178: ='download from iBoxx'!H101 -> 0 | S178: ='download from iBoxx'!I101 -> 0.71 | T178: ='download from iBoxx'!J101 -> 5.933990424e+10 | U178: ='download from iBoxx'!K101 -> 46881056000 | V178: ='download from iBoxx'!L101 -> 6.07573573e+10 | W178: ='download from iBoxx'!M101 -> 3.72 | X178: ='download from iBoxx'!N101 -> 12.76 | Y178: ='download from iBoxx'!O101 -> 159.65
K179: ='download from iBoxx'!A102 -> 2015-03-06 | L179: ='download from iBoxx'!B102 -> EOD | M179: ='download from iBoxx'!C102 -> 22.81 | N179: ='download from iBoxx'!D102 -> 136.02 | O179: ='download from iBoxx'!E102 -> 365.484 | P179: ='download from iBoxx'!F102 -> 137.67 | Q179: ='download from iBoxx'!G102 -> 0.61 | R179: ='download from iBoxx'!H102 -> 0 | S179: ='download from iBoxx'!I102 -> 0.61 | T179: ='download from iBoxx'!J102 -> 5.933875032e+10 | U179: ='download from iBoxx'!K102 -> 46881056000 | V179: ='download from iBoxx'!L102 -> 6.07573573e+10 | W179: ='download from iBoxx'!M102 -> 3.72 | X179: ='download from iBoxx'!N102 -> 12.75 | Y179: ='download from iBoxx'!O102 -> 159.23
K180: ='download from iBoxx'!A103 -> 2015-03-05 | L180: ='download from iBoxx'!B103 -> EOD | M180: ='download from iBoxx'!C103 -> 22.82 | N180: ='download from iBoxx'!D103 -> 137.33 | O180: ='download from iBoxx'!E103 -> 368.8815 | P180: ='download from iBoxx'!F103 -> 138.95 | Q180: ='download from iBoxx'!G103 -> 0.61 | R180: ='download from iBoxx'!H103 -> 0 | S180: ='download from iBoxx'!I103 -> 0.61 | T180: ='download from iBoxx'!J103 -> 5.989042114e+10 | U180: ='download from iBoxx'!K103 -> 46881056000 | V180: ='download from iBoxx'!L103 -> 6.07573573e+10 | W180: ='download from iBoxx'!M103 -> 3.65 | X180: ='download from iBoxx'!N103 -> 12.82 | Y180: ='download from iBoxx'!O103 -> 161.7
K181: ='download from iBoxx'!A104 -> 2015-03-04 | L181: ='download from iBoxx'!B104 -> EOD | M181: ='download from iBoxx'!C104 -> 22.82 | N181: ='download from iBoxx'!D104 -> 137.17 | O181: ='download from iBoxx'!E104 -> 368.4287 | P181: ='download from iBoxx'!F104 -> 138.78 | Q181: ='download from iBoxx'!G104 -> 0.61 | R181: ='download from iBoxx'!H104 -> 0 | S181: ='download from iBoxx'!I104 -> 0.61 | T181: ='download from iBoxx'!J104 -> 5.981689188e+10 | U181: ='download from iBoxx'!K104 -> 46881056000 | V181: ='download from iBoxx'!L104 -> 6.07573573e+10 | W181: ='download from iBoxx'!M104 -> 3.66 | X181: ='download from iBoxx'!N104 -> 12.82 | Y181: ='download from iBoxx'!O104 -> 160.44
K182: ='download from iBoxx'!A105 -> 2015-03-03 | L182: ='download from iBoxx'!B105 -> EOD | M182: ='download from iBoxx'!C105 -> 22.82 | N182: ='download from iBoxx'!D105 -> 137.8 | O182: ='download from iBoxx'!E105 -> 370.0369 | P182: ='download from iBoxx'!F105 -> 139.39 | Q182: ='download from iBoxx'!G105 -> 0.61 | R182: ='download from iBoxx'!H105 -> 0 | S182: ='download from iBoxx'!I105 -> 0.61 | T182: ='download from iBoxx'!J105 -> 6.007803939e+10 | U182: ='download from iBoxx'!K105 -> 46881056000 | V182: ='download from iBoxx'!L105 -> 6.07573573e+10 | W182: ='download from iBoxx'!M105 -> 3.62 | X182: ='download from iBoxx'!N105 -> 12.85 | Y182: ='download from iBoxx'!O105 -> 160.23
K183: ='download from iBoxx'!A106 -> 2015-03-02 | L183: ='download from iBoxx'!B106 -> EOD | M183: ='download from iBoxx'!C106 -> 22.83 | N183: ='download from iBoxx'!D106 -> 139.06 | O183: ='download from iBoxx'!E106 -> 373.3078 | P183: ='download from iBoxx'!F106 -> 140.62 | Q183: ='download from iBoxx'!G106 -> 0.61 | R183: ='download from iBoxx'!H106 -> 0 | S183: ='download from iBoxx'!I106 -> 0.61 | T183: ='download from iBoxx'!J106 -> 6.060916595e+10 | U183: ='download from iBoxx'!K106 -> 46881056000 | V183: ='download from iBoxx'!L106 -> 6.07573573e+10 | W183: ='download from iBoxx'!M106 -> 3.55 | X183: ='download from iBoxx'!N106 -> 12.93 | Y183: ='download from iBoxx'!O106 -> 162.98
K184: ='download from iBoxx'!A107 -> 2015-02-28 | L184: ='download from iBoxx'!B107 -> EOD | M184: ='download from iBoxx'!C107 -> 23.01 | N184: ='download from iBoxx'!D107 -> 139.42 | O184: ='download from iBoxx'!E107 -> 374.1708 | P184: ='download from iBoxx'!F107 -> 140.96 | Q184: ='download from iBoxx'!G107 -> 0.59 | R184: ='download from iBoxx'!H107 -> 0 | S184: ='download from iBoxx'!I107 -> 0.59 | T184: ='download from iBoxx'!J107 -> 6.581565992e+10 | U184: ='download from iBoxx'!K107 -> 50899279000 | V184: ='download from iBoxx'!L107 -> 6.949802736e+10 | W184: ='download from iBoxx'!M107 -> 3.57 | X184: ='download from iBoxx'!N107 -> 13.02 | Y184: ='download from iBoxx'!O107 -> 169.06
K185: ='download from iBoxx'!A108 -> 2015-02-27 | L185: ='download from iBoxx'!B108 -> EOD | M185: ='download from iBoxx'!C108 -> 23.01 | N185: ='download from iBoxx'!D108 -> 139.42 | O185: ='download from iBoxx'!E108 -> 374.1276 | P185: ='download from iBoxx'!F108 -> 140.96 | Q185: ='download from iBoxx'!G108 -> 0.57 | R185: ='download from iBoxx'!H108 -> 0 | S185: ='download from iBoxx'!I108 -> 0.57 | T185: ='download from iBoxx'!J108 -> 6.581554415e+10 | U185: ='download from iBoxx'!K108 -> 50899279000 | V185: ='download from iBoxx'!L108 -> 6.949802736e+10 | W185: ='download from iBoxx'!M108 -> 3.57 | X185: ='download from iBoxx'!N108 -> 13.03 | Y185: ='download from iBoxx'!O108 -> 169.08
K186: ='download from iBoxx'!A109 -> 2015-02-26 | L186: ='download from iBoxx'!B109 -> EOD | M186: ='download from iBoxx'!C109 -> 23.02 | N186: ='download from iBoxx'!D109 -> 140.5 | O186: ='download from iBoxx'!E109 -> 376.9328 | P186: ='download from iBoxx'!F109 -> 142.02 | Q186: ='download from iBoxx'!G109 -> 0.57 | R186: ='download from iBoxx'!H109 -> 0 | S186: ='download from iBoxx'!I109 -> 0.57 | T186: ='download from iBoxx'!J109 -> 6.630963282e+10 | U186: ='download from iBoxx'!K109 -> 50899279000 | V186: ='download from iBoxx'!L109 -> 6.949802736e+10 | W186: ='download from iBoxx'!M109 -> 3.51 | X186: ='download from iBoxx'!N109 -> 13.09 | Y186: ='download from iBoxx'!O109 -> 168.04
C191: Bank of England
D193: Monthly UK Govt yields
E195: SERIES | G195: DESCRIPTION | I195: =K318 -> 2014-09-30
E196: IUMAMRZC | G196: Monthly average yield from British Government Securities - 10 year Real Zero Coupon
K198: DATE | L198: IUMAMRZC
K199: 2004-10-31 | L199: 1.8877 | M199: 2005-04-30 | N199: 1.7638
K200: 2004-11-30 | L200: 1.8755 | M200: 2005-05-31 | N200: 1.6959
K201: 2004-12-31 | L201: 1.7552 | M201: 2005-06-30 | N201: 1.6498
K202: 2005-01-31 | L202: 1.7474 | M202: 2005-07-31 | N202: 1.6469
K203: 2005-02-28 | L203: 1.77 | M203: 2005-08-31 | N203: 1.6095
K204: 2005-03-31 | L204: 1.874 | M204: 2005-09-30 | N204: 1.5097
K205: 2005-04-30 | L205: 1.7638 | M205: 2005-10-31 | N205: 1.5665
K206: 2005-05-31 | L206: 1.6959 | M206: 2005-11-30 | N206: 1.541
K207: 2005-06-30 | L207: 1.6498 | M207: 2005-12-31 | N207: 1.4668
K208: 2005-07-31 | L208: 1.6469 | M208: 2006-01-31 | N208: 1.2921
K209: 2005-08-31 | L209: 1.6095 | M209: 2006-02-28 | N209: 1.3237
K210: 2005-09-30 | L210: 1.5097 | M210: 2006-03-31 | N210: 1.4135
K211: 2005-10-31 | L211: 1.5665 | M211: 2006-04-30 | N211: 1.542
K212: 2005-11-30 | L212: 1.541 | M212: 2006-05-31 | N212: 1.6291
K213: 2005-12-31 | L213: 1.4668 | M213: 2006-06-30 | N213: 1.6832
K214: 2006-01-31 | L214: 1.2921 | M214: 2006-07-31 | N214: 1.6457
K215: 2006-02-28 | L215: 1.3237 | M215: 2006-08-31 | N215: 1.5515
K216: 2006-03-31 | L216: 1.4135 | M216: 2006-09-30 | N216: 1.4912
K217: 2006-04-30 | L217: 1.542 | M217: 2006-10-31 | N217: 1.5738
K218: 2006-05-31 | L218: 1.6291 | M218: 2006-11-30 | N218: 1.4736
K219: 2006-06-30 | L219: 1.6832 | M219: 2006-12-31 | N219: 1.5561
K220: 2006-07-31 | L220: 1.6457 | M220: 2007-01-31 | N220: 1.7849
K221: 2006-08-31 | L221: 1.5515 | M221: 2007-02-28 | N221: 1.7983
K222: 2006-09-30 | L222: 1.4912 | M222: 2007-03-31 | N222: 1.7002
K223: 2006-10-31 | L223: 1.5738 | M223: 2007-04-30 | N223: 1.9068
K224: 2006-11-30 | L224: 1.4736 | M224: 2007-05-31 | N224: 2.0466
K225: 2006-12-31 | L225: 1.5561 | M225: 2007-06-30 | N225: 2.2101
K226: 2007-01-31 | L226: 1.7849 | M226: 2007-07-31 | N226: 2.1934
K227: 2007-02-28 | L227: 1.7983 | M227: 2007-08-31 | N227: 1.9666
K228: 2007-03-31 | L228: 1.7002 | M228: 2007-09-30 | N228: 1.7894
K229: 2007-04-30 | L229: 1.9068 | M229: 2007-10-31 | N229: 1.7455
K230: 2007-05-31 | L230: 2.0466 | M230: 2007-11-30 | N230: 1.4823
K231: 2007-06-30 | L231: 2.2101 | M231: 2007-12-31 | N231: 1.4983
K232: 2007-07-31 | L232: 2.1934 | M232: 2008-01-31 | N232: 1.3032
K233: 2007-08-31 | L233: 1.9666 | M233: 2008-02-29 | N233: 1.3276
K234: 2007-09-30 | L234: 1.7894 | M234: 2008-03-31 | N234: 1.0236
K235: 2007-10-31 | L235: 1.7455 | M235: 2008-04-30 | N235: 1.2032
K236: 2007-11-30 | L236: 1.4823 | M236: 2008-05-31 | N236: 1.3612
K237: 2007-12-31 | L237: 1.4983 | M237: 2008-06-30 | N237: 1.3581
K238: 2008-01-31 | L238: 1.3032 | M238: 2008-07-31 | N238: 1.2887
K239: 2008-02-29 | L239: 1.3276 | M239: 2008-08-31 | N239: 1.1652
K240: 2008-03-31 | L240: 1.0236 | M240: 2008-09-30 | N240: 1.2511
K241: 2008-04-30 | L241: 1.2032 | M241: 2008-10-31 | N241: 2.0565
K242: 2008-05-31 | L242: 1.3612 | M242: 2008-11-30 | N242: 2.58
K243: 2008-06-30 | L243: 1.3581 | M243: 2008-12-31 | N243: 2.1901
K244: 2008-07-31 | L244: 1.2887 | M244: 2009-01-31 | N244: 1.5257
K245: 2008-08-31 | L245: 1.1652 | M245: 2009-02-28 | N245: 1.2501
K246: 2008-09-30 | L246: 1.2511 | M246: 2009-03-31 | N246: 1.1902
K247: 2008-10-31 | L247: 2.0565 | M247: 2009-04-30 | N247: 1.0832
K248: 2008-11-30 | L248: 2.58 | M248: 2009-05-31 | N248: 1.0904
K249: 2008-12-31 | L249: 2.1901 | M249: 2009-06-30 | N249: 1.0821
K250: 2009-01-31 | L250: 1.5257 | M250: 2009-07-31 | N250: 1.2285
K251: 2009-02-28 | L251: 1.2501 | M251: 2009-08-31 | N251: 1.1562
K252: 2009-03-31 | L252: 1.1902 | M252: 2009-09-30 | N252: 1.0559
K253: 2009-04-30 | L253: 1.0832 | M253: 2009-10-31 | N253: 0.703
K254: 2009-05-31 | L254: 1.0904 | M254: 2009-11-30 | N254: 0.774
K255: 2009-06-30 | L255: 1.0821 | M255: 2009-12-31 | N255: 0.8046
K256: 2009-07-31 | L256: 1.2285 | M256: 2010-01-31 | N256: 0.8237
K257: 2009-08-31 | L257: 1.1562 | M257: 2010-02-28 | N257: 0.9608
K258: 2009-09-30 | L258: 1.0559 | M258: 2010-03-31 | N258: 0.8276
K259: 2009-10-31 | L259: 0.703 | M259: 2010-04-30 | N259: 0.7118
K260: 2009-11-30 | L260: 0.774 | M260: 2010-05-31 | N260: 0.7264
K261: 2009-12-31 | L261: 0.8046 | M261: 2010-06-30 | N261: 0.7631
... 83 more rows

Sheet RPI
A1: TEMPORARY 3
E2: Parameter | G2: Units | I2: Constant | K2: Annual values
E3: Project year | K3: =Input!K3 -> -11 | L3: =K3 + 1 -> -10 | M3: -9 | N3: -8 | O3: -7 | P3: -6 | Q3: -5 | R3: -4 | S3: -3 | T3: -2 | U3: -1 | V3: 0 | W3: 1 | X3: 2 | Y3: 3 | Z3: 4 | AA3: 5 | AB3: 6 | AC3: 7 | AD3: 8 | AE3: 9 | AF3: 10 | AG3: 11 | AH3: 12 | AI3: 13 | AJ3: 14 | AK3: 15 | AL3: 16 | AM3: 17 | AN3: 18 | AO3: 19 | AP3: 20 | AQ3: 21 | AR3: 22 | AS3: 23 | AT3: 24 | AU3: 25 | AV3: 26 | AW3: 27 | AX3: 28
E4: Year ending | K4: =Input!K4 -> 2010-12-31 | L4: =DATE(YEAR(K4) + 1, MONTH(K4), DAY(K4)) -> 2011-12-31 | M4: 2012-12-31 | N4: 2013-12-31 | O4: 2014-12-31 | P4: 2015-12-31 | Q4: 2016-12-31 | R4: 2017-12-31 | S4: 2018-12-31 | T4: 2019-12-31 | U4: 2020-12-31 | V4: 2021-12-31 | W4: 2022-12-31 | X4: 2023-12-31 | Y4: 2024-12-31 | Z4: 2025-12-31 | AA4: 2026-12-31 | AB4: 2027-12-31 | AC4: 2028-12-31 | AD4: 2029-12-31 | AE4: 2030-12-31 | AF4: 2031-12-31 | AG4: 2032-12-31 | AH4: 2033-12-31 | AI4: 2034-12-31 | AJ4: 2035-12-31 | AK4: 2036-12-31 | AL4: 2037-12-31 | AM4: 2038-12-31 | AN4: 2039-12-31 | AO4: 2040-12-31 | AP4: 2041-12-31 | AQ4: 2042-12-31 | AR4: 2043-12-31 | AS4: 2044-12-31 | AT4: 2045-12-31 | AU4: 2046-12-31 | AV4: 2047-12-31 | AW4: 2048-12-31 | AX4: 2049-12-31
B6: Inflation
C8: Key index values
E10: =E146 -> 2015/16 RPI inflation index value (CHAW) | G10: =G146 -> Jan 1987 = 100 | I10: =I146 -> 259.217
C14: UK Inflation
E15: http://www.ons.gov.uk/ons/datasets-and-tables/data-selector.html?cdid=CHAW&dataset=mm23&table-id=2.1
E17: 2006 JAN | G17: Jan 1987 = 100 | I17: 193.4 | K17: 0 | L17: 0 | M17: 0 | N17: 0 | O17: 0 | P17: 0
E18: 2006 FEB | G18: Jan 1987 = 100 | I18: 194.2 | K18: 0 | L18: 0 | M18: 0 | N18: 0 | O18: 0 | P18: 0
E19: 2006 MAR | G19: Jan 1987 = 100 | I19: 195 | K19: 0 | L19: 0 | M19: 0 | N19: 0 | O19: 0 | P19: 0
E20: 2006 APR | G20: Jan 1987 = 100 | I20: 196.5 | K20: 0 | L20: 0 | M20: 0 | N20: 0 | O20: 0 | P20: 0
E21: 2006 MAY | G21: Jan 1987 = 100 | I21: 197.7 | K21: 0 | L21: 0 | M21: 0 | N21: 0 | O21: 0 | P21: 0
E22: 2006 JUN | G22: Jan 1987 = 100 | I22: 198.5 | K22: 0 | L22: 0 | M22: 0 | N22: 0 | O22: 0 | P22: 0
E23: 2006 JUL | G23: Jan 1987 = 100 | I23: 198.5 | K23: 0 | L23: 0 | M23: 0 | N23: 0 | O23: 0 | P23: 0
E24: 2006 AUG | G24: Jan 1987 = 100 | I24: 199.2 | K24: 0 | L24: 0 | M24: 0 | N24: 0 | O24: 0 | P24: 0
E25: 2006 SEP | G25: Jan 1987 = 100 | I25: 200.1 | K25: 0 | L25: 0 | M25: 0 | N25: 0 | O25: 0 | P25: 0
E26: 2006 OCT | G26: Jan 1987 = 100 | I26: 200.4 | K26: 0 | L26: 0 | M26: 0 | N26: 0 | O26: 0 | P26: 0
E27: 2006 NOV | G27: Jan 1987 = 100 | I27: 201.1 | K27: 0 | L27: 0 | M27: 0 | N27: 0 | O27: 0 | P27: 0
E28: 2006 DEC | G28: Jan 1987 = 100 | I28: 202.7 | K28: 0 | L28: 0 | M28: 0 | N28: 0 | O28: 0 | P28: 0
E29: 2007 JAN | G29: Jan 1987 = 100 | I29: 201.6 | K29: 0 | L29: 0 | M29: 0 | N29: 0 | O29: 0 | P29: 0
E30: 2007 FEB | G30: Jan 1987 = 100 | I30: 203.1 | K30: 0 | L30: 0 | M30: 0 | N30: 0 | O30: 0 | P30: 0
E31: 2007 MAR | G31: Jan 1987 = 100 | I31: 204.4 | K31: 0 | L31: 0 | M31: 0 | N31: 0 | O31: 0 | P31: 0
E32: 2007 APR | G32: Jan 1987 = 100 | I32: 205.4 | K32: 0 | L32: 0 | M32: 0 | N32: 0 | O32: 0 | P32: 0
E33: 2007 MAY | G33: Jan 1987 = 100 | I33: 206.2 | K33: 0 | L33: 0 | M33: 0 | N33: 0 | O33: 0 | P33: 0
E34: 2007 JUN | G34: Jan 1987 = 100 | I34: 207.3 | K34: 0 | L34: 0 | M34: 0 | N34: 0 | O34: 0 | P34: 0
E35: 2007 JUL | G35: Jan 1987 = 100 | I35: 206.1 | K35: 0 | L35: 0 | M35: 0 | N35: 0 | O35: 0 | P35: 0
E36: 2007 AUG | G36: Jan 1987 = 100 | I36: 207.3 | K36: 0 | L36: 0 | M36: 0 | N36: 0 | O36: 0 | P36: 0
E37: 2007 SEP | G37: Jan 1987 = 100 | I37: 208 | K37: 0 | L37: 0 | M37: 0 | N37: 0 | O37: 0 | P37: 0
E38: 2007 OCT | G38: Jan 1987 = 100 | I38: 208.9 | K38: 0 | L38: 0 | M38: 0 | N38: 0 | O38: 0 | P38: 0
E39: 2007 NOV | G39: Jan 1987 = 100 | I39: 209.7 | K39: 0 | L39: 0 | M39: 0 | N39: 0 | O39: 0 | P39: 0
E40: 2007 DEC | G40: Jan 1987 = 100 | I40: 210.9 | K40: 0 | L40: 0 | M40: 0 | N40: 0 | O40: 0 | P40: 0
E41: 2008 JAN | G41: Jan 1987 = 100 | I41: 209.8 | K41: 0 | L41: 0 | M41: 0 | N41: 0 | O41: 0 | P41: 0
E42: 2008 FEB | G42: Jan 1987 = 100 | I42: 211.4 | K42: 0 | L42: 0 | M42: 0 | N42: 0 | O42: 0 | P42: 0
E43: 2008 MAR | G43: Jan 1987 = 100 | I43: 212.1 | K43: 0 | L43: 0 | M43: 0 | N43: 0 | O43: 0 | P43: 0
E44: 2008 APR | G44: Jan 1987 = 100 | I44: 214 | K44: 0 | L44: 0 | M44: 0 | N44: 0 | O44: 0 | P44: 0
E45: 2008 MAY | G45: Jan 1987 = 100 | I45: 215.1 | K45: 0 | L45: 0 | M45: 0 | N45: 0 | O45: 0 | P45: 0
E46: 2008 JUN | G46: Jan 1987 = 100 | I46: 216.8 | K46: 0 | L46: 0 | M46: 0 | N46: 0 | O46: 0 | P46: 0
E47: 2008 JUL | G47: Jan 1987 = 100 | I47: 216.5 | K47: 0 | L47: 0 | M47: 0 | N47: 0 | O47: 0 | P47: 0
E48: 2008 AUG | G48: Jan 1987 = 100 | I48: 217.2 | K48: 0 | L48: 0 | M48: 0 | N48: 0 | O48: 0 | P48: 0
E49: 2008 SEP | G49: Jan 1987 = 100 | I49: 218.4 | K49: 0 | L49: 0 | M49: 0 | N49: 0 | O49: 0 | P49: 0
E50: 2008 OCT | G50: Jan 1987 = 100 | I50: 217.7 | K50: 0 | L50: 0 | M50: 0 | N50: 0 | O50: 0 | P50: 0
E51: 2008 NOV | G51: Jan 1987 = 100 | I51: 216 | K51: 0 | L51: 0 | M51: 0 | N51: 0 | O51: 0 | P51: 0
E52: 2008 DEC | G52: Jan 1987 = 100 | I52: 212.9 | K52: 0 | L52: 0 | M52: 0 | N52: 0 | O52: 0 | P52: 0
E53: 2009 JAN | G53: Jan 1987 = 100 | I53: 210.1 | K53: 0 | L53: 0 | M53: 0 | N53: 0 | O53: 0 | P53: 0
E54: 2009 FEB | G54: Jan 1987 = 100 | I54: 211.4 | K54: 0 | L54: 0 | M54: 0 | N54: 0 | O54: 0 | P54: 0
E55: 2009 MAR | G55: Jan 1987 = 100 | I55: 211.3 | K55: 0 | L55: 0 | M55: 0 | N55: 0 | O55: 0 | P55: 0
E56: 2009 APR | G56: Jan 1987 = 100 | I56: 211.5 | K56: 0 | L56: 0 | M56: 0 | N56: 0 | O56: 0 | P56: 0
E57: 2009 MAY | G57: Jan 1987 = 100 | I57: 212.8 | K57: 0 | L57: 0 | M57: 0 | N57: 0 | O57: 0 | P57: 0
E58: 2009 JUN | G58: Jan 1987 = 100 | I58: 213.4 | K58: 0 | L58: 0 | M58: 0 | N58: 0 | O58: 0 | P58: 0
E59: 2009 JUL | G59: Jan 1987 = 100 | I59: 213.4 | K59: 0 | L59: 0 | M59: 0 | N59: 0 | O59: 0 | P59: 0
E60: 2009 AUG | G60: Jan 1987 = 100 | I60: 214.4 | K60: 0 | L60: 0 | M60: 0 | N60: 0 | O60: 0 | P60: 0
E61: 2009 SEP | G61: Jan 1987 = 100 | I61: 215.3 | K61: 0 | L61: 0 | M61: 0 | N61: 0 | O61: 0 | P61: 0
E62: 2009 OCT | G62: Jan 1987 = 100 | I62: 216 | K62: 0 | L62: 0 | M62: 0 | N62: 0 | O62: 0 | P62: 0
E63: 2009 NOV | G63: Jan 1987 = 100 | I63: 216.6 | K63: 0 | L63: 0 | M63: 0 | N63: 0 | O63: 0 | P63: 0
E64: 2009 DEC | G64: Jan 1987 = 100 | I64: 218 | K64: 0 | L64: 0 | M64: 0 | N64: 0 | O64: 0 | P64: 0
E65: 2010 JAN | G65: Jan 1987 = 100 | I65: 217.9 | K65: 0 | L65: 0 | M65: 0 | N65: 0 | O65: 0 | P65: 0
E66: 2010 FEB | G66: Jan 1987 = 100 | I66: 219.2 | K66: 0 | L66: 0 | M66: 0 | N66: 0 | O66: 0 | P66: 0
E67: 2010 MAR | G67: Jan 1987 = 100 | I67: 220.7 | K67: 0 | L67: 0 | M67: 0 | N67: 0 | O67: 0 | P67: 0
E68: 2010 APR | G68: Jan 1987 = 100 | I68: 222.8 | K68: =L80 -> 1 | L68: 0 | M68: 0 | N68: 0 | O68: 0 | P68: 0
E69: 2010 MAY | G69: Jan 1987 = 100 | I69: 223.6 | K69: 1 | L69: 0 | M69: 0 | N69: 0 | O69: 0 | P69: 0
E70: 2010 JUN | G70: Jan 1987 = 100 | I70: 224.1 | K70: 1 | L70: 0 | M70: 0 | N70: 0 | O70: 0 | P70: 0
E71: 2010 JUL | G71: Jan 1987 = 100 | I71: 223.6 | K71: 1 | L71: 0 | M71: 0 | N71: 0 | O71: 0 | P71: 0
E72: 2010 AUG | G72: Jan 1987 = 100 | I72: 224.5 | K72: 1 | L72: 0 | M72: 0 | N72: 0 | O72: 0 | P72: 0
E73: 2010 SEP | G73: Jan 1987 = 100 | I73: 225.3 | K73: 1 | L73: 0 | M73: 0 | N73: 0 | O73: 0 | P73: 0
E74: 2010 OCT | G74: Jan 1987 = 100 | I74: 225.8 | K74: 1 | L74: 0 | M74: 0 | N74: 0 | O74: 0 | P74: 0
E75: 2010 NOV | G75: Jan 1987 = 100 | I75: 226.8 | K75: 1 | L75: 0 | M75: 0 | N75: 0 | O75: 0 | P75: 0
E76: 2010 DEC | G76: Jan 1987 = 100 | I76: 228.4 | K76: 1 | L76: 0 | M76: 0 | N76: 0 | O76: 0 | P76: 0
E77: 2011 JAN | G77: Jan 1987 = 100 | I77: 229 | K77: 1 | L77: 0 | M77: 0 | N77: 0 | O77: 0 | P77: 0
E78: 2011 FEB | G78: Jan 1987 = 100 | I78: 231.3 | K78: 1 | L78: 0 | M78: 0 | N78: 0 | O78: 0 | P78: 0
E79: 2011 MAR | G79: Jan 1987 = 100 | I79: 232.5 | K79: 1 | L79: 0 | M79: 0 | N79: 0 | O79: 0 | P79: 0
E80: 2011 APR | G80: Jan 1987 = 100 | I80: 234.4 | K80: 0 | L80: =M92 -> 1 | M80: 0 | N80: 0 | O80: 0 | P80: 0
E81: 2011 MAY | G81: Jan 1987 = 100 | I81: 235.2 | K81: 0 | L81: 1 | M81: 0 | N81: 0 | O81: 0 | P81: 0
E82: 2011 JUN | G82: Jan 1987 = 100 | I82: 235.2 | K82: 0 | L82: 1 | M82: 0 | N82: 0 | O82: 0 | P82: 0
E83: 2011 JUL | G83: Jan 1987 = 100 | I83: 234.7 | K83: 0 | L83: 1 | M83: 0 | N83: 0 | O83: 0 | P83: 0
E84: 2011 AUG | G84: Jan 1987 = 100 | I84: 236.1 | K84: 0 | L84: 1 | M84: 0 | N84: 0 | O84: 0 | P84: 0
E85: 2011 SEP | G85: Jan 1987 = 100 | I85: 237.9 | K85: 0 | L85: 1 | M85: 0 | N85: 0 | O85: 0 | P85: 0
E86: 2011 OCT | G86: Jan 1987 = 100 | I86: 238 | K86: 0 | L86: 1 | M86: 0 | N86: 0 | O86: 0 | P86: 0
E87: 2011 NOV | G87: Jan 1987 = 100 | I87: 238.5 | K87: 0 | L87: 1 | M87: 0 | N87: 0 | O87: 0 | P87: 0
E88: 2011 DEC | G88: Jan 1987 = 100 | I88: 239.4 | K88: 0 | L88: 1 | M88: 0 | N88: 0 | O88: 0 | P88: 0
E89: 2012 JAN | G89: Jan 1987 = 100 | I89: 238 | K89: 0 | L89: 1 | M89: 0 | N89: 0 | O89: 0 | P89: 0
E90: 2012 FEB | G90: Jan 1987 = 100 | I90: 239.9 | K90: 0 | L90: 1 | M90: 0 | N90: 0 | O90: 0 | P90: 0
E91: 2012 MAR | G91: Jan 1987 = 100 | I91: 240.8 | K91: 0 | L91: 1 | M91: 0 | N91: 0 | O91: 0 | P91: 0
E92: 2012 APR | G92: Jan 1987 = 100 | I92: 242.5 | K92: =L104 -> 0 | L92: 0 | M92: 1 | N92: 0 | O92: 0 | P92: 0
E93: 2012 MAY | G93: Jan 1987 = 100 | I93: 242.4 | K93: =L105 -> 0 | L93: 0 | M93: 1 | N93: 0 | O93: 0 | P93: 0
E94: 2012 JUN | G94: Jan 1987 = 100 | I94: 241.8 | K94: =L106 -> 0 | L94: 0 | M94: 1 | N94: 0 | O94: 0 | P94: 0
E95: 2012 JUL | G95: Jan 1987 = 100 | I95: 242.1 | K95: =L107 -> 0 | L95: 0 | M95: 1 | N95: 0 | O95: 0 | P95: 0
E96: 2012 AUG | G96: Jan 1987 = 100 | I96: 243 | K96: =L108 -> 0 | L96: 0 | M96: 1 | N96: 0 | O96: 0 | P96: 0
E97: 2012 SEP | G97: Jan 1987 = 100 | I97: 244.2 | K97: =L109 -> 0 | L97: 0 | M97: 1 | N97: 0 | O97: 0 | P97: 0
E98: 2012 OCT | G98: Jan 1987 = 100 | I98: 245.6 | K98: =L110 -> 0 | L98: =M110 -> 0 | M98: =N110 -> 1 | N98: =O110 -> 0 | O98: 0 | P98: 0
E99: 2012 NOV | G99: Jan 1987 = 100 | I99: 245.6 | K99: 0 | L99: 0 | M99: 1 | N99: 0 | O99: 0 | P99: 0
E100: 2012 DEC | G100: Jan 1987 = 100 | I100: 246.8 | K100: 0 | L100: 0 | M100: 1 | N100: 0 | O100: 0 | P100: 0
E101: 2013 JAN | G101: Jan 1987 = 100 | I101: 245.8 | K101: =L113 -> 0 | L101: =M113 -> 0 | M101: =N113 -> 1 | N101: =O113 -> 0 | O101: 0 | P101: 0
E102: 2013 FEB | G102: Jan 1987 = 100 | I102: 247.6 | K102: 0 | L102: 0 | M102: 1 | N102: 0 | O102: 0 | P102: 0
E103: 2013 MAR | G103: Jan 1987 = 100 | I103: 248.7 | K103: 0 | L103: 0 | M103: 1 | N103: 0 | O103: 0 | P103: 0
E104: 2013 APR | G104: Jan 1987 = 100 | I104: 249.5 | K104: 0 | L104: 0 | M104: 0 | N104: 1 | O104: 0 | P104: 0
E105: 2013 MAY | G105: Jan 1987 = 100 | I105: 250 | K105: 0 | L105: 0 | M105: 0 | N105: 1 | O105: 0 | P105: 0
E106: 2013 JUN | G106: Jan 1987 = 100 | I106: 249.7 | K106: 0 | L106: 0 | M106: 0 | N106: 1 | O106: 0 | P106: 0
E107: 2013 JUL | G107: Jan 1987 = 100 | I107: 249.7 | K107: 0 | L107: 0 | M107: 0 | N107: 1 | O107: 0 | P107: 0
E108: 2013 AUG | G108: Jan 1987 = 100 | I108: 251 | K108: 0 | L108: 0 | M108: 0 | N108: 1 | O108: 0 | P108: 0
E109: 2013 SEP | G109: Jan 1987 = 100 | I109: 251.9 | K109: 0 | L109: 0 | M109: 0 | N109: 1 | O109: 0 | P109: 0
E110: 2013 OCT | G110: Jan 1987 = 100 | I110: 251.9 | K110: 0 | L110: 0 | M110: 0 | N110: 1 | O110: 0 | P110: 0
E111: 2013 NOV | G111: Jan 1987 = 100 | I111: 252.1 | K111: 0 | L111: 0 | M111: 0 | N111: 1 | O111: 0 | P111: 0
E112: 2013 DEC | G112: Jan 1987 = 100 | I112: 253.4 | K112: 0 | L112: 0 | M112: 0 | N112: 1 | O112: 0 | P112: 0
E113: 2014 JAN | G113: Jan 1987 = 100 | I113: 252.6 | K113: 0 | L113: 0 | M113: 0 | N113: 1 | O113: 0 | P113: 0
E114: 2014 FEB | G114: Jan 1987 = 100 | I114: 254.2 | K114: 0 | L114: 0 | M114: 0 | N114: 1 | O114: 0 | P114: 0
E115: 2014 MAR | G115: Jan 1987 = 100 | I115: 254.8 | K115: 0 | L115: 0 | M115: 0 | N115: 1 | O115: 0 | P115: 0
E116: 2014 APR | G116: Jan 1987 = 100 | I116: 255.7 | O116: 1
E117: 2014 MAY | G117: Jan 1987 = 100 | I117: 255.9 | O117: 1
E118: 2014 JUN | G118: Jan 1987 = 100 | I118: 256.3 | O118: 1
E119: 2014 JUL | G119: Jan 1987 = 100 | I119: 256 | O119: 1
E120: 2014 AUG | I120: 257 | O120: 1
E121: 2014 SEP | I121: 257.6 | O121: 1
E122: 2014 OCT | I122: 257.7 | O122: 1
E123: 2014 NOV | I123: 257.1 | O123: 1
E124: 2014 DEC | I124: 257.5 | O124: 1
E125: 2015 JAN | I125: 255.4 | O125: 1
E126: 2015 FEB | I126: 256.7 | O126: 1
E127: 2015 MAR | I127: 257.1 | O127: 1
E128: 2015 APL | I128: 258 | P128: 1
E129: 2015 MAY | I129: 258.5 | P129: 1
E130: 2015 JUN | I130: 258.9 | P130: 1
E131: 2015 JUL | I131: 258.6 | P131: 1
E132: 2015 AUG | I132: 259.8 | P132: 1
E133: 2015 OCT | I133: 259.6 | P133: 1
E134: 2015 NOV | I134: 259.5 | P134: 1
E135: 2015 NOV | I135: 259.8 | P135: 1
E136: 2015 DEC | I136: 260.6 | P136: 1
E137: 2016 JAN | I137: =(I136+I138)/2 -> 259.7 | P137: 1
E138: 2016 FEB | I138: 258.8 | P138: 1
E139: 2016 MAR (estimated) | I139: =I138 -> 258.8 | P139: 1
E146: 2015/16 RPI inflation index value (CHAW) | G146: Jan 1987 = 100 | I146: =ROUND(AVERAGE(I128:I139), 3) -> 259.217
E147: 12 month average UK RPI inflation index value (CHAW) | G147: Jan 1987 = 100 | K147: =ROUND(SUMPRODUCT($I17:$I139, K17:K139) / SUM(K17:K139), 3) -> 226.475 | L147: 237.342 | M147: 244.675 | N147: 251.733 | O147: 256.667 | P147: 259.217
C150: Exchange rate
E151: Monthly average spot exchange rate, Euro into Sterling (XUMAERS)
E152: http://www.bankofengland.co.uk/boeapps/iadb/fromshowcolumns.asp?excel97.x=yes&Datefrom=01/Jan/1992&Dateto=Now&SeriesCodes=XUMABK67,XUMAUSS,XUMAJYS,XUMAERS&UsingCodes=Y&VPD=Y
E154: 2010-04-30 | G154: 1.1436 | K154: =ROUND(AVERAGE(G154:G165), 3) -> 1.177 | L154: =ROUND(AVERAGE(G166:G177), 3) -> 1.16 | M154: =ROUND(AVERAGE(G178:G189), 3) -> 1.227 | N154: =ROUND(AVERAGE(G190:G201), 3) -> 1.186 | O154: =ROUND(AVERAGE(G202:G213), 3) -> 1.275 | P154: =ROUND(AVERAGE(G214:G225), 3) -> 1.367
E155: 2010-05-31 | G155: 1.1685
E156: 2010-06-30 | G156: 1.2082
E157: 2010-07-31 | G157: 1.1959
E158: 2010-08-31 | G158: 1.2132
E159: 2010-09-30 | G159: 1.1901
E160: 2010-10-31 | G160: 1.1412
E161: 2010-11-30 | G161: 1.1701
E162: 2010-12-31 | G162: 1.1802
E163: 2011-01-31 | G163: 1.1817
E164: 2011-02-28 | G164: 1.1815
E165: 2011-03-31 | G165: 1.1527
E166: 2011-04-30 | G166: 1.1331
E167: 2011-05-31 | G167: 1.1403
E168: 2011-06-30 | G168: 1.1261
E169: 2011-07-31 | G169: 1.1308
E170: 2011-08-31 | G170: 1.1422
E171: 2011-09-30 | G171: 1.147
E172: 2011-10-31 | G172: 1.1487
E173: 2011-11-30 | G173: 1.1659
E174: 2011-12-31 | G174: 1.1843
E175: 2012-01-31 | G175: 1.2034
E176: 2012-02-29 | G176: 1.1941
E177: 2012-03-31 | G177: 1.1981
E178: 2012-04-30 | G178: 1.2161
E179: 2012-05-31 | G179: 1.244
E180: 2012-06-30 | G180: 1.2416
E181: 2012-07-31 | G181: 1.2688
E182: 2012-08-31 | G182: 1.2676
E183: 2012-09-30 | G183: 1.2524
E184: 2012-10-31 | G184: 1.2393
E185: 2012-11-30 | G185: 1.244
E186: 2012-12-31 | G186: 1.231
E187: 2013-01-31 | G187: 1.2
E188: 2013-02-28 | G188: 1.1594
E189: 2013-03-31 | G189: 1.1634
E190: 2013-04-30 | G190: 1.175
E191: 2013-05-31 | G191: 1.1777
E192: 2013-06-30 | G192: 1.174
E193: 2013-07-31 | G193: 1.16
E194: 2013-08-31 | G194: 1.1649
E195: 2013-09-30 | G195: 1.1883
E196: 2013-10-31 | G196: 1.1797
E197: 2013-11-30 | G197: 1.1938
E198: 2013-12-31 | G198: 1.1947
E199: 2014-01-31 | G199: 1.2097
E200: 2014-02-28 | G200: 1.2122
E201: 2014-03-31 | G201: 1.2021
E202: 2014-04-30 | G202: 1.2125
E203: 2014-05-31 | G203: 1.2267
E204: 2014-06-30 | G204: 1.2436
E205: 2014-07-31 | G205: 1.2611
E206: 2014-08-31 | G206: 1.2542
E207: 2014-09-30 | G207: 1.2639
E208: 2014-10-31 | G208: 1.2678
E209: 2014-11-30 | G209: 1.2646
E210: 2014-12-31 | G210: 1.2686
E211: 2015-01-31 | G211: 1.3045
E212: 2015-02-28 | G212: 1.3503
E213: 2015-03-31 | G213: 1.3825
E214: 2015-04-30 | G214: 1.3856
E215: 2015-05-31 | G215: 1.3852
E216: 2015-06-30 | G216: 1.3879
... 10 more rows

Sheet change log
A3: date of change | B3: nature of change | C3: impact of change
C4: Cap | D4: Floor
C5: 114.6169718 | D5: 57.00109302
C9: =C10-SUM(C$6:C8) -> -20.43150197 | D9: =D10-SUM(D$6:D8) -> -3.967563811
C10: =Availability!W10-114.616971757799 -> -20.43150197 | D10: =Availability!W11-57.0010930235711 -> -3.967563811
C11: =Availability!W10 -> 94.18546978 | D11: =Availability!W11 -> 53.03352921
